BIOGUIDE_ID,OFFICE,QUARTER,PROGRAM,CATEGORY,SORT SEQUENCE,DATE,TRANSCODE,RECORDID,PAYEE,START DATE,END DATE,PURPOSE,AMOUNT,YEAR
,2021 OFFICE OF THE SPEAKER,,GENERAL EXPENDITURES,PERSONNEL COMPENSATION,DETAIL,   ,   ,   ,BENNETT AARON M.,2021-10-01,2021-11-30,DEPUTY DIR OF SPEECHWRITING,15416.66,2021
,2021 OFFICE OF THE SPEAKER,,GENERAL EXPENDITURES,PERSONNEL COMPENSATION,DETAIL,   ,   ,   ,BENNETT AARON M.,2021-12-01,2021-12-31,DIRECTOR OF SPEECHWRITING,7083.33,2021
,2021 OFFICE OF THE SPEAKER,,GENERAL EXPENDITURES,PERSONNEL COMPENSATION,DETAIL,   ,   ,   ,BERRET EMILY C,2021-08-01,2021-12-31,DEPUTY CHIEF OF STAFF,52675,2021
,2021 OFFICE OF THE SPEAKER,,GENERAL EXPENDITURES,PERSONNEL COMPENSATION,DETAIL,   ,   ,   ,BLANKENSHIP ALLISON W,2021-10-01,2021-12-31,FLOOR ASSISTANT,22499.99,2021
,2021 OFFICE OF THE SPEAKER,,GENERAL EXPENDITURES,PERSONNEL COMPENSATION,DETAIL,   ,   ,   ,BUSH JACQUELINE D,2021-10-01,2021-12-31,DEPUTY PRESS SECRETARY,12624.99,2021
,2021 OFFICE OF THE SPEAKER,,GENERAL EXPENDITURES,PERSONNEL COMPENSATION,DETAIL,   ,   ,   ,CAPRON MARGARET W.,2021-10-01,2021-12-31,SENIOR ADV FOR POLICY & COMM,39890.42,2021
,2021 OFFICE OF THE SPEAKER,,GENERAL EXPENDITURES,PERSONNEL COMPENSATION,DETAIL,   ,   ,   ,CHERRY STEPHANIE,2021-10-01,2021-12-31,DIRECTOR OF MEDIA AFFAIRS,22916.67,2021
,2021 OFFICE OF THE SPEAKER,,GENERAL EXPENDITURES,PERSONNEL COMPENSATION,DETAIL,   ,   ,   ,COCHRAN COURTNEY E.,2021-04-01,2021-12-31,DIRECTOR OF STRATEGIC PLANNING,37499.97,2021
,2021 OFFICE OF THE SPEAKER,,GENERAL EXPENDITURES,PERSONNEL COMPENSATION,DETAIL,   ,   ,   ,CONNELLY HENRY V,2021-10-01,2021-12-31,COMMUNICATIONS DIRECTOR,44941.66,2021
,2021 OFFICE OF THE SPEAKER,,GENERAL EXPENDITURES,PERSONNEL COMPENSATION,DETAIL,   ,   ,   ,COSTELLO JOSEPH M.,2021-10-01,2021-11-30,SENIOR PRESS ASSISTANT,6666.66,2021
,2021 OFFICE OF THE SPEAKER,,GENERAL EXPENDITURES,PERSONNEL COMPENSATION,DETAIL,   ,   ,   ,COSTELLO JOSEPH M.,2021-12-01,2021-12-31,DEPUTY PRESS SECRETARY,5208.33,2021
,2021 OFFICE OF THE SPEAKER,,GENERAL EXPENDITURES,PERSONNEL COMPENSATION,DETAIL,   ,   ,   ,COSTELLO JOSEPH M.,2021-09-01,2021-11-01,SENIOR PRESS ASSISTANT (OVERTIME),6392.96,2021
,2021 OFFICE OF THE SPEAKER,,GENERAL EXPENDITURES,PERSONNEL COMPENSATION,DETAIL,   ,   ,   ,DEGRAFF KENNETH B.,2021-10-01,2021-12-31,SENIOR POLICY ADVISOR,36100.02,2021
,2021 OFFICE OF THE SPEAKER,,GENERAL EXPENDITURES,PERSONNEL COMPENSATION,DETAIL,   ,   ,   ,DONOHUE JENNIFER A,2021-10-01,2021-12-31,EXECUTIVE DIRECTOR,42075,2021
,2021 OFFICE OF THE SPEAKER,,GENERAL EXPENDITURES,PERSONNEL COMPENSATION,DETAIL,   ,   ,   ,EDMONSON ROBERT D,2021-09-01,2021-12-31,POLICY ADVISOR,45833.32,2021
,2021 OFFICE OF THE SPEAKER,,GENERAL EXPENDITURES,PERSONNEL COMPENSATION,DETAIL,   ,   ,   ,EHRENBERG MIA R,2021-10-01,2021-11-03,DEPUTY PRESS SECRETARY,5041.66,2021
,2021 OFFICE OF THE SPEAKER,,GENERAL EXPENDITURES,PERSONNEL COMPENSATION,DETAIL,   ,   ,   ,EHRENBERG MIA R,2021-11-01,2021-11-03,DEPUTY PRESS SECRETARY (OTHER COMPENSATION),4583.33,2021
,2021 OFFICE OF THE SPEAKER,,GENERAL EXPENDITURES,PERSONNEL COMPENSATION,DETAIL,   ,   ,   ,FIELDS MCKENZIE R,2021-10-01,2021-12-31,POLICY ADVISOR,8000.01,2021
,2021 OFFICE OF THE SPEAKER,,GENERAL EXPENDITURES,PERSONNEL COMPENSATION,DETAIL,   ,   ,   ,FISCHER JR ROBERT V.,2021-10-01,2021-12-31,ASST FLOOR CHIEF,47441.67,2021
,2021 OFFICE OF THE SPEAKER,,GENERAL EXPENDITURES,PERSONNEL COMPENSATION,DETAIL,   ,   ,   ,FLEET II JAMES P,2021-10-01,2021-12-31,SENIOR ADVISOR,300,2021
,2021 OFFICE OF THE SPEAKER,,GENERAL EXPENDITURES,PERSONNEL COMPENSATION,DETAIL,   ,   ,   ,GREENER APRIL L.,2021-10-01,2021-12-31,RESEARCH DIRECTOR,31516.67,2021
,2021 OFFICE OF THE SPEAKER,,GENERAL EXPENDITURES,PERSONNEL COMPENSATION,DETAIL,   ,   ,   ,HAMILTON WENDY D,2021-07-01,2021-11-30,OUTREACH & MEMBER SERVICES ADV,30000,2021
,2021 OFFICE OF THE SPEAKER,,GENERAL EXPENDITURES,PERSONNEL COMPENSATION,DETAIL,   ,   ,   ,HAMMILL ANDREW T.,2021-08-01,2021-12-31,DEPUTY CHIEF OF STAFF,54058.31,2021
,2021 OFFICE OF THE SPEAKER,,GENERAL EXPENDITURES,PERSONNEL COMPENSATION,DETAIL,   ,   ,   ,HAN LEAH J.,2021-10-01,2021-12-31,STAFF ASSISTANT,12624.99,2021
,2021 OFFICE OF THE SPEAKER,,GENERAL EXPENDITURES,PERSONNEL COMPENSATION,DETAIL,   ,   ,   ,HAN LEAH J.,2021-09-01,2021-09-30,STAFF ASSISTANT (OVERTIME),1225.95,2021
,2021 OFFICE OF THE SPEAKER,,GENERAL EXPENDITURES,PERSONNEL COMPENSATION,DETAIL,   ,   ,   ,HIDALGO ADRIANA N.,2021-10-01,2021-12-31,DISTRICT SCHED/SPECIAL ASSIST,20000.01,2021
,2021 OFFICE OF THE SPEAKER,,GENERAL EXPENDITURES,PERSONNEL COMPENSATION,DETAIL,   ,   ,   ,HOLMES NATHANIEL J,2021-10-01,2021-12-31,DEP DIR/SCHEDULING & ADVANCE,18666.66,2021
,2021 OFFICE OF THE SPEAKER,,GENERAL EXPENDITURES,PERSONNEL COMPENSATION,DETAIL,   ,   ,   ,IACOBELLIS SAMUEL C,2021-10-01,2021-12-31,DPTY DIR INTERGOV AFFAIRS ADV,20000.01,2021
,2021 OFFICE OF THE SPEAKER,,GENERAL EXPENDITURES,PERSONNEL COMPENSATION,DETAIL,   ,   ,   ,JACKSON AUDRA L,2021-10-01,2021-12-31,ASST MGR FOR THE DEM CLOAKROOM,20000.01,2021
,2021 OFFICE OF THE SPEAKER,,GENERAL EXPENDITURES,PERSONNEL COMPENSATION,DETAIL,   ,   ,   ,JALDIN PAZ HUGO,2021-10-01,2021-12-31,DEPUTY IT DIRECTOR,30223.76,2021
,2021 OFFICE OF THE SPEAKER,,GENERAL EXPENDITURES,PERSONNEL COMPENSATION,DETAIL,   ,   ,   ,KAPLAN EMMA L,2021-10-01,2021-12-31,DEPUTY FLOOR DIRECTOR,30000,2021
,2021 OFFICE OF THE SPEAKER,,GENERAL EXPENDITURES,PERSONNEL COMPENSATION,DETAIL,   ,   ,   ,KEATING ROSE M,2021-10-01,2021-12-31,ASST FLOOR MANAGER,36683.33,2021
,2021 OFFICE OF THE SPEAKER,,GENERAL EXPENDITURES,PERSONNEL COMPENSATION,DETAIL,   ,   ,   ,KEITA KAMILAH Z,2021-10-01,2021-12-31,IT DIRECTOR,29533.56,2021
,2021 OFFICE OF THE SPEAKER,,GENERAL EXPENDITURES,PERSONNEL COMPENSATION,DETAIL,   ,   ,   ,KISKER GRAYSON S.,2021-10-01,2021-12-31,DIGITAL ASSISTANT,15625,2021
,2021 OFFICE OF THE SPEAKER,,GENERAL EXPENDITURES,PERSONNEL COMPENSATION,DETAIL,   ,   ,   ,KISKER GRAYSON S.,2021-09-08,2021-11-01,DIGITAL ASSISTANT (OVERTIME),8378.81,2021
,2021 OFFICE OF THE SPEAKER,,GENERAL EXPENDITURES,PERSONNEL COMPENSATION,DETAIL,   ,   ,   ,KONFORTY NADAV G.,2021-10-01,2021-12-31,STAFF ASSISTANT,14999.99,2021
,2021 OFFICE OF THE SPEAKER,,GENERAL EXPENDITURES,PERSONNEL COMPENSATION,DETAIL,   ,   ,   ,KONFORTY NADAV G.,2021-09-01,2021-11-01,STAFF ASSISTANT (OVERTIME),7550.39,2021
,2021 OFFICE OF THE SPEAKER,,GENERAL EXPENDITURES,PERSONNEL COMPENSATION,DETAIL,   ,   ,   ,KUNDANIS GEORGE,2021-08-01,2021-12-31,DEPUTY CHIEF OF STAFF,54058.31,2021
,2021 OFFICE OF THE SPEAKER,,GENERAL EXPENDITURES,PERSONNEL COMPENSATION,DETAIL,   ,   ,   ,LEE SERYEUNG,2021-10-01,2021-12-31,PRESS SECRETARY,22500.01,2021
,2021 OFFICE OF THE SPEAKER,,GENERAL EXPENDITURES,PERSONNEL COMPENSATION,DETAIL,   ,   ,   ,LIZARRAGA JAIME E.,2021-09-01,2021-12-31,SENIOR ADVISOR,49816.65,2021
,2021 OFFICE OF THE SPEAKER,,GENERAL EXPENDITURES,PERSONNEL COMPENSATION,DETAIL,   ,   ,   ,LOPEZ RILEY M.,2021-10-01,2021-12-07,PRESS ASSISTANT,12909.72,2021
,2021 OFFICE OF THE SPEAKER,,GENERAL EXPENDITURES,PERSONNEL COMPENSATION,DETAIL,   ,   ,   ,LOPEZ RILEY M.,2021-09-01,2021-11-01,PRESS ASSISTANT (OVERTIME),12155.37,2021
,2021 OFFICE OF THE SPEAKER,,GENERAL EXPENDITURES,PERSONNEL COMPENSATION,DETAIL,   ,   ,   ,LOPEZ RILEY M.,2021-12-01,2021-12-07,PRESS ASSISTANT (OTHER COMPENSATION),2597.22,2021
,2021 OFFICE OF THE SPEAKER,,GENERAL EXPENDITURES,PERSONNEL COMPENSATION,DETAIL,   ,   ,   ,MANGRUM PEARL J.,2021-09-01,2021-12-31,FINANCIAL ADMINISTRATOR,41249.99,2021
,2021 OFFICE OF THE SPEAKER,,GENERAL EXPENDITURES,PERSONNEL COMPENSATION,DETAIL,   ,   ,   ,MANSBACH SHANA G,2021-10-01,2021-11-30,DIRECTOR OF SPEECHWRITING,21516.66,2021
,2021 OFFICE OF THE SPEAKER,,GENERAL EXPENDITURES,PERSONNEL COMPENSATION,DETAIL,   ,   ,   ,MANSBACH SHANA G,2021-12-01,2021-12-31,DEPUTY COMMUNICATIONS DIR,11250,2021
,2021 OFFICE OF THE SPEAKER,,GENERAL EXPENDITURES,PERSONNEL COMPENSATION,DETAIL,   ,   ,   ,MARRON BRENNA K.,2021-10-01,2021-12-31,DEPUTY EXEC DIRECTOR,29325,2021
,2021 OFFICE OF THE SPEAKER,,GENERAL EXPENDITURES,PERSONNEL COMPENSATION,DETAIL,   ,   ,   ,MARROW JAMES A,2021-10-01,2021-12-31,CREATIVE DIRECTOR,19041.67,2021
,2021 OFFICE OF THE SPEAKER,,GENERAL EXPENDITURES,PERSONNEL COMPENSATION,DETAIL,   ,   ,   ,MCCULLOUGH MARY T,2021-08-01,2021-12-31,CHIEF OF STAFF,54058.31,2021
,2021 OFFICE OF THE SPEAKER,,GENERAL EXPENDITURES,PERSONNEL COMPENSATION,DETAIL,   ,   ,   ,MCCULLOUGH WILLIAM J,2021-10-01,2021-11-30,PRESS ADVISOR,6666.66,2021
,2021 OFFICE OF THE SPEAKER,,GENERAL EXPENDITURES,PERSONNEL COMPENSATION,DETAIL,   ,   ,   ,MCCULLOUGH WILLIAM J,2021-12-01,2021-12-31,DEPUTY PRESS SECRETARY,5208.33,2021
,2021 OFFICE OF THE SPEAKER,,GENERAL EXPENDITURES,PERSONNEL COMPENSATION,DETAIL,   ,   ,   ,MCCULLOUGH WILLIAM J,2021-09-01,2021-11-01,PRESS ADVISOR (OVERTIME),5591.58,2021
,2021 OFFICE OF THE SPEAKER,,GENERAL EXPENDITURES,PERSONNEL COMPENSATION,DETAIL,   ,   ,   ,MELTZER RICHARD,2021-08-01,2021-12-31,POLICY DIRECTOR,54058.31,2021
,2021 OFFICE OF THE SPEAKER,,GENERAL EXPENDITURES,PERSONNEL COMPENSATION,DETAIL,   ,   ,   ,MITCHELL TOUSSAINT V.,2021-10-01,2021-12-31,STAFF ASSISTANT,14999.99,2021
,2021 OFFICE OF THE SPEAKER,,GENERAL EXPENDITURES,PERSONNEL COMPENSATION,DETAIL,   ,   ,   ,MITCHELL TOUSSAINT V.,2021-09-01,2021-11-01,STAFF ASSISTANT (OVERTIME),4925.42,2021
,2021 OFFICE OF THE SPEAKER,,GENERAL EXPENDITURES,PERSONNEL COMPENSATION,DETAIL,   ,   ,   ,MONGE KATHERINE S,2021-10-01,2021-12-31,SENIOR COUNSEL,48275,2021
,2021 OFFICE OF THE SPEAKER,,GENERAL EXPENDITURES,PERSONNEL COMPENSATION,DETAIL,   ,   ,   ,PARKER WYNDEE R.,2021-08-01,2021-12-31,NATIONAL SECURITY ADVISOR,54058.31,2021
,2021 OFFICE OF THE SPEAKER,,GENERAL EXPENDITURES,PERSONNEL COMPENSATION,DETAIL,   ,   ,   ,PATTERSON ROBYN M.,2021-10-01,2021-12-03,DEPUTY COMMUNICATIONS DIRECTOR,27375.01,2021
,2021 OFFICE OF THE SPEAKER,,GENERAL EXPENDITURES,PERSONNEL COMPENSATION,DETAIL,   ,   ,   ,PATTERSON ROBYN M.,2021-12-01,2021-12-03,DEPUTY COMMUNICATIONS DIRECTOR (OTHER COMPENSATION),5208.33,2021
,2021 OFFICE OF THE SPEAKER,,GENERAL EXPENDITURES,PERSONNEL COMPENSATION,DETAIL,   ,   ,   ,PAZ JR CARLOS,2021-10-01,2021-12-31,SENIOR COMMUNICATIONS ADVISOR,39583.33,2021
,2021 OFFICE OF THE SPEAKER,,GENERAL EXPENDITURES,PERSONNEL COMPENSATION,DETAIL,   ,   ,   ,PRESLEY JESSICA A,2021-10-01,2021-12-31,DIRECTOR OF DIGITAL STRATEGY,29166.67,2021
,2021 OFFICE OF THE SPEAKER,,GENERAL EXPENDITURES,PERSONNEL COMPENSATION,DETAIL,   ,   ,   ,PRICE REVA B.,2021-10-01,2021-12-31,OUTREACH DIR & SENIOR ADVISOR,43674.5,2021
,2021 OFFICE OF THE SPEAKER,,GENERAL EXPENDITURES,PERSONNEL COMPENSATION,DETAIL,   ,   ,   ,PRIMUS WENDELL E.,2021-08-01,2021-12-31,SR HLTH/BUDGET POLICY ADV,54058.31,2021
,2021 OFFICE OF THE SPEAKER,,GENERAL EXPENDITURES,PERSONNEL COMPENSATION,DETAIL,   ,   ,   ,REED MICHAEL D,2021-10-01,2021-12-31,DIR OF MBR SVCS & SENIOR ADV,44999.99,2021
,2021 OFFICE OF THE SPEAKER,,GENERAL EXPENDITURES,PERSONNEL COMPENSATION,DETAIL,   ,   ,   ,RUDD DIANA,2021-04-01,2021-12-31,MEMBER SERVICES DIR/COUNSEL,37499.97,2021
,2021 OFFICE OF THE SPEAKER,,GENERAL EXPENDITURES,PERSONNEL COMPENSATION,DETAIL,   ,   ,   ,RUIZ XENIA F,2021-03-01,2021-11-30,OUTREACH DIRECTOR,40000.02,2021
,2021 OFFICE OF THE SPEAKER,,GENERAL EXPENDITURES,PERSONNEL COMPENSATION,DETAIL,   ,   ,   ,RUSSELL MAYA A,2021-10-01,2021-12-31,DIGITAL DIRECTOR,14025,2021
,2021 OFFICE OF THE SPEAKER,,GENERAL EXPENDITURES,PERSONNEL COMPENSATION,DETAIL,   ,   ,   ,SCANNELL BROOKE A,2021-03-01,2021-12-31,SENIOR POLICY ADVISOR,58474.99,2021
,2021 OFFICE OF THE SPEAKER,,GENERAL EXPENDITURES,PERSONNEL COMPENSATION,DETAIL,   ,   ,   ,SHAIQ SAMAH N.,2021-11-01,2021-12-31,PRESS ASSISTANT,9125.93,2021
,2021 OFFICE OF THE SPEAKER,,GENERAL EXPENDITURES,PERSONNEL COMPENSATION,DETAIL,   ,   ,   ,SHAIQ SAMAH N.,2021-11-01,2021-11-30,PRESS ASSISTANT (OVERTIME),2811.51,2021
,2021 OFFICE OF THE SPEAKER,,GENERAL EXPENDITURES,PERSONNEL COMPENSATION,DETAIL,   ,   ,   ,SMITH KELSEY L,2021-03-01,2021-12-31,DIR. OF SCHEDULING & ADVANCE,22933.32,2021
,2021 OFFICE OF THE SPEAKER,,GENERAL EXPENDITURES,PERSONNEL COMPENSATION,DETAIL,   ,   ,   ,SMITH SHANE T,2021-10-01,2021-12-31,SPECIAL ASST TO THE SPEAKER,24999.99,2021
,2021 OFFICE OF THE SPEAKER,,GENERAL EXPENDITURES,PERSONNEL COMPENSATION,DETAIL,   ,   ,   ,SOENKSEN AMY C,2021-10-01,2021-12-31,DIR INTERGOV AFFAIRS MBR/SCVS,40000.01,2021
,2021 OFFICE OF THE SPEAKER,,GENERAL EXPENDITURES,PERSONNEL COMPENSATION,DETAIL,   ,   ,   ,SONG ANNA J.,2021-10-01,2021-12-31,OUTREACH ASSISTANT,17624.99,2021
,2021 OFFICE OF THE SPEAKER,,GENERAL EXPENDITURES,PERSONNEL COMPENSATION,DETAIL,   ,   ,   ,STERN KEITH L.,2021-10-01,2021-12-31,DIRECTOR OF FLOOR OPERATIONS,49825,2021
,2021 OFFICE OF THE SPEAKER,,GENERAL EXPENDITURES,PERSONNEL COMPENSATION,DETAIL,   ,   ,   ,TECKLENBURG MICHAEL H.,2021-10-01,2021-12-31,COUNSEL,39183.32,2021
,2021 OFFICE OF THE SPEAKER,,GENERAL EXPENDITURES,PERSONNEL COMPENSATION,DETAIL,   ,   ,   ,URRY ALEXANDER M,2021-10-01,2021-12-31,POLICY ADVISOR,20000.01,2021
,2021 OFFICE OF THE SPEAKER,,GENERAL EXPENDITURES,PERSONNEL COMPENSATION,DETAIL,   ,   ,   ,VERMILYEA SYDNEY S.,2021-10-01,2021-12-31,DEPUTY SCHEDULER,20416.67,2021
,2021 OFFICE OF THE SPEAKER,,GENERAL EXPENDITURES,PERSONNEL COMPENSATION,DETAIL,   ,   ,   ,WOLTERS KATE,2021-10-01,2021-12-31,DIRECTOR OF SPECIAL EVENTS,2499.99,2021
,2021 OFFICE OF THE SPEAKER,,GENERAL EXPENDITURES,PERSONNEL COMPENSATION,SUBTOTAL,   ,   ,   ,   ,   ,   ,PERSONNEL COMPENSATION TOTALS:,2012028.47,2021
,2021 OFFICE OF THE SPEAKER,,GENERAL EXPENDITURES,TRAVEL,DETAIL,2021-10-19,AP,1476654,CITIBANK GOV CARD SERVICE,2021-09-08,2021-09-08,AIRFARE COMMERCIAL TRANSPORT,177.4,2021
,2021 OFFICE OF THE SPEAKER,,GENERAL EXPENDITURES,TRAVEL,DETAIL,2021-10-19,AP,1476654,CITIBANK GOV CARD SERVICE,2021-09-09,2021-09-09,AIRFARE COMMERCIAL TRANSPORT,53.4,2021
,2021 OFFICE OF THE SPEAKER,,GENERAL EXPENDITURES,TRAVEL,DETAIL,2021-10-19,AP,1476654,CITIBANK GOV CARD SERVICE,2021-09-26,2021-09-26,AIRFARE COMMERCIAL TRANSPORT,128.4,2021
,2021 OFFICE OF THE SPEAKER,,GENERAL EXPENDITURES,TRAVEL,DETAIL,2021-10-19,AP,1476654,CITIBANK GOV CARD SERVICE,2021-09-27,2021-09-27,AIRFARE COMMERCIAL TRANSPORT,128.4,2021
,2021 OFFICE OF THE SPEAKER,,GENERAL EXPENDITURES,TRAVEL,DETAIL,2021-10-19,AP,1476654,CITIBANK GOV CARD SERVICE,2021-09-08,2021-09-09,LODGING,143.07,2021
,2021 OFFICE OF THE SPEAKER,,GENERAL EXPENDITURES,TRAVEL,DETAIL,2021-10-19,AP,1476697,CITIBANK GOV CARD SERVICE,2021-09-01,2021-09-02,AIRFARE COMMERCIAL TRANSPORT,574.79,2021
,2021 OFFICE OF THE SPEAKER,,GENERAL EXPENDITURES,TRAVEL,DETAIL,2021-10-19,AP,1476697,CITIBANK GOV CARD SERVICE,2021-09-07,2021-09-07,AIRFARE COMMERCIAL TRANSPORT,475.4,2021
,2021 OFFICE OF THE SPEAKER,,GENERAL EXPENDITURES,TRAVEL,DETAIL,2021-10-19,AP,1476697,CITIBANK GOV CARD SERVICE,2021-09-09,2021-09-09,AIRFARE COMMERCIAL TRANSPORT,170.2,2021
,2021 OFFICE OF THE SPEAKER,,GENERAL EXPENDITURES,TRAVEL,DETAIL,2021-10-19,AP,1476697,CITIBANK GOV CARD SERVICE,2021-09-10,2021-09-10,AIRFARE COMMERCIAL TRANSPORT,116.8,2021
,2021 OFFICE OF THE SPEAKER,,GENERAL EXPENDITURES,TRAVEL,DETAIL,2021-10-19,AP,1476697,CITIBANK GOV CARD SERVICE,2021-09-10,2021-09-12,AIRFARE COMMERCIAL TRANSPORT,116.8,2021
,2021 OFFICE OF THE SPEAKER,,GENERAL EXPENDITURES,TRAVEL,DETAIL,2021-10-19,AP,1476697,CITIBANK GOV CARD SERVICE,2021-09-11,2021-09-11,AIRFARE COMMERCIAL TRANSPORT,58.4,2021
,2021 OFFICE OF THE SPEAKER,,GENERAL EXPENDITURES,TRAVEL,DETAIL,2021-10-19,AP,1476697,CITIBANK GOV CARD SERVICE,2021-09-10,2021-09-11,LODGING,599.12,2021
,2021 OFFICE OF THE SPEAKER,,GENERAL EXPENDITURES,TRAVEL,DETAIL,2021-10-19,AP,1476697,CITIBANK GOV CARD SERVICE,2021-09-09,2021-09-09,TAXI/RIDE SHARE,139.74,2021
,2021 OFFICE OF THE SPEAKER,,GENERAL EXPENDITURES,TRAVEL,DETAIL,2021-10-19,AP,1476697,CITIBANK GOV CARD SERVICE,2021-09-11,2021-09-11,TAXI/RIDE SHARE,57.77,2021
,2021 OFFICE OF THE SPEAKER,,GENERAL EXPENDITURES,TRAVEL,DETAIL,2021-10-19,AP,1476768,CITIBANK GOV CARD SERVICE,2021-09-01,2021-09-01,AIRFARE COMMERCIAL TRANSPORT,128.4,2021
,2021 OFFICE OF THE SPEAKER,,GENERAL EXPENDITURES,TRAVEL,DETAIL,2021-10-19,AP,1476768,CITIBANK GOV CARD SERVICE,2021-09-02,2021-09-02,AIRFARE COMMERCIAL TRANSPORT,330.8,2021
,2021 OFFICE OF THE SPEAKER,,GENERAL EXPENDITURES,TRAVEL,DETAIL,2021-10-19,AP,1476768,CITIBANK GOV CARD SERVICE,2021-09-01,2021-09-02,LODGING,230.34,2021
,2021 OFFICE OF THE SPEAKER,,GENERAL EXPENDITURES,TRAVEL,DETAIL,2021-10-19,AP,1476768,CITIBANK GOV CARD SERVICE,2021-09-02,2021-09-02,MEALS,32.47,2021
,2021 OFFICE OF THE SPEAKER,,GENERAL EXPENDITURES,TRAVEL,DETAIL,2021-10-19,AP,1476851,CITIBANK GOV CARD SERVICE,2021-09-10,2021-09-10,AIRFARE COMMERCIAL TRANSPORT,68.4,2021
,2021 OFFICE OF THE SPEAKER,,GENERAL EXPENDITURES,TRAVEL,DETAIL,2021-10-19,AP,1477036,BLANKENSHIP ALLISON W.,2021-09-23,2021-09-23,TAXI/RIDE SHARE,13.95,2021
,2021 OFFICE OF THE SPEAKER,,GENERAL EXPENDITURES,TRAVEL,DETAIL,2021-10-19,AP,1477036,BLANKENSHIP ALLISON W.,2021-10-01,2021-10-01,TAXI/RIDE SHARE,23.13,2021
,2021 OFFICE OF THE SPEAKER,,GENERAL EXPENDITURES,TRAVEL,DETAIL,2021-10-19,AP,1477264,CITIBANK GOV CARD SERVICE,2021-09-07,2021-09-07,AIRFARE COMMERCIAL TRANSPORT,185.2,2021
,2021 OFFICE OF THE SPEAKER,,GENERAL EXPENDITURES,TRAVEL,DETAIL,2021-10-19,AP,1477264,CITIBANK GOV CARD SERVICE,2021-09-09,2021-09-09,AIRFARE COMMERCIAL TRANSPORT,53.4,2021
,2021 OFFICE OF THE SPEAKER,,GENERAL EXPENDITURES,TRAVEL,DETAIL,2021-10-19,AP,1477264,CITIBANK GOV CARD SERVICE,2021-09-10,2021-09-10,AIRFARE COMMERCIAL TRANSPORT,434.81,2021
,2021 OFFICE OF THE SPEAKER,,GENERAL EXPENDITURES,TRAVEL,DETAIL,2021-10-19,AP,1477264,CITIBANK GOV CARD SERVICE,2021-09-07,2021-09-09,LODGING,286.14,2021
,2021 OFFICE OF THE SPEAKER,,GENERAL EXPENDITURES,TRAVEL,DETAIL,2021-10-19,AP,1477264,CITIBANK GOV CARD SERVICE,2021-09-07,2021-09-07,MEALS,42.28,2021
,2021 OFFICE OF THE SPEAKER,,GENERAL EXPENDITURES,TRAVEL,DETAIL,2021-10-19,AP,1477264,CITIBANK GOV CARD SERVICE,2021-09-08,2021-09-08,MEALS,8.56,2021
,2021 OFFICE OF THE SPEAKER,,GENERAL EXPENDITURES,TRAVEL,DETAIL,2021-10-19,AP,1477264,CITIBANK GOV CARD SERVICE,2021-09-09,2021-09-09,MEALS,14.14,2021
,2021 OFFICE OF THE SPEAKER,,GENERAL EXPENDITURES,TRAVEL,DETAIL,2021-10-19,AP,1477264,CITIBANK GOV CARD SERVICE,2021-09-07,2021-09-07,TAXI/RIDE SHARE,81.49,2021
,2021 OFFICE OF THE SPEAKER,,GENERAL EXPENDITURES,TRAVEL,DETAIL,2021-10-19,AP,1477264,CITIBANK GOV CARD SERVICE,2021-09-09,2021-09-09,TAXI/RIDE SHARE,82.76,2021
,2021 OFFICE OF THE SPEAKER,,GENERAL EXPENDITURES,TRAVEL,DETAIL,2021-11-02,AP,1484157,SOENKSEN AMY C,2021-10-21,2021-10-22,TAXI/RIDE SHARE,48.95,2021
,2021 OFFICE OF THE SPEAKER,,GENERAL EXPENDITURES,TRAVEL,DETAIL,2021-11-02,AP,1484855,VERMILYEA SYDNEY S.,2021-10-01,2021-10-28,TAXI/RIDE SHARE,45.82,2021
,2021 OFFICE OF THE SPEAKER,,GENERAL EXPENDITURES,TRAVEL,DETAIL,2021-11-03,AP,1484163,BLANKENSHIP ALLISON W.,2021-10-19,2021-10-22,TAXI/RIDE SHARE,108.99,2021
,2021 OFFICE OF THE SPEAKER,,GENERAL EXPENDITURES,TRAVEL,DETAIL,2021-11-03,AP,1484554,BLANKENSHIP ALLISON W.,2021-10-25,2021-10-28,TAXI/RIDE SHARE,145.17,2021
,2021 OFFICE OF THE SPEAKER,,GENERAL EXPENDITURES,TRAVEL,DETAIL,2021-11-18,AP,1487987,HIDALGO ADRIANA N.,2021-09-02,2021-09-02,TAXI/RIDE SHARE,31.66,2021
,2021 OFFICE OF THE SPEAKER,,GENERAL EXPENDITURES,TRAVEL,DETAIL,2021-11-18,AP,1487990,BLANKENSHIP ALLISON W.,2021-11-01,2021-11-06,TAXI/RIDE SHARE,229.63,2021
,2021 OFFICE OF THE SPEAKER,,GENERAL EXPENDITURES,TRAVEL,DETAIL,2021-11-18,AP,1491516,BLANKENSHIP ALLISON W.,2021-11-10,2021-11-12,TAXI/RIDE SHARE,54.54,2021
,2021 OFFICE OF THE SPEAKER,,GENERAL EXPENDITURES,TRAVEL,DETAIL,2021-11-20,AP,1486120,CITIBANK GOV CARD SERVICE,2021-10-02,2021-10-02,AIRFARE COMMERCIAL TRANSPORT,149,2021
,2021 OFFICE OF THE SPEAKER,,GENERAL EXPENDITURES,TRAVEL,DETAIL,2021-11-20,AP,1486120,CITIBANK GOV CARD SERVICE,2021-10-17,2021-10-19,AIRFARE COMMERCIAL TRANSPORT,760.96,2021
,2021 OFFICE OF THE SPEAKER,,GENERAL EXPENDITURES,TRAVEL,DETAIL,2021-11-20,AP,1486120,CITIBANK GOV CARD SERVICE,2021-10-17,2021-10-19,LODGING,929.58,2021
,2021 OFFICE OF THE SPEAKER,,GENERAL EXPENDITURES,TRAVEL,DETAIL,2021-11-20,AP,1486120,CITIBANK GOV CARD SERVICE,2021-10-18,2021-10-18,MEALS,94.63,2021
,2021 OFFICE OF THE SPEAKER,,GENERAL EXPENDITURES,TRAVEL,DETAIL,2021-11-20,AP,1487690,CITI PCARD-201 AS IN FLIGHT SERVICE,2021-09-30,2021-09-30,MEALS,345.83,2021
,2021 OFFICE OF THE SPEAKER,,GENERAL EXPENDITURES,TRAVEL,DETAIL,2021-11-20,AP,1487717,CITIBANK GOV CARD SERVICE,2021-10-17,2021-10-17,AIRFARE COMMERCIAL TRANSPORT,362.4,2021
,2021 OFFICE OF THE SPEAKER,,GENERAL EXPENDITURES,TRAVEL,DETAIL,2021-11-20,AP,1487717,CITIBANK GOV CARD SERVICE,2021-10-18,2021-10-18,AIRFARE COMMERCIAL TRANSPORT,153.4,2021
,2021 OFFICE OF THE SPEAKER,,GENERAL EXPENDITURES,TRAVEL,DETAIL,2021-11-20,AP,1487717,CITIBANK GOV CARD SERVICE,2021-10-19,2021-10-19,AIRFARE COMMERCIAL TRANSPORT,170.2,2021
,2021 OFFICE OF THE SPEAKER,,GENERAL EXPENDITURES,TRAVEL,DETAIL,2021-11-20,AP,1487717,CITIBANK GOV CARD SERVICE,2021-10-17,2021-10-18,LODGING,462.71,2021
,2021 OFFICE OF THE SPEAKER,,GENERAL EXPENDITURES,TRAVEL,DETAIL,2021-11-20,AP,1487717,CITIBANK GOV CARD SERVICE,2021-10-18,2021-10-19,LODGING,464.79,2021
,2021 OFFICE OF THE SPEAKER,,GENERAL EXPENDITURES,TRAVEL,DETAIL,2021-11-20,AP,1487717,CITIBANK GOV CARD SERVICE,2021-10-17,2021-10-17,MEALS,68.8,2021
,2021 OFFICE OF THE SPEAKER,,GENERAL EXPENDITURES,TRAVEL,DETAIL,2021-11-20,AP,1487717,CITIBANK GOV CARD SERVICE,2021-10-18,2021-10-18,MEALS,35.8,2021
,2021 OFFICE OF THE SPEAKER,,GENERAL EXPENDITURES,TRAVEL,DETAIL,2021-11-20,AP,1487717,CITIBANK GOV CARD SERVICE,2021-10-19,2021-10-19,MEALS,37.81,2021
,2021 OFFICE OF THE SPEAKER,,GENERAL EXPENDITURES,TRAVEL,DETAIL,2021-11-20,AP,1487963,CITIBANK GOV CARD SERVICE,2021-10-13,2021-10-16,AIRFARE COMMERCIAL TRANSPORT,518.81,2021
,2021 OFFICE OF THE SPEAKER,,GENERAL EXPENDITURES,TRAVEL,DETAIL,2021-11-20,AP,1487963,CITIBANK GOV CARD SERVICE,2021-10-22,2021-10-22,AIRFARE COMMERCIAL TRANSPORT,163.4,2021
,2021 OFFICE OF THE SPEAKER,,GENERAL EXPENDITURES,TRAVEL,DETAIL,2021-11-20,AP,1487963,CITIBANK GOV CARD SERVICE,2021-10-23,2021-10-23,AIRFARE COMMERCIAL TRANSPORT,103.4,2021
,2021 OFFICE OF THE SPEAKER,,GENERAL EXPENDITURES,TRAVEL,DETAIL,2021-11-20,AP,1487963,CITIBANK GOV CARD SERVICE,2021-10-13,2021-10-16,LODGING,681.09,2021
,2021 OFFICE OF THE SPEAKER,,GENERAL EXPENDITURES,TRAVEL,DETAIL,2021-11-20,AP,1487963,CITIBANK GOV CARD SERVICE,2021-10-22,2021-10-23,LODGING,152.95,2021
,2021 OFFICE OF THE SPEAKER,,GENERAL EXPENDITURES,TRAVEL,DETAIL,2021-11-20,AP,1487963,CITIBANK GOV CARD SERVICE,2021-10-13,2021-10-13,MEALS,38.51,2021
,2021 OFFICE OF THE SPEAKER,,GENERAL EXPENDITURES,TRAVEL,DETAIL,2021-11-20,AP,1487963,CITIBANK GOV CARD SERVICE,2021-10-14,2021-10-14,MEALS,52.26,2021
,2021 OFFICE OF THE SPEAKER,,GENERAL EXPENDITURES,TRAVEL,DETAIL,2021-11-20,AP,1487963,CITIBANK GOV CARD SERVICE,2021-10-15,2021-10-15,MEALS,41.58,2021
,2021 OFFICE OF THE SPEAKER,,GENERAL EXPENDITURES,TRAVEL,DETAIL,2021-11-20,AP,1487963,CITIBANK GOV CARD SERVICE,2021-10-16,2021-10-16,MEALS,11.84,2021
,2021 OFFICE OF THE SPEAKER,,GENERAL EXPENDITURES,TRAVEL,DETAIL,2021-11-20,AP,1488092,CITIBANK GOV CARD SERVICE,2021-10-22,2021-10-22,AIRFARE COMMERCIAL TRANSPORT,227.4,2021
,2021 OFFICE OF THE SPEAKER,,GENERAL EXPENDITURES,TRAVEL,DETAIL,2021-11-20,AP,1488092,CITIBANK GOV CARD SERVICE,2021-10-23,2021-10-23,AIRFARE COMMERCIAL TRANSPORT,424.8,2021
,2021 OFFICE OF THE SPEAKER,,GENERAL EXPENDITURES,TRAVEL,DETAIL,2021-11-20,AP,1488092,CITIBANK GOV CARD SERVICE,2021-10-29,2021-10-29,AIRFARE COMMERCIAL TRANSPORT,324.4,2021
,2021 OFFICE OF THE SPEAKER,,GENERAL EXPENDITURES,TRAVEL,DETAIL,2021-11-20,AP,1488092,CITIBANK GOV CARD SERVICE,2021-10-30,2021-10-30,AIRFARE COMMERCIAL TRANSPORT,248.4,2021
,2021 OFFICE OF THE SPEAKER,,GENERAL EXPENDITURES,TRAVEL,DETAIL,2021-11-20,AP,1488092,CITIBANK GOV CARD SERVICE,2021-09-26,2021-09-27,LODGING,410.9,2021
,2021 OFFICE OF THE SPEAKER,,GENERAL EXPENDITURES,TRAVEL,DETAIL,2021-11-20,AP,1488092,CITIBANK GOV CARD SERVICE,2021-10-22,2021-10-23,LODGING,386.55,2021
,2021 OFFICE OF THE SPEAKER,,GENERAL EXPENDITURES,TRAVEL,DETAIL,2021-11-20,AP,1488092,CITIBANK GOV CARD SERVICE,2021-09-27,2021-09-27,MEALS,9.72,2021
,2021 OFFICE OF THE SPEAKER,,GENERAL EXPENDITURES,TRAVEL,DETAIL,2021-11-20,AP,1488092,CITIBANK GOV CARD SERVICE,2021-10-23,2021-10-23,TAXI/RIDE SHARE,145.21,2021
,2021 OFFICE OF THE SPEAKER,,GENERAL EXPENDITURES,TRAVEL,DETAIL,2021-11-20,AP,1488228,CITIBANK GOV CARD SERVICE,2021-10-22,2021-10-24,AIRFARE COMMERCIAL TRANSPORT,390.8,2021
,2021 OFFICE OF THE SPEAKER,,GENERAL EXPENDITURES,TRAVEL,DETAIL,2021-11-20,AP,1488228,CITIBANK GOV CARD SERVICE,2021-10-22,2021-10-23,LODGING,152.95,2021
,2021 OFFICE OF THE SPEAKER,,GENERAL EXPENDITURES,TRAVEL,DETAIL,2021-11-20,AP,1488228,CITIBANK GOV CARD SERVICE,2021-10-22,2021-10-22,MEALS,48.23,2021
,2021 OFFICE OF THE SPEAKER,,GENERAL EXPENDITURES,TRAVEL,DETAIL,2021-11-20,AP,1488228,CITIBANK GOV CARD SERVICE,2021-10-23,2021-10-23,MEALS,13.63,2021
,2021 OFFICE OF THE SPEAKER,,GENERAL EXPENDITURES,TRAVEL,DETAIL,2021-11-20,AP,1488228,CITIBANK GOV CARD SERVICE,2021-10-22,2021-10-22,TAXI/RIDE SHARE,94.87,2021
,2021 OFFICE OF THE SPEAKER,,GENERAL EXPENDITURES,TRAVEL,DETAIL,2021-11-20,AP,1488228,CITIBANK GOV CARD SERVICE,2021-10-23,2021-10-23,TAXI/RIDE SHARE,24.98,2021
,2021 OFFICE OF THE SPEAKER,,GENERAL EXPENDITURES,TRAVEL,DETAIL,2021-11-20,AP,1488228,CITIBANK GOV CARD SERVICE,2021-10-24,2021-10-24,TAXI/RIDE SHARE,28,2021
,2021 OFFICE OF THE SPEAKER,,GENERAL EXPENDITURES,TRAVEL,DETAIL,2021-11-20,AP,1491514,BERRET EMILY C.,2021-11-11,2021-11-12,LODGING,262.13,2021
,2021 OFFICE OF THE SPEAKER,,GENERAL EXPENDITURES,TRAVEL,DETAIL,2021-11-20,AP,1491514,BERRET EMILY C.,2021-11-12,2021-11-12,TAXI/RIDE SHARE,37.94,2021
,2021 OFFICE OF THE SPEAKER,,GENERAL EXPENDITURES,TRAVEL,DETAIL,2021-11-26,AP,1494870,HIDALGO ADRIANA N.,2021-10-19,2021-10-19,TAXI/RIDE SHARE,34.84,2021
,2021 OFFICE OF THE SPEAKER,,GENERAL EXPENDITURES,TRAVEL,DETAIL,2021-11-26,AP,1494873,SOENKSEN AMY C,2021-11-19,2021-11-19,TAXI/RIDE SHARE,34.77,2021
,2021 OFFICE OF THE SPEAKER,,GENERAL EXPENDITURES,TRAVEL,DETAIL,2021-12-13,AP,1498578,CITIBANK GOV CARD SERVICE,2021-10-30,2021-10-30,AIRFARE COMMERCIAL TRANSPORT,31.42,2021
,2021 OFFICE OF THE SPEAKER,,GENERAL EXPENDITURES,TRAVEL,DETAIL,2021-12-13,AP,1498578,CITIBANK GOV CARD SERVICE,2021-10-29,2021-10-30,LODGING,391.02,2021
,2021 OFFICE OF THE SPEAKER,,GENERAL EXPENDITURES,TRAVEL,DETAIL,2021-12-13,AP,1498578,CITIBANK GOV CARD SERVICE,2021-10-30,2021-10-30,TAXI/RIDE SHARE,26.78,2021
,2021 OFFICE OF THE SPEAKER,,GENERAL EXPENDITURES,TRAVEL,DETAIL,2021-12-13,AP,1498586,CITIBANK GOV CARD SERVICE,2021-11-30,2021-11-30,AIRFARE COMMERCIAL TRANSPORT,57.4,2021
,2021 OFFICE OF THE SPEAKER,,GENERAL EXPENDITURES,TRAVEL,DETAIL,2021-12-13,AP,1498586,CITIBANK GOV CARD SERVICE,2021-11-11,2021-11-12,LODGING,247.18,2021
,2021 OFFICE OF THE SPEAKER,,GENERAL EXPENDITURES,TRAVEL,DETAIL,2021-12-13,AP,1498586,CITIBANK GOV CARD SERVICE,2021-11-04,2021-11-04,TAXI/RIDE SHARE,63.87,2021
,2021 OFFICE OF THE SPEAKER,,GENERAL EXPENDITURES,TRAVEL,DETAIL,2021-12-13,AP,1498586,CITIBANK GOV CARD SERVICE,2021-11-12,2021-11-12,TAXI/RIDE SHARE,47.51,2021
,2021 OFFICE OF THE SPEAKER,,GENERAL EXPENDITURES,TRAVEL,DETAIL,2021-12-13,AP,1498603,SOENKSEN AMY C,2021-12-02,2021-12-02,TAXI/RIDE SHARE,108.89,2021
,2021 OFFICE OF THE SPEAKER,,GENERAL EXPENDITURES,TRAVEL,DETAIL,2021-12-13,AP,1498604,VERMILYEA SYDNEY S.,2021-10-26,2021-11-10,TAXI/RIDE SHARE,196.72,2021
,2021 OFFICE OF THE SPEAKER,,GENERAL EXPENDITURES,TRAVEL,DETAIL,2021-12-13,AP,1499425,CITIBANK GOV CARD SERVICE,2021-11-06,2021-11-07,AIRFARE COMMERCIAL TRANSPORT,259.4,2021
,2021 OFFICE OF THE SPEAKER,,GENERAL EXPENDITURES,TRAVEL,DETAIL,2021-12-17,AP,1504237,SHAIQ SAMAH N.,2021-11-05,2021-11-30,TAXI/RIDE SHARE,167.06,2021
,2021 OFFICE OF THE SPEAKER,,GENERAL EXPENDITURES,TRAVEL,SUBTOTAL,   ,   ,   ,   ,   ,   ,TRAVEL TOTALS:,16318.24,2021
,2021 OFFICE OF THE SPEAKER,,GENERAL EXPENDITURES,RENT  COMMUNICATION  UTILITIES,DETAIL,2021-10-19,AP,1476697,CITIBANK GOV CARD SERVICE,2021-09-09,2021-09-09,UTILITIES,27,2021
,2021 OFFICE OF THE SPEAKER,,GENERAL EXPENDITURES,RENT  COMMUNICATION  UTILITIES,DETAIL,2021-10-19,AP,1476697,CITIBANK GOV CARD SERVICE,2021-09-12,2021-09-13,UTILITIES,29.99,2021
,2021 OFFICE OF THE SPEAKER,,GENERAL EXPENDITURES,RENT  COMMUNICATION  UTILITIES,DETAIL,2021-10-19,AP,1476697,CITIBANK GOV CARD SERVICE,2021-09-20,2021-09-20,UTILITIES,31.99,2021
,2021 OFFICE OF THE SPEAKER,,GENERAL EXPENDITURES,RENT  COMMUNICATION  UTILITIES,DETAIL,2021-10-19,AP,1476768,CITIBANK GOV CARD SERVICE,2021-09-01,2021-09-01,UTILITIES,20.99,2021
,2021 OFFICE OF THE SPEAKER,,GENERAL EXPENDITURES,RENT  COMMUNICATION  UTILITIES,DETAIL,2021-10-19,AP,1476768,CITIBANK GOV CARD SERVICE,2021-09-02,2021-09-02,UTILITIES,12.99,2021
,2021 OFFICE OF THE SPEAKER,,GENERAL EXPENDITURES,RENT  COMMUNICATION  UTILITIES,DETAIL,2021-10-25,GL,EMS0110562, ,2021-09-01,2021-09-30,DC TELECOM EQUIP (TRANSFER),228,2021
,2021 OFFICE OF THE SPEAKER,,GENERAL EXPENDITURES,RENT  COMMUNICATION  UTILITIES,DETAIL,2021-10-25,GL,EMS0110562, ,2021-09-01,2021-09-30,DC TELECOM SERV (TRANSFER),1212,2021
,2021 OFFICE OF THE SPEAKER,,GENERAL EXPENDITURES,RENT  COMMUNICATION  UTILITIES,DETAIL,2021-10-25,GL,EMS0110562, ,2021-09-01,2021-09-30,DC TELECOM TOLLS (TRANSFER),8761.84,2021
,2021 OFFICE OF THE SPEAKER,,GENERAL EXPENDITURES,RENT  COMMUNICATION  UTILITIES,DETAIL,2021-10-26,GL,MED0110469, ,2021-09-23,2021-10-20,HIR GRAPHICS (TRANSFER),428,2021
,2021 OFFICE OF THE SPEAKER,,GENERAL EXPENDITURES,RENT  COMMUNICATION  UTILITIES,DETAIL,2021-11-08,AP,1484165,FEDEX,2021-09-25,2021-09-25,POSTAGE / COURIER / BOX RENTAL,44.34,2021
,2021 OFFICE OF THE SPEAKER,,GENERAL EXPENDITURES,RENT  COMMUNICATION  UTILITIES,DETAIL,2021-11-16,GL,GLA0110970, ,2021-10-01,2021-10-31,HIR GRAPHICS (TRANSFER),18,2021
,2021 OFFICE OF THE SPEAKER,,GENERAL EXPENDITURES,RENT  COMMUNICATION  UTILITIES,DETAIL,2021-11-20,AP,1486120,CITIBANK GOV CARD SERVICE,2021-10-19,2021-10-19,UTILITIES,8,2021
,2021 OFFICE OF THE SPEAKER,,GENERAL EXPENDITURES,RENT  COMMUNICATION  UTILITIES,DETAIL,2021-11-20,AP,1487717,CITIBANK GOV CARD SERVICE,2021-10-18,2021-10-18,UTILITIES,9,2021
,2021 OFFICE OF THE SPEAKER,,GENERAL EXPENDITURES,RENT  COMMUNICATION  UTILITIES,DETAIL,2021-11-20,AP,1487963,CITIBANK GOV CARD SERVICE,2021-10-13,2021-10-13,UTILITIES,28.99,2021
,2021 OFFICE OF THE SPEAKER,,GENERAL EXPENDITURES,RENT  COMMUNICATION  UTILITIES,DETAIL,2021-11-20,AP,1487993,FEDEX,2021-10-19,2021-10-19,POSTAGE / COURIER / BOX RENTAL,17.06,2021
,2021 OFFICE OF THE SPEAKER,,GENERAL EXPENDITURES,RENT  COMMUNICATION  UTILITIES,DETAIL,2021-11-20,AP,1488228,CITIBANK GOV CARD SERVICE,2021-10-22,2021-10-22,UTILITIES,10,2021
,2021 OFFICE OF THE SPEAKER,,GENERAL EXPENDITURES,RENT  COMMUNICATION  UTILITIES,DETAIL,2021-11-20,AP,1491514,BERRET EMILY C.,2021-11-12,2021-11-12,UTILITIES,23.99,2021
,2021 OFFICE OF THE SPEAKER,,GENERAL EXPENDITURES,RENT  COMMUNICATION  UTILITIES,DETAIL,2021-11-24,GL,EMS0111169, ,2021-10-01,2021-10-31,DC TELECOM EQUIP (TRANSFER),228,2021
,2021 OFFICE OF THE SPEAKER,,GENERAL EXPENDITURES,RENT  COMMUNICATION  UTILITIES,DETAIL,2021-11-24,GL,EMS0111169, ,2021-10-01,2021-10-31,DC TELECOM SERV (TRANSFER),1212,2021
,2021 OFFICE OF THE SPEAKER,,GENERAL EXPENDITURES,RENT  COMMUNICATION  UTILITIES,DETAIL,2021-11-24,GL,EMS0111169, ,2021-10-01,2021-10-31,DC TELECOM TOLLS (TRANSFER),9648.72,2021
,2021 OFFICE OF THE SPEAKER,,GENERAL EXPENDITURES,RENT  COMMUNICATION  UTILITIES,DETAIL,2021-11-24,GL,MED0111171, ,2021-11-03,2021-11-18,HIR GRAPHICS (TRANSFER),100,2021
,2021 OFFICE OF THE SPEAKER,,GENERAL EXPENDITURES,RENT  COMMUNICATION  UTILITIES,DETAIL,2021-11-26,AP,1494870,HIDALGO ADRIANA N.,2021-10-20,2021-10-20,UTILITIES,39.95,2021
,2021 OFFICE OF THE SPEAKER,,GENERAL EXPENDITURES,RENT  COMMUNICATION  UTILITIES,DETAIL,2021-12-13,AP,1498586,CITIBANK GOV CARD SERVICE,2021-11-04,2021-11-04,UTILITIES,16.99,2021
,2021 OFFICE OF THE SPEAKER,,GENERAL EXPENDITURES,RENT  COMMUNICATION  UTILITIES,DETAIL,2021-12-13,AP,1498586,CITIBANK GOV CARD SERVICE,2021-11-12,2021-11-12,UTILITIES,23.99,2021
,2021 OFFICE OF THE SPEAKER,,GENERAL EXPENDITURES,RENT  COMMUNICATION  UTILITIES,DETAIL,2021-12-13,AP,1498680,FEDEX,2021-10-27,2021-10-27,POSTAGE / COURIER / BOX RENTAL,7.72,2021
,2021 OFFICE OF THE SPEAKER,,GENERAL EXPENDITURES,RENT  COMMUNICATION  UTILITIES,DETAIL,2021-12-13,AP,1498741,WOLTERS KATE,2021-12-01,2021-12-01,POSTAGE / COURIER / BOX RENTAL,216.58,2021
,2021 OFFICE OF THE SPEAKER,,GENERAL EXPENDITURES,RENT  COMMUNICATION  UTILITIES,DETAIL,2021-12-17,AP,1504232,FEDEX,2021-11-16,2021-11-16,POSTAGE / COURIER / BOX RENTAL,77.76,2021
,2021 OFFICE OF THE SPEAKER,,GENERAL EXPENDITURES,RENT  COMMUNICATION  UTILITIES,DETAIL,2021-12-27,GL,EMS0111861, ,2021-11-01,2021-11-30,DC TELECOM EQUIP (TRANSFER),228,2021
,2021 OFFICE OF THE SPEAKER,,GENERAL EXPENDITURES,RENT  COMMUNICATION  UTILITIES,DETAIL,2021-12-27,GL,EMS0111861, ,2021-11-01,2021-11-30,DC TELECOM SERV (TRANSFER),1227.5,2021
,2021 OFFICE OF THE SPEAKER,,GENERAL EXPENDITURES,RENT  COMMUNICATION  UTILITIES,DETAIL,2021-12-27,GL,EMS0111861, ,2021-11-01,2021-11-30,DC TELECOM TOLLS (TRANSFER),8476.57,2021
,2021 OFFICE OF THE SPEAKER,,GENERAL EXPENDITURES,RENT  COMMUNICATION  UTILITIES,DETAIL,2021-12-27,GL,MED0111855, ,2021-11-30,2021-12-03,HIR GRAPHICS (TRANSFER),328,2021
,2021 OFFICE OF THE SPEAKER,,GENERAL EXPENDITURES,RENT  COMMUNICATION  UTILITIES,SUBTOTAL,   ,   ,   ,   ,   ,   ,RENT  COMMUNICATION  UTILITIES TOTALS:,32743.96,2021
,2021 OFFICE OF THE SPEAKER,,GENERAL EXPENDITURES,PRINTING AND REPRODUCTION,DETAIL,2021-10-19,AP,1477041,ACCURATE WORD,2021-09-29,2021-09-29,FRANKABLE PRINTING & REPROD,33,2021
,2021 OFFICE OF THE SPEAKER,,GENERAL EXPENDITURES,PRINTING AND REPRODUCTION,DETAIL,2021-10-19,AP,1477266,SHARP ELECTRONICS CORPORATIION,2021-06-22,2021-09-24,FRANKABLE PRINTING & REPROD,280.62,2021
,2021 OFFICE OF THE SPEAKER,,GENERAL EXPENDITURES,PRINTING AND REPRODUCTION,DETAIL,2021-10-21,AP,1476846,CITI PCARD-FACEBK BQSPU772M2,2021-09-08,2021-09-09,ADVERTISEMENTS,750,2021
,2021 OFFICE OF THE SPEAKER,,GENERAL EXPENDITURES,PRINTING AND REPRODUCTION,DETAIL,2021-10-21,AP,1476846,CITI PCARD-FACEBK HMSRW7B2M2,2021-09-14,2021-09-23,ADVERTISEMENTS,750,2021
,2021 OFFICE OF THE SPEAKER,,GENERAL EXPENDITURES,PRINTING AND REPRODUCTION,DETAIL,2021-10-21,AP,1476846,CITI PCARD-FACEBK KMKRK6XZL2,2021-09-09,2021-09-15,ADVERTISEMENTS,750,2021
,2021 OFFICE OF THE SPEAKER,,GENERAL EXPENDITURES,PRINTING AND REPRODUCTION,DETAIL,2021-10-21,AP,1476846,CITI PCARD-FACEBK T63J97B2M2,2021-08-20,2021-08-21,ADVERTISEMENTS,595.21,2021
,2021 OFFICE OF THE SPEAKER,,GENERAL EXPENDITURES,PRINTING AND REPRODUCTION,DETAIL,2021-10-26,GL,MED0110469, ,2021-10-04,2021-10-14,PHOTOGRAPHIC (TRANSFER),293.2,2021
,2021 OFFICE OF THE SPEAKER,,GENERAL EXPENDITURES,PRINTING AND REPRODUCTION,DETAIL,2021-11-20,AP,1486120,CITIBANK GOV CARD SERVICE,2021-10-18,2021-10-18,FRANKABLE PRINTING & REPROD,242.23,2021
,2021 OFFICE OF THE SPEAKER,,GENERAL EXPENDITURES,PRINTING AND REPRODUCTION,DETAIL,2021-11-22,AP,1489213,CITI PCARD-FACEBK 2LEA39TZL2,2021-10-13,2021-10-15,ADVERTISEMENTS,750,2021
,2021 OFFICE OF THE SPEAKER,,GENERAL EXPENDITURES,PRINTING AND REPRODUCTION,DETAIL,2021-11-22,AP,1489213,CITI PCARD-FACEBK 4KTCK832M2,2021-10-01,2021-10-13,ADVERTISEMENTS,750,2021
,2021 OFFICE OF THE SPEAKER,,GENERAL EXPENDITURES,PRINTING AND REPRODUCTION,DETAIL,2021-11-22,AP,1489213,CITI PCARD-FACEBK 7KPCP7K2M2,2021-09-23,2021-09-29,ADVERTISEMENTS,415.31,2021
,2021 OFFICE OF THE SPEAKER,,GENERAL EXPENDITURES,PRINTING AND REPRODUCTION,DETAIL,2021-11-22,AP,1489213,CITI PCARD-FACEBK GX8L98P2M2,2021-09-29,2021-10-02,ADVERTISEMENTS,750,2021
,2021 OFFICE OF THE SPEAKER,,GENERAL EXPENDITURES,PRINTING AND REPRODUCTION,DETAIL,2021-11-22,AP,1489213,CITI PCARD-FACEBK P3M5E7XZL2,2021-10-13,2021-10-14,ADVERTISEMENTS,750,2021
,2021 OFFICE OF THE SPEAKER,,GENERAL EXPENDITURES,PRINTING AND REPRODUCTION,DETAIL,2021-11-24,GL,MED0111171, ,2021-10-29,2021-11-23,PHOTOGRAPHIC (TRANSFER),500,2021
,2021 OFFICE OF THE SPEAKER,,GENERAL EXPENDITURES,PRINTING AND REPRODUCTION,DETAIL,2021-12-13,AP,1498689,ACCURATE WORD,2021-11-19,2021-11-19,FRANKABLE PRINTING & REPROD,43,2021
,2021 OFFICE OF THE SPEAKER,,GENERAL EXPENDITURES,PRINTING AND REPRODUCTION,DETAIL,2021-12-13,AP,1498756,CITI PCARD-FACEBK WBZGV7XZL2,2021-10-14,2021-10-15,ADVERTISEMENTS,233.92,2021
,2021 OFFICE OF THE SPEAKER,,GENERAL EXPENDITURES,PRINTING AND REPRODUCTION,DETAIL,2021-12-27,GL,MED0111855, ,2021-12-07,2021-12-16,PHOTOGRAPHIC (TRANSFER),140,2021
,2021 OFFICE OF THE SPEAKER,,GENERAL EXPENDITURES,PRINTING AND REPRODUCTION,SUBTOTAL,   ,   ,   ,   ,   ,   ,PRINTING AND REPRODUCTION TOTALS:,8026.49,2021
,2021 OFFICE OF THE SPEAKER,,GENERAL EXPENDITURES,OTHER SERVICES,DETAIL,2021-10-15,AP,1477125,FISCALNOTE INC,2021-09-01,2021-09-30,WEB DEV HST EMAIL & RLTD SERV,350,2021
,2021 OFFICE OF THE SPEAKER,,GENERAL EXPENDITURES,OTHER SERVICES,DETAIL,2021-10-16,AP,1478262,LEIDOS DIGITAL SOLUTIONS INC,2021-10-01,2021-10-31,TECHNOLOGY SERVICE CONTRACTS,1925,2021
,2021 OFFICE OF THE SPEAKER,,GENERAL EXPENDITURES,OTHER SERVICES,DETAIL,2021-10-16,AP,1478263,LEIDOS DIGITAL SOLUTIONS INC,2021-10-01,2021-10-31,TECHNOLOGY SERVICE CONTRACTS,10594,2021
,2021 OFFICE OF THE SPEAKER,,GENERAL EXPENDITURES,OTHER SERVICES,DETAIL,2021-11-09,AP,1487692,FISCALNOTE INC,2021-10-01,2021-10-31,WEB DEV HST EMAIL & RLTD SERV,350,2021
,2021 OFFICE OF THE SPEAKER,,GENERAL EXPENDITURES,OTHER SERVICES,DETAIL,2021-11-16,AP,1490736,LEIDOS DIGITAL SOLUTIONS INC,2021-11-01,2021-11-30,TECHNOLOGY SERVICE CONTRACTS,1925,2021
,2021 OFFICE OF THE SPEAKER,,GENERAL EXPENDITURES,OTHER SERVICES,DETAIL,2021-11-16,AP,1490737,LEIDOS DIGITAL SOLUTIONS INC,2021-11-01,2021-11-30,TECHNOLOGY SERVICE CONTRACTS,10594,2021
,2021 OFFICE OF THE SPEAKER,,GENERAL EXPENDITURES,OTHER SERVICES,DETAIL,2021-12-13,AP,1498756,CITI PCARD-DROPBOX LXK82MYDK1CZ,2021-11-01,2021-11-01,TECHNOLOGY SERVICE CONTRACTS,17.24,2021
,2021 OFFICE OF THE SPEAKER,,GENERAL EXPENDITURES,OTHER SERVICES,DETAIL,2021-12-16,AP,1503541,LEIDOS DIGITAL SOLUTIONS INC,2021-12-01,2021-12-31,TECHNOLOGY SERVICE CONTRACTS,1925,2021
,2021 OFFICE OF THE SPEAKER,,GENERAL EXPENDITURES,OTHER SERVICES,DETAIL,2021-12-16,AP,1503542,LEIDOS DIGITAL SOLUTIONS INC,2021-12-01,2021-12-31,TECHNOLOGY SERVICE CONTRACTS,10594,2021
,2021 OFFICE OF THE SPEAKER,,GENERAL EXPENDITURES,OTHER SERVICES,DETAIL,2021-12-20,AP,1498891,FISCALNOTE INC,2021-11-01,2021-11-30,WEB DEV HST EMAIL & RLTD SERV,350,2021
,2021 OFFICE OF THE SPEAKER,,GENERAL EXPENDITURES,OTHER SERVICES,SUBTOTAL,   ,   ,   ,   ,   ,   ,OTHER SERVICES TOTALS:,38624.24,2021
,2021 OFFICE OF THE SPEAKER,,GENERAL EXPENDITURES,SUPPLIES AND MATERIALS,DETAIL,2021-10-19,AP,1476664,CITI PCARD-CREAMERY DD,2021-09-23,2021-09-23,FOOD & BEVERAGE,46,2021
,2021 OFFICE OF THE SPEAKER,,GENERAL EXPENDITURES,SUPPLIES AND MATERIALS,DETAIL,2021-10-19,AP,1476664,CITI PCARD-LEVELUPSWEETGREEN5232,2021-09-10,2021-09-10,FOOD & BEVERAGE,153.34,2021
,2021 OFFICE OF THE SPEAKER,,GENERAL EXPENDITURES,SUPPLIES AND MATERIALS,DETAIL,2021-10-19,AP,1476664,CITI PCARD-LONGWORTH FC,2021-09-23,2021-09-23,FOOD & BEVERAGE,33,2021
,2021 OFFICE OF THE SPEAKER,,GENERAL EXPENDITURES,SUPPLIES AND MATERIALS,DETAIL,2021-10-19,AP,1476664,CITI PCARD-STAPLES DIRECT,2021-09-10,2021-09-10,OFFICE SUPPLIES (OUTSIDE),80.54,2021
,2021 OFFICE OF THE SPEAKER,,GENERAL EXPENDITURES,SUPPLIES AND MATERIALS,DETAIL,2021-10-19,AP,1476664,CITI PCARD-TARGET        00010769,2021-09-08,2021-09-08,FOOD & BEVERAGE,210.89,2021
,2021 OFFICE OF THE SPEAKER,,GENERAL EXPENDITURES,SUPPLIES AND MATERIALS,DETAIL,2021-10-19,AP,1476664,CITI PCARD-TARGET        00010769,2021-09-08,2021-09-08,OFFICE SUPPLIES (OUTSIDE),51.48,2021
,2021 OFFICE OF THE SPEAKER,,GENERAL EXPENDITURES,SUPPLIES AND MATERIALS,DETAIL,2021-10-19,AP,1476664,CITI PCARD-WE THE PIZZA,2021-09-08,2021-09-08,FOOD & BEVERAGE,326.03,2021
,2021 OFFICE OF THE SPEAKER,,GENERAL EXPENDITURES,SUPPLIES AND MATERIALS,DETAIL,2021-10-19,AP,1476664,CITI PCARD-WE THE PIZZA,2021-09-21,2021-09-21,FOOD & BEVERAGE,435.85,2021
,2021 OFFICE OF THE SPEAKER,,GENERAL EXPENDITURES,SUPPLIES AND MATERIALS,DETAIL,2021-10-21,AP,1476846,CITI PCARD-2CO.COM TELESTREAM.NET,2021-09-16,2021-09-16,SOFTWARE  LESS THAN  $500,212,2021
,2021 OFFICE OF THE SPEAKER,,GENERAL EXPENDITURES,SUPPLIES AND MATERIALS,DETAIL,2021-10-21,AP,1476846,CITI PCARD-AMAZON.COM 2C3EY7PO0 AMZN,2021-09-27,2021-09-27,OFFICE SUPPLIES (OUTSIDE),133.49,2021
,2021 OFFICE OF THE SPEAKER,,GENERAL EXPENDITURES,SUPPLIES AND MATERIALS,DETAIL,2021-10-21,AP,1476846,CITI PCARD-AMZN Mktp US 2C5114G80,2021-09-27,2021-09-27,OFFICE SUPPLIES (OUTSIDE),65.3,2021
,2021 OFFICE OF THE SPEAKER,,GENERAL EXPENDITURES,SUPPLIES AND MATERIALS,DETAIL,2021-10-21,AP,1476846,CITI PCARD-ASANA.COM,2021-09-17,2021-10-16,SOFTWARE  LESS THAN  $500,121.96,2021
,2021 OFFICE OF THE SPEAKER,,GENERAL EXPENDITURES,SUPPLIES AND MATERIALS,DETAIL,2021-10-21,AP,1476846,CITI PCARD-DESCRIPT,2021-09-25,2021-10-25,SOFTWARE  LESS THAN  $500,30,2021
,2021 OFFICE OF THE SPEAKER,,GENERAL EXPENDITURES,SUPPLIES AND MATERIALS,DETAIL,2021-10-21,AP,1476846,CITI PCARD-HOUSE OFFICE SUPPLY,2021-09-21,2021-09-21,OFFICE SUPPLIES (OUTSIDE),44.83,2021
,2021 OFFICE OF THE SPEAKER,,GENERAL EXPENDITURES,SUPPLIES AND MATERIALS,DETAIL,2021-10-21,AP,1476846,CITI PCARD-LIVEU INC,2021-09-15,2021-10-15,SOFTWARE  LESS THAN  $500,312.7,2021
,2021 OFFICE OF THE SPEAKER,,GENERAL EXPENDITURES,SUPPLIES AND MATERIALS,DETAIL,2021-10-21,AP,1476846,CITI PCARD-LUMEN5.COM,2021-09-18,2021-10-18,SOFTWARE  LESS THAN  $500,199,2021
,2021 OFFICE OF THE SPEAKER,,GENERAL EXPENDITURES,SUPPLIES AND MATERIALS,DETAIL,2021-10-21,AP,1476846,CITI PCARD-RAWSHORTS.COM,2021-05-18,2021-09-18,SOFTWARE  LESS THAN  $500,89,2021
,2021 OFFICE OF THE SPEAKER,,GENERAL EXPENDITURES,SUPPLIES AND MATERIALS,DETAIL,2021-10-21,AP,1476846,CITI PCARD-RESTREAM INC.,2021-09-18,2021-10-18,SOFTWARE  LESS THAN  $500,99,2021
,2021 OFFICE OF THE SPEAKER,,GENERAL EXPENDITURES,SUPPLIES AND MATERIALS,DETAIL,2021-10-31,GL,RMS0110650, ,2021-10-01,2021-10-31,OFFICE SUPPLY (TRANSFER),1050.28,2021
,2021 OFFICE OF THE SPEAKER,,GENERAL EXPENDITURES,SUPPLIES AND MATERIALS,DETAIL,2021-11-02,AP,1484855,VERMILYEA SYDNEY S.,2021-09-19,2021-09-19,OFFICE SUPPLIES (OUTSIDE),40,2021
,2021 OFFICE OF THE SPEAKER,,GENERAL EXPENDITURES,SUPPLIES AND MATERIALS,DETAIL,2021-11-03,AP,1484139,CHERRY STEPHANIE,2021-10-12,2021-10-12,OFFICE SUPPLIES (OUTSIDE),47.7,2021
,2021 OFFICE OF THE SPEAKER,,GENERAL EXPENDITURES,SUPPLIES AND MATERIALS,DETAIL,2021-11-18,AP,1487988,HAN LEAH J.,2021-11-05,2021-11-05,FOOD & BEVERAGE,128.79,2021
,2021 OFFICE OF THE SPEAKER,,GENERAL EXPENDITURES,SUPPLIES AND MATERIALS,DETAIL,2021-11-18,AP,1491520,KONFORTY NADAV G.,2021-11-05,2021-11-05,FOOD & BEVERAGE,51.4,2021
,2021 OFFICE OF THE SPEAKER,,GENERAL EXPENDITURES,SUPPLIES AND MATERIALS,DETAIL,2021-11-20,AP,1487690,CITI PCARD-Amazon.com 2Y57Q13U2,2021-10-20,2021-10-20,FOOD & BEVERAGE,40.53,2021
,2021 OFFICE OF THE SPEAKER,,GENERAL EXPENDITURES,SUPPLIES AND MATERIALS,DETAIL,2021-11-20,AP,1487690,CITI PCARD-DOORDASH SOL MEXICAN G,2021-10-01,2021-10-01,FOOD & BEVERAGE,474.37,2021
,2021 OFFICE OF THE SPEAKER,,GENERAL EXPENDITURES,SUPPLIES AND MATERIALS,DETAIL,2021-11-20,AP,1487690,CITI PCARD-GHIRARDELLI.COM #123,2021-10-13,2021-10-13,FOOD & BEVERAGE,135.96,2021
,2021 OFFICE OF THE SPEAKER,,GENERAL EXPENDITURES,SUPPLIES AND MATERIALS,DETAIL,2021-11-20,AP,1487690,CITI PCARD-TARGET        00014167,2021-10-10,2021-10-10,FOOD & BEVERAGE,360.33,2021
,2021 OFFICE OF THE SPEAKER,,GENERAL EXPENDITURES,SUPPLIES AND MATERIALS,DETAIL,2021-11-20,AP,1487690,CITI PCARD-TARGET        00014167,2021-10-10,2021-10-10,OFFICE SUPPLIES (OUTSIDE),12.18,2021
,2021 OFFICE OF THE SPEAKER,,GENERAL EXPENDITURES,SUPPLIES AND MATERIALS,DETAIL,2021-11-20,AP,1487690,CITI PCARD-WE THE PIZZA,2021-09-30,2021-09-30,FOOD & BEVERAGE,609.5,2021
,2021 OFFICE OF THE SPEAKER,,GENERAL EXPENDITURES,SUPPLIES AND MATERIALS,DETAIL,2021-11-20,AP,1487963,CITIBANK GOV CARD SERVICE,2021-10-14,2021-10-14,OFFICE SUPPLIES (OUTSIDE),21.71,2021
,2021 OFFICE OF THE SPEAKER,,GENERAL EXPENDITURES,SUPPLIES AND MATERIALS,DETAIL,2021-11-20,AP,1488228,CITIBANK GOV CARD SERVICE,2021-10-23,2021-10-23,PUBLICATIONS/REFERENCE MAT'L,6.5,2021
,2021 OFFICE OF THE SPEAKER,,GENERAL EXPENDITURES,SUPPLIES AND MATERIALS,DETAIL,2021-11-22,AP,1489213,CITI PCARD-AMZN MKTP US 2C5HT3NM2 AM,2021-09-27,2021-09-27,OFFICE SUPPLIES (OUTSIDE),37.19,2021
,2021 OFFICE OF THE SPEAKER,,GENERAL EXPENDITURES,SUPPLIES AND MATERIALS,DETAIL,2021-11-22,AP,1489213,CITI PCARD-AMZN Mktp US 279JF2911,2021-10-12,2021-10-12,OFFICE SUPPLIES (OUTSIDE),90.95,2021
,2021 OFFICE OF THE SPEAKER,,GENERAL EXPENDITURES,SUPPLIES AND MATERIALS,DETAIL,2021-11-22,AP,1489213,CITI PCARD-AMZN Mktp US 2C0NF28A1,2021-09-28,2021-09-28,OFFICE SUPPLIES (OUTSIDE),12.95,2021
,2021 OFFICE OF THE SPEAKER,,GENERAL EXPENDITURES,SUPPLIES AND MATERIALS,DETAIL,2021-11-22,AP,1489213,CITI PCARD-AMZN Mktp US 2C2KE7VC0,2021-09-28,2021-09-28,OFFICE SUPPLIES (OUTSIDE),19.88,2021
,2021 OFFICE OF THE SPEAKER,,GENERAL EXPENDITURES,SUPPLIES AND MATERIALS,DETAIL,2021-11-22,AP,1489213,CITI PCARD-AMZN Mktp US 2C97H3GI0,2021-09-27,2021-09-27,OFFICE SUPPLIES (OUTSIDE),50.3,2021
,2021 OFFICE OF THE SPEAKER,,GENERAL EXPENDITURES,SUPPLIES AND MATERIALS,DETAIL,2021-11-22,AP,1489213,CITI PCARD-AMZN Mktp US 2C9CR93G2,2021-09-27,2021-09-27,OFFICE SUPPLIES (OUTSIDE),248.01,2021
,2021 OFFICE OF THE SPEAKER,,GENERAL EXPENDITURES,SUPPLIES AND MATERIALS,DETAIL,2021-11-22,AP,1489213,CITI PCARD-AMZN Mktp US 2Y1K788O1,2021-10-20,2021-10-20,OFFICE SUPPLIES (OUTSIDE),23.9,2021
,2021 OFFICE OF THE SPEAKER,,GENERAL EXPENDITURES,SUPPLIES AND MATERIALS,DETAIL,2021-11-22,AP,1489213,CITI PCARD-AMZN Mktp US 2Y2249BY1,2021-10-20,2021-10-20,OFFICE SUPPLIES (OUTSIDE),37.97,2021
,2021 OFFICE OF THE SPEAKER,,GENERAL EXPENDITURES,SUPPLIES AND MATERIALS,DETAIL,2021-11-22,AP,1489213,CITI PCARD-AMZN Mktp US 2Y3HO0S41,2021-10-20,2021-10-20,OFFICE SUPPLIES (OUTSIDE),495,2021
,2021 OFFICE OF THE SPEAKER,,GENERAL EXPENDITURES,SUPPLIES AND MATERIALS,DETAIL,2021-11-22,AP,1489213,CITI PCARD-AMZN Mktp US 2Y8MX2MT0,2021-10-20,2021-10-20,OFFICE SUPPLIES (OUTSIDE),293.39,2021
,2021 OFFICE OF THE SPEAKER,,GENERAL EXPENDITURES,SUPPLIES AND MATERIALS,DETAIL,2021-11-22,AP,1489213,CITI PCARD-ASANA.COM,2021-10-07,2021-10-16,SOFTWARE  LESS THAN  $500,10.17,2021
,2021 OFFICE OF THE SPEAKER,,GENERAL EXPENDITURES,SUPPLIES AND MATERIALS,DETAIL,2021-11-22,AP,1489213,CITI PCARD-ASANA.COM,2021-10-17,2021-11-16,SOFTWARE  LESS THAN  $500,152.45,2021
,2021 OFFICE OF THE SPEAKER,,GENERAL EXPENDITURES,SUPPLIES AND MATERIALS,DETAIL,2021-11-22,AP,1489213,CITI PCARD-Amazon.com 2C1TK3B81,2021-09-28,2021-09-28,OFFICE SUPPLIES (OUTSIDE),153.95,2021
,2021 OFFICE OF THE SPEAKER,,GENERAL EXPENDITURES,SUPPLIES AND MATERIALS,DETAIL,2021-11-22,AP,1489213,CITI PCARD-DESCRIPT,2021-10-25,2021-11-25,SOFTWARE  LESS THAN  $500,30,2021
,2021 OFFICE OF THE SPEAKER,,GENERAL EXPENDITURES,SUPPLIES AND MATERIALS,DETAIL,2021-11-22,AP,1489213,CITI PCARD-LIVEU INC,2021-10-15,2021-11-15,SOFTWARE  LESS THAN  $500,312.7,2021
,2021 OFFICE OF THE SPEAKER,,GENERAL EXPENDITURES,SUPPLIES AND MATERIALS,DETAIL,2021-11-22,AP,1489213,CITI PCARD-LUMEN5.COM,2021-10-18,2021-11-18,SOFTWARE  LESS THAN  $500,199,2021
,2021 OFFICE OF THE SPEAKER,,GENERAL EXPENDITURES,SUPPLIES AND MATERIALS,DETAIL,2021-11-22,AP,1489213,CITI PCARD-RAWSHORTS.COM,2021-05-18,2021-06-18,SOFTWARE  LESS THAN  $500,44.5,2021
,2021 OFFICE OF THE SPEAKER,,GENERAL EXPENDITURES,SUPPLIES AND MATERIALS,DETAIL,2021-11-22,AP,1489213,CITI PCARD-RESTREAM INC.,2021-10-18,2021-11-18,SOFTWARE  LESS THAN  $500,99,2021
,2021 OFFICE OF THE SPEAKER,,GENERAL EXPENDITURES,SUPPLIES AND MATERIALS,DETAIL,2021-11-23,AP,1495308,MOREDIRECT INC DBA CONNECTION,2021-08-26,2021-08-26,OFFICE SUPPLIES (OUTSIDE),329,2021
,2021 OFFICE OF THE SPEAKER,,GENERAL EXPENDITURES,SUPPLIES AND MATERIALS,DETAIL,2021-11-23,AP,1495308,MOREDIRECT INC DBA CONNECTION,2021-08-26,2021-08-26,OFFICE SUPPLIES (OUTSIDE) QTY - 2,378,2021
,2021 OFFICE OF THE SPEAKER,,GENERAL EXPENDITURES,SUPPLIES AND MATERIALS,DETAIL,2021-11-26,AP,1494897,MOREDIRECT INC DBA CONNECTION,2021-09-29,2021-09-29,OFFICE SUPPLIES (OUTSIDE),703.96,2021
,2021 OFFICE OF THE SPEAKER,,GENERAL EXPENDITURES,SUPPLIES AND MATERIALS,DETAIL,2021-11-26,AP,1494899,MOREDIRECT INC DBA CONNECTION,2021-09-08,2021-09-08,OFFICE SUPPLIES (OUTSIDE),285.7,2021
,2021 OFFICE OF THE SPEAKER,,GENERAL EXPENDITURES,SUPPLIES AND MATERIALS,DETAIL,2021-11-26,AP,1494900,MOREDIRECT INC DBA CONNECTION,2021-09-24,2021-09-24,OFFICE SUPPLIES (OUTSIDE),550,2021
,2021 OFFICE OF THE SPEAKER,,GENERAL EXPENDITURES,SUPPLIES AND MATERIALS,DETAIL,2021-11-30,GL,RMS0111316, ,2021-11-01,2021-11-30,OFFICE SUPPLY (TRANSFER),1047.84,2021
,2021 OFFICE OF THE SPEAKER,,GENERAL EXPENDITURES,SUPPLIES AND MATERIALS,DETAIL,2021-12-13,AP,1498642,MOREDIRECT INC DBA CONNECTION,2021-09-30,2021-09-30,OFFICE SUPPLIES (OUTSIDE),11728,2021
,2021 OFFICE OF THE SPEAKER,,GENERAL EXPENDITURES,SUPPLIES AND MATERIALS,DETAIL,2021-12-13,AP,1498642,MOREDIRECT INC DBA CONNECTION,2021-11-03,2021-11-03,OFFICE SUPPLIES (OUTSIDE),-2739,2021
,2021 OFFICE OF THE SPEAKER,,GENERAL EXPENDITURES,SUPPLIES AND MATERIALS,DETAIL,2021-12-13,AP,1498684,NATIONAL NEWS AGENCY INC,2022-01-01,2022-12-31,PUBLICATIONS/REFERENCE MAT'L,2753.4,2021
,2021 OFFICE OF THE SPEAKER,,GENERAL EXPENDITURES,SUPPLIES AND MATERIALS,DETAIL,2021-12-13,AP,1498756,CITI PCARD-ASANA.COM,2021-11-17,2021-12-16,SOFTWARE  LESS THAN  $500,152.45,2021
,2021 OFFICE OF THE SPEAKER,,GENERAL EXPENDITURES,SUPPLIES AND MATERIALS,DETAIL,2021-12-13,AP,1498756,CITI PCARD-DESCRIPT,2021-11-25,2021-12-25,SOFTWARE  LESS THAN  $500,30,2021
,2021 OFFICE OF THE SPEAKER,,GENERAL EXPENDITURES,SUPPLIES AND MATERIALS,DETAIL,2021-12-13,AP,1498756,CITI PCARD-LIVEU INC,2021-11-15,2021-12-15,SOFTWARE  LESS THAN  $500,312.7,2021
,2021 OFFICE OF THE SPEAKER,,GENERAL EXPENDITURES,SUPPLIES AND MATERIALS,DETAIL,2021-12-13,AP,1498756,CITI PCARD-LUMEN5.COM,2021-11-18,2021-12-18,SOFTWARE  LESS THAN  $500,199,2021
,2021 OFFICE OF THE SPEAKER,,GENERAL EXPENDITURES,SUPPLIES AND MATERIALS,DETAIL,2021-12-13,AP,1498756,CITI PCARD-RAWSHORTS.COM,2021-11-18,2021-12-18,SOFTWARE  LESS THAN  $500,44.5,2021
,2021 OFFICE OF THE SPEAKER,,GENERAL EXPENDITURES,SUPPLIES AND MATERIALS,DETAIL,2021-12-13,AP,1498756,CITI PCARD-RESTREAM INC.,2021-11-18,2021-12-18,SOFTWARE  LESS THAN  $500,99,2021
,2021 OFFICE OF THE SPEAKER,,GENERAL EXPENDITURES,SUPPLIES AND MATERIALS,DETAIL,2021-12-14,AP,1498569,CITI PCARD-AMZN Mktp US YL80Z28U3,2021-10-29,2021-10-29,HABITATION EXPENSE,118.93,2021
,2021 OFFICE OF THE SPEAKER,,GENERAL EXPENDITURES,SUPPLIES AND MATERIALS,DETAIL,2021-12-14,AP,1498569,CITI PCARD-Amazon.com Z920X1WG3,2021-10-29,2021-10-29,OFFICE SUPPLIES (OUTSIDE),61.99,2021
,2021 OFFICE OF THE SPEAKER,,GENERAL EXPENDITURES,SUPPLIES AND MATERIALS,DETAIL,2021-12-14,AP,1498569,CITI PCARD-TARGET        00010769,2021-11-09,2021-11-09,FOOD & BEVERAGE,329.41,2021
,2021 OFFICE OF THE SPEAKER,,GENERAL EXPENDITURES,SUPPLIES AND MATERIALS,DETAIL,2021-12-14,AP,1498569,CITI PCARD-TARGET        00010769,2021-11-09,2021-11-09,OFFICE SUPPLIES (OUTSIDE),54.74,2021
,2021 OFFICE OF THE SPEAKER,,GENERAL EXPENDITURES,SUPPLIES AND MATERIALS,DETAIL,2021-12-14,AP,1498569,CITI PCARD-TARGET        00014316,2021-11-14,2021-11-14,FOOD & BEVERAGE,25.19,2021
,2021 OFFICE OF THE SPEAKER,,GENERAL EXPENDITURES,SUPPLIES AND MATERIALS,DETAIL,2021-12-14,AP,1498569,CITI PCARD-VERIZON WRLS D6248-01,2021-10-29,2021-10-29,OFFICE SUPPLIES (OUTSIDE),19.97,2021
,2021 OFFICE OF THE SPEAKER,,GENERAL EXPENDITURES,SUPPLIES AND MATERIALS,DETAIL,2021-12-14,AP,1498569,CITI PCARD-WE THE PIZZA,2021-11-01,2021-11-01,FOOD & BEVERAGE,501.42,2021
,2021 OFFICE OF THE SPEAKER,,GENERAL EXPENDITURES,SUPPLIES AND MATERIALS,DETAIL,2021-12-14,AP,1498569,CITI PCARD-WE THE PIZZA,2021-11-04,2021-11-04,FOOD & BEVERAGE,576.15,2021
,2021 OFFICE OF THE SPEAKER,,GENERAL EXPENDITURES,SUPPLIES AND MATERIALS,DETAIL,2021-12-14,AP,1498569,CITI PCARD-WE THE PIZZA,2021-11-05,2021-11-05,FOOD & BEVERAGE,130.27,2021
,2021 OFFICE OF THE SPEAKER,,GENERAL EXPENDITURES,SUPPLIES AND MATERIALS,DETAIL,2021-12-14,AP,1498569,CITI PCARD-WE THE PIZZA,2021-11-18,2021-11-18,FOOD & BEVERAGE,469.78,2021
,2021 OFFICE OF THE SPEAKER,,GENERAL EXPENDITURES,SUPPLIES AND MATERIALS,DETAIL,2021-12-17,AP,1502508,OCCASIONS CATERERS,2021-12-08,2021-12-08,FOOD & BEVERAGE,18465,2021
,2021 OFFICE OF THE SPEAKER,,GENERAL EXPENDITURES,SUPPLIES AND MATERIALS,DETAIL,2021-12-17,AP,1502511,HAGUE QUALITY WATER OF MD INC,2022-01-01,2022-12-31,WATER,4536,2021
,2021 OFFICE OF THE SPEAKER,,GENERAL EXPENDITURES,SUPPLIES AND MATERIALS,DETAIL,2021-12-17,AP,1502515,HAGUE QUALITY WATER OF MD INC,2022-01-01,2022-12-31,WATER,756,2021
,2021 OFFICE OF THE SPEAKER,,GENERAL EXPENDITURES,SUPPLIES AND MATERIALS,DETAIL,2021-12-17,AP,1502519,SODEXO INC & AFFILIATES,2021-06-11,2021-06-11,WATER,288,2021
,2021 OFFICE OF THE SPEAKER,,GENERAL EXPENDITURES,SUPPLIES AND MATERIALS,DETAIL,2021-12-17,AP,1502523,SODEXO MANAGEMENT,2021-12-10,2021-12-10,FOOD & BEVERAGE,278.43,2021
,2021 OFFICE OF THE SPEAKER,,GENERAL EXPENDITURES,SUPPLIES AND MATERIALS,DETAIL,2021-12-17,AP,1502539,SODEXO INC & AFFILIATES,2021-12-13,2021-12-13,FOOD & BEVERAGE,246.05,2021
,2021 OFFICE OF THE SPEAKER,,GENERAL EXPENDITURES,SUPPLIES AND MATERIALS,DETAIL,2021-12-20,AP,1502526,SODEXO INC & AFFILIATES,2021-12-10,2021-12-10,FOOD & BEVERAGE,60.63,2021
,2021 OFFICE OF THE SPEAKER,,GENERAL EXPENDITURES,SUPPLIES AND MATERIALS,DETAIL,2021-12-20,AP,1502530,SODEXO INC & AFFILIATES,2021-12-10,2021-12-10,FOOD & BEVERAGE,60.63,2021
,2021 OFFICE OF THE SPEAKER,,GENERAL EXPENDITURES,SUPPLIES AND MATERIALS,DETAIL,2021-12-20,AP,1502534,SODEXO INC & AFFILIATES,2021-12-10,2021-12-10,FOOD & BEVERAGE,60.63,2021
,2021 OFFICE OF THE SPEAKER,,GENERAL EXPENDITURES,SUPPLIES AND MATERIALS,DETAIL,2021-12-20,AP,1502535,SODEXO INC & AFFILIATES,2021-12-10,2021-12-10,FOOD & BEVERAGE,60.63,2021
,2021 OFFICE OF THE SPEAKER,,GENERAL EXPENDITURES,SUPPLIES AND MATERIALS,DETAIL,2021-12-20,AP,1502540,SODEXO INC & AFFILIATES,2021-12-13,2021-12-13,FOOD & BEVERAGE,245.01,2021
,2021 OFFICE OF THE SPEAKER,,GENERAL EXPENDITURES,SUPPLIES AND MATERIALS,DETAIL,2021-12-20,AP,1502543,SODEXO INC & AFFILIATES,2021-12-13,2021-12-13,FOOD & BEVERAGE,245.01,2021
,2021 OFFICE OF THE SPEAKER,,GENERAL EXPENDITURES,SUPPLIES AND MATERIALS,DETAIL,2021-12-31,GL,RMS0112074, ,2021-12-01,2021-12-31,OFFICE SUPPLY (TRANSFER),421.45,2021
,2021 OFFICE OF THE SPEAKER,,GENERAL EXPENDITURES,SUPPLIES AND MATERIALS,SUBTOTAL,   ,   ,   ,   ,   ,   ,SUPPLIES AND MATERIALS TOTALS:,51820.84,2021
,2021 OFFICE OF THE SPEAKER,,GENERAL EXPENDITURES,EQUIPMENT,DETAIL,2021-10-29,GL,MNT0110598, ,2021-10-01,2021-10-20,MAINTENANCE / REPAIRS,224.52,2021
,2021 OFFICE OF THE SPEAKER,,GENERAL EXPENDITURES,EQUIPMENT,DETAIL,2021-10-29,GL,MNT0110598, ,2021-10-01,2021-10-31,MAINTENANCE / REPAIRS,1009,2021
,2021 OFFICE OF THE SPEAKER,,GENERAL EXPENDITURES,EQUIPMENT,DETAIL,2021-11-23,AP,1495308,MOREDIRECT INC DBA CONNECTION,2021-08-26,2021-08-26,OFFICE EQUIP PURCH LESS THAN $25 000,769,2021
,2021 OFFICE OF THE SPEAKER,,GENERAL EXPENDITURES,EQUIPMENT,DETAIL,2021-11-23,AP,1495313,MOREDIRECT INC DBA CONNECTION,2021-09-24,2021-09-24,COMPUTER HARDW PURCH  LESS THAN $25 000,2298.95,2021
,2021 OFFICE OF THE SPEAKER,,GENERAL EXPENDITURES,EQUIPMENT,DETAIL,2021-11-23,AP,1495324,MOREDIRECT INC DBA CONNECTION,2021-09-07,2021-09-07,COMPUTER HARDW PURCH  LESS THAN $25 000,3963,2021
,2021 OFFICE OF THE SPEAKER,,GENERAL EXPENDITURES,EQUIPMENT,DETAIL,2021-11-23,AP,1495410,MOREDIRECT INC DBA CONNECTION,2021-09-30,2021-09-30,COMPUTER HARDW PURCH  LESS THAN $25 000,9029.8,2021
,2021 OFFICE OF THE SPEAKER,,GENERAL EXPENDITURES,EQUIPMENT,DETAIL,2021-11-23,AP,1495423,MOREDIRECT INC DBA CONNECTION,2021-10-05,2021-10-05,COMPUTER SOFTW PURCH  LESS THAN $10 000 QTY - 5,5195,2021
,2021 OFFICE OF THE SPEAKER,,GENERAL EXPENDITURES,EQUIPMENT,DETAIL,2021-11-30,GL,MNT0111241, ,2021-11-01,2021-11-30,MAINTENANCE / REPAIRS,1009,2021
,2021 OFFICE OF THE SPEAKER,,GENERAL EXPENDITURES,EQUIPMENT,DETAIL,2021-12-30,GL,MNT0111957, ,2021-12-01,2021-12-31,MAINTENANCE / REPAIRS,1009,2021
,2021 OFFICE OF THE SPEAKER,,GENERAL EXPENDITURES,EQUIPMENT,SUBTOTAL,   ,   ,   ,   ,   ,   ,EQUIPMENT TOTALS:,24507.27,2021
,2021 OFFICE OF THE SPEAKER,,GENERAL EXPENDITURES,EQUIPMENT,SUBTOTAL,   ,   ,   ,   ,   ,   ,GENERAL EXPENDITURES TOTALS:,2184069.51,2021
,2021 OFFICE OF THE SPEAKER,,GENERAL EXPENDITURES,EQUIPMENT,GRAND TOTAL FOR ORGANIZATION,   ,   ,   ,   ,   ,   ,OFFICE TOTALS: ,2184069.51,2021
,2020 OFFICE OF THE SPEAKER,,GENERAL EXPENDITURES,PERSONNEL COMPENSATION,DETAIL,   ,   ,   ,BERRET EMILY C,2020-11-01,2020-11-01,DIR OF OPERATIONS & ADVISOR,2150,2021
,2020 OFFICE OF THE SPEAKER,,GENERAL EXPENDITURES,PERSONNEL COMPENSATION,DETAIL,   ,   ,   ,CAPRON MARGARET W.,2020-11-01,2020-11-01,SENIOR ADV FOR POLICY & COMM,1200.5,2021
,2020 OFFICE OF THE SPEAKER,,GENERAL EXPENDITURES,PERSONNEL COMPENSATION,DETAIL,   ,   ,   ,CHERRY STEPHANIE,2020-11-01,2020-11-01,DIRECTOR OF MEDIA AFFAIRS,5000,2021
,2020 OFFICE OF THE SPEAKER,,GENERAL EXPENDITURES,PERSONNEL COMPENSATION,DETAIL,   ,   ,   ,CONNELLY HENRY V,2020-11-01,2020-11-01,COMMUNICATIONS DIRECTOR,1483.34,2021
,2020 OFFICE OF THE SPEAKER,,GENERAL EXPENDITURES,PERSONNEL COMPENSATION,DETAIL,   ,   ,   ,COSTELLO JOSEPH M.,2020-11-01,2020-11-01,PRESS ASSISTANT,3242.66,2021
,2020 OFFICE OF THE SPEAKER,,GENERAL EXPENDITURES,PERSONNEL COMPENSATION,DETAIL,   ,   ,   ,COSTELLO JOSEPH M.,2020-11-01,2020-11-01,PRESS ASSISTANT (OVERTIME),1757.62,2021
,2020 OFFICE OF THE SPEAKER,,GENERAL EXPENDITURES,PERSONNEL COMPENSATION,DETAIL,   ,   ,   ,DEGRAFF KENNETH B.,2020-11-01,2020-11-01,SENIOR POLICY ADVISOR,150,2021
,2020 OFFICE OF THE SPEAKER,,GENERAL EXPENDITURES,PERSONNEL COMPENSATION,DETAIL,   ,   ,   ,GREENER APRIL L.,2020-11-01,2020-11-01,RESEARCH DIRECTOR,2150,2021
,2020 OFFICE OF THE SPEAKER,,GENERAL EXPENDITURES,PERSONNEL COMPENSATION,DETAIL,   ,   ,   ,HAN LEAH J.,2020-11-01,2020-11-01,STAFF ASSISTANT,3799.84,2021
,2020 OFFICE OF THE SPEAKER,,GENERAL EXPENDITURES,PERSONNEL COMPENSATION,DETAIL,   ,   ,   ,HAN LEAH J.,2020-11-01,2020-11-01,STAFF ASSISTANT (OVERTIME),1200.24,2021
,2020 OFFICE OF THE SPEAKER,,GENERAL EXPENDITURES,PERSONNEL COMPENSATION,DETAIL,   ,   ,   ,HIDALGO ADRIANA N.,2020-11-01,2020-11-01,DISTRICT SCHED/SPECIAL ASSIST,5000,2021
,2020 OFFICE OF THE SPEAKER,,GENERAL EXPENDITURES,PERSONNEL COMPENSATION,DETAIL,   ,   ,   ,HOLMES NATHANIEL J,2020-11-01,2020-11-01,DEP DIR/SCHEDULING & ADVANCE,5000,2021
,2020 OFFICE OF THE SPEAKER,,GENERAL EXPENDITURES,PERSONNEL COMPENSATION,DETAIL,   ,   ,   ,IACOBELLIS SAMUEL C,2020-11-01,2020-11-01,MBR SVC & INTERGOV AFFAIRS ADV,5000,2021
,2020 OFFICE OF THE SPEAKER,,GENERAL EXPENDITURES,PERSONNEL COMPENSATION,DETAIL,   ,   ,   ,JACKSON AUDRA L,2020-11-01,2020-11-01,ASST MGR FOR THE DEM CLOAKROOM,5000,2021
,2020 OFFICE OF THE SPEAKER,,GENERAL EXPENDITURES,PERSONNEL COMPENSATION,DETAIL,   ,   ,   ,KAPLAN EMMA L,2020-11-01,2020-11-01,FLOOR ADVISOR,5000,2021
,2020 OFFICE OF THE SPEAKER,,GENERAL EXPENDITURES,PERSONNEL COMPENSATION,DETAIL,   ,   ,   ,KEATING ROSE M,2020-11-01,2020-11-01,ASST FLOOR MANAGER,3316.68,2021
,2020 OFFICE OF THE SPEAKER,,GENERAL EXPENDITURES,PERSONNEL COMPENSATION,DETAIL,   ,   ,   ,KEITA KAMILAH Z,2020-11-01,2020-11-01,DEPUTY INFOMATION TECH. DIRECT,1661.34,2021
,2020 OFFICE OF THE SPEAKER,,GENERAL EXPENDITURES,PERSONNEL COMPENSATION,DETAIL,   ,   ,   ,LEE SERYEUNG,2020-11-01,2020-11-01,PRESS SECRETARY,5000,2021
,2020 OFFICE OF THE SPEAKER,,GENERAL EXPENDITURES,PERSONNEL COMPENSATION,DETAIL,   ,   ,   ,MANSBACH SHANA G,2020-11-01,2020-11-01,DIRECTOR OF SPEECHWRITING,4316.68,2021
,2020 OFFICE OF THE SPEAKER,,GENERAL EXPENDITURES,PERSONNEL COMPENSATION,DETAIL,   ,   ,   ,MCCULLOUGH WILLIAM J,2020-11-01,2020-11-01,PRESS ASSISTANT,5000,2021
,2020 OFFICE OF THE SPEAKER,,GENERAL EXPENDITURES,PERSONNEL COMPENSATION,DETAIL,   ,   ,   ,MCCULLOUGH WILLIAM J,2020-11-01,2020-11-01,PRESS ASSISTANT (OVERTIME),1574.75,2021
,2020 OFFICE OF THE SPEAKER,,GENERAL EXPENDITURES,PERSONNEL COMPENSATION,DETAIL,   ,   ,   ,PRICE REVA B.,2020-12-01,2020-12-01,OUTREACH DIR & SENIOR ADVISOR,867,2021
,2020 OFFICE OF THE SPEAKER,,GENERAL EXPENDITURES,PERSONNEL COMPENSATION,DETAIL,   ,   ,   ,SMITH KELSEY L,2020-11-01,2020-11-01,DIR. OF SCHEDULING & ADVANCE,3316.68,2021
,2020 OFFICE OF THE SPEAKER,,GENERAL EXPENDITURES,PERSONNEL COMPENSATION,DETAIL,   ,   ,   ,SMITH SHANE T,2020-11-01,2020-11-01,SENIOR ADVISOR/MEMBER SERVICES,5000,2021
,2020 OFFICE OF THE SPEAKER,,GENERAL EXPENDITURES,PERSONNEL COMPENSATION,DETAIL,   ,   ,   ,TECKLENBURG MICHAEL H.,2020-11-01,2020-11-01,COUNSEL,1316.66,2021
,2020 OFFICE OF THE SPEAKER,,GENERAL EXPENDITURES,PERSONNEL COMPENSATION,DETAIL,   ,   ,   ,URRY ALEXANDER M,2020-11-01,2020-11-01,POLICY ADVISOR,5000,2021
,2020 OFFICE OF THE SPEAKER,,GENERAL EXPENDITURES,PERSONNEL COMPENSATION,SUBTOTAL,   ,   ,   ,   ,   ,   ,PERSONNEL COMPENSATION TOTALS:,83503.99,2021
,2020 OFFICE OF THE SPEAKER,,GENERAL EXPENDITURES,PERSONNEL COMPENSATION,SUBTOTAL,   ,   ,   ,   ,   ,   ,GENERAL EXPENDITURES TOTALS:,83503.99,2021
,2020 OFFICE OF THE SPEAKER,,GENERAL EXPENDITURES,PERSONNEL COMPENSATION,GRAND TOTAL FOR ORGANIZATION,   ,   ,   ,   ,   ,   ,OFFICE TOTALS: ,83503.99,2021
,2021 OFFICE OF THE SPEAKER,,INTERN ALLOWANCES,PERSONNEL COMPENSATION,DETAIL,   ,   ,   ,CHEN KAREN A.,2021-10-06,2021-12-29,SPEAKER PAID INTERN - HOUSE PR,2924.54,2021
,2021 OFFICE OF THE SPEAKER,,INTERN ALLOWANCES,PERSONNEL COMPENSATION,DETAIL,   ,   ,   ,DANIELS TERRENCE D.,2021-10-05,2021-12-31,SPEAKER PAID INTERN - HOUSE PR,2994.18,2021
,2021 OFFICE OF THE SPEAKER,,INTERN ALLOWANCES,PERSONNEL COMPENSATION,DETAIL,   ,   ,   ,HICKS JOHN W,2021-10-01,2021-12-31,SPEAKER PAID INTERN - HOUSE PR,3360,2021
,2021 OFFICE OF THE SPEAKER,,INTERN ALLOWANCES,PERSONNEL COMPENSATION,DETAIL,   ,   ,   ,MCMAHON AUTUMN R.,2021-10-19,2021-11-30,SPEAKER PAID INTERN - HOUSE PR,1462.27,2021
,2021 OFFICE OF THE SPEAKER,,INTERN ALLOWANCES,PERSONNEL COMPENSATION,DETAIL,   ,   ,   ,NUNES DESIREE A.,2021-10-01,2021-11-05,SPEAKER PAID INTERN - HOUSE PR,1680,2021
,2021 OFFICE OF THE SPEAKER,,INTERN ALLOWANCES,PERSONNEL COMPENSATION,DETAIL,   ,   ,   ,PAIZ VILLANUEVA ARIANA G.,2021-10-01,2021-12-10,SPEAKER PAID INTERN - HOUSE PR,3360,2021
,2021 OFFICE OF THE SPEAKER,,INTERN ALLOWANCES,PERSONNEL COMPENSATION,DETAIL,   ,   ,   ,SMITH ALLYSON N.,2021-09-24,2021-12-10,SPEAKER PAID INTERN - HOUSE PR,3696,2021
,2021 OFFICE OF THE SPEAKER,,INTERN ALLOWANCES,PERSONNEL COMPENSATION,DETAIL,   ,   ,   ,YE JENNY,2021-10-15,2021-12-31,SPEAKER PAID INTERN - HOUSE PR,2646.02,2021
,2021 OFFICE OF THE SPEAKER,,INTERN ALLOWANCES,PERSONNEL COMPENSATION,SUBTOTAL,   ,   ,   ,   ,   ,   ,PERSONNEL COMPENSATION TOTALS:,22123.01,2021
,2021 OFFICE OF THE SPEAKER,,INTERN ALLOWANCES,PERSONNEL COMPENSATION,SUBTOTAL,   ,   ,   ,   ,   ,   ,INTERN ALLOWANCES TOTALS:,22123.01,2021
,2021 OFFICE OF THE SPEAKER,,INTERN ALLOWANCES,PERSONNEL COMPENSATION,GRAND TOTAL FOR ORGANIZATION,   ,   ,   ,   ,   ,   ,OFFICE TOTALS: ,22123.01,2021
,2021 OFFICE OF THE MAJORITY LEADER,,GENERAL EXPENDITURES,PERSONNEL COMPENSATION,DETAIL,   ,   ,   ,ABOUCHAR KEITH S.,2021-10-01,2021-12-31,SENIOR POLICY ADVISOR,49824.99,2021
,2021 OFFICE OF THE MAJORITY LEADER,,GENERAL EXPENDITURES,PERSONNEL COMPENSATION,DETAIL,   ,   ,   ,BAUSERMAN TRENTON D,2021-10-01,2021-12-31,SENIOR POLICY ADVISOR,47500.66,2021
,2021 OFFICE OF THE MAJORITY LEADER,,GENERAL EXPENDITURES,PERSONNEL COMPENSATION,DETAIL,   ,   ,   ,BAYER JOHN S,2021-10-01,2021-12-31,MEMBER SERVICES & OUTREACH ADV,30000.67,2021
,2021 OFFICE OF THE MAJORITY LEADER,,GENERAL EXPENDITURES,PERSONNEL COMPENSATION,DETAIL,   ,   ,   ,BEAN HARLEIGH J.,2021-10-01,2021-12-31,OFFICE MANAGER/EXEC ASST,23749.66,2021
,2021 OFFICE OF THE MAJORITY LEADER,,GENERAL EXPENDITURES,PERSONNEL COMPENSATION,DETAIL,   ,   ,   ,BRENNAN BRIDGET E,2021-10-01,2021-12-31,DIRECTOR OF SCHEDULING,36249.99,2021
,2021 OFFICE OF THE MAJORITY LEADER,,GENERAL EXPENDITURES,PERSONNEL COMPENSATION,DETAIL,   ,   ,   ,BROWN CHLOE M,2021-10-01,2021-12-31,RESEARCH AND OUTREACH ADVISOR,30000.67,2021
,2021 OFFICE OF THE MAJORITY LEADER,,GENERAL EXPENDITURES,PERSONNEL COMPENSATION,DETAIL,   ,   ,   ,COVEY-BRANDT ALEXIS,2021-10-01,2021-12-31,CHIEF OF STAFF,49824.99,2021
,2021 OFFICE OF THE MAJORITY LEADER,,GENERAL EXPENDITURES,PERSONNEL COMPENSATION,DETAIL,   ,   ,   ,DREW KATHRYN L,2021-10-01,2021-12-31,COMM DIR AND SR ADVISOR,49824.99,2021
,2021 OFFICE OF THE MAJORITY LEADER,,GENERAL EXPENDITURES,PERSONNEL COMPENSATION,DETAIL,   ,   ,   ,DUCKWORTH BRIAN A.,2021-10-01,2021-12-31,SENIOR MEMBER SERVICES ADVISOR,32500,2021
,2021 OFFICE OF THE MAJORITY LEADER,,GENERAL EXPENDITURES,PERSONNEL COMPENSATION,DETAIL,   ,   ,   ,DWYER STEPHEN,2021-10-01,2021-12-31,DIGITAL DIR & POLICY ADV,17375,2021
,2021 OFFICE OF THE MAJORITY LEADER,,GENERAL EXPENDITURES,PERSONNEL COMPENSATION,DETAIL,   ,   ,   ,FRY COURTNEY,2021-10-01,2021-12-31,FLOOR DIRECTOR,49824.99,2021
,2021 OFFICE OF THE MAJORITY LEADER,,GENERAL EXPENDITURES,PERSONNEL COMPENSATION,DETAIL,   ,   ,   ,IOZZI MARK P,2021-10-01,2021-12-31,SENIOR POLICY ADVISOR,6241.67,2021
,2021 OFFICE OF THE MAJORITY LEADER,,GENERAL EXPENDITURES,PERSONNEL COMPENSATION,DETAIL,   ,   ,   ,JACKSON JAMIE L,2021-11-15,2021-12-31,SENIOR COUNSEL,23052.77,2021
,2021 OFFICE OF THE MAJORITY LEADER,,GENERAL EXPENDITURES,PERSONNEL COMPENSATION,DETAIL,   ,   ,   ,JEYADEV VIDHYA S.,2021-10-01,2021-12-31,PRESS ASSISTANT,17609.66,2021
,2021 OFFICE OF THE MAJORITY LEADER,,GENERAL EXPENDITURES,PERSONNEL COMPENSATION,DETAIL,   ,   ,   ,LEUSCHEN JAMES P.,2021-10-01,2021-12-31,POLICY DIRECTOR,49824.99,2021
,2021 OFFICE OF THE MAJORITY LEADER,,GENERAL EXPENDITURES,PERSONNEL COMPENSATION,DETAIL,   ,   ,   ,MEHRAN NICOLETTE,2021-10-01,2021-12-31,STAFF ASSISTANT,11999.66,2021
,2021 OFFICE OF THE MAJORITY LEADER,,GENERAL EXPENDITURES,PERSONNEL COMPENSATION,DETAIL,   ,   ,   ,MEHRAN NICOLETTE,2021-09-01,2021-11-30,STAFF ASSISTANT (OVERTIME),3816.3,2021
,2021 OFFICE OF THE MAJORITY LEADER,,GENERAL EXPENDITURES,PERSONNEL COMPENSATION,DETAIL,   ,   ,   ,MERZ JULIE E,2021-10-01,2021-12-31,MEMBER SERVICES DIRECTOR,24912.51,2021
,2021 OFFICE OF THE MAJORITY LEADER,,GENERAL EXPENDITURES,PERSONNEL COMPENSATION,DETAIL,   ,   ,   ,MERZ JULIE E,2021-10-01,2021-12-31,MEMBER SERVICES DIRECTOR (OTHER COMPENSATION),23812,2021
,2021 OFFICE OF THE MAJORITY LEADER,,GENERAL EXPENDITURES,PERSONNEL COMPENSATION,DETAIL,   ,   ,   ,MULKERRIN MARGARET A,2021-10-01,2021-12-31,NATIONAL PRESS SECRETARY,30000.67,2021
,2021 OFFICE OF THE MAJORITY LEADER,,GENERAL EXPENDITURES,PERSONNEL COMPENSATION,DETAIL,   ,   ,   ,ROMICK BRIAN,2021-10-01,2021-12-31,DEPUTY CHIEF OF STAFF,49824.99,2021
,2021 OFFICE OF THE MAJORITY LEADER,,GENERAL EXPENDITURES,PERSONNEL COMPENSATION,DETAIL,   ,   ,   ,ROWE DEBORAH M,2021-10-01,2021-12-31,SENIOR FLOOR ADVISOR,36250,2021
,2021 OFFICE OF THE MAJORITY LEADER,,GENERAL EXPENDITURES,PERSONNEL COMPENSATION,DETAIL,   ,   ,   ,SALAZAR HANNAH L.,2021-10-01,2021-12-31,STAFF ASSISTANT,11999.66,2021
,2021 OFFICE OF THE MAJORITY LEADER,,GENERAL EXPENDITURES,PERSONNEL COMPENSATION,DETAIL,   ,   ,   ,SALAZAR HANNAH L.,2021-09-01,2021-11-30,STAFF ASSISTANT (OVERTIME),3553.81,2021
,2021 OFFICE OF THE MAJORITY LEADER,,GENERAL EXPENDITURES,PERSONNEL COMPENSATION,DETAIL,   ,   ,   ,SALAZAR RAYMOND J.,2021-10-01,2021-12-31,DEPUTY FLOOR DIRECTOR & SR ADV,37500.67,2021
,2021 OFFICE OF THE MAJORITY LEADER,,GENERAL EXPENDITURES,PERSONNEL COMPENSATION,DETAIL,   ,   ,   ,SNYDER RACHEL N,2021-10-01,2021-12-31,SENIOR POLICY ADVISOR,5408.33,2021
,2021 OFFICE OF THE MAJORITY LEADER,,GENERAL EXPENDITURES,PERSONNEL COMPENSATION,DETAIL,   ,   ,   ,SPAK MICHAEL J,2021-10-01,2021-12-31,SPECIAL ASSISTANT,23749.66,2021
,2021 OFFICE OF THE MAJORITY LEADER,,GENERAL EXPENDITURES,PERSONNEL COMPENSATION,DETAIL,   ,   ,   ,TRAUBERMAN JACOB M,2021-10-01,2021-12-31,FLOOR AIDE,27499.33,2021
,2021 OFFICE OF THE MAJORITY LEADER,,GENERAL EXPENDITURES,PERSONNEL COMPENSATION,DETAIL,   ,   ,   ,URRABAZO CLAUDIA,2021-10-01,2021-12-31,DEP. MBR SER DIR & SR ADV,44882.67,2021
,2021 OFFICE OF THE MAJORITY LEADER,,GENERAL EXPENDITURES,PERSONNEL COMPENSATION,DETAIL,   ,   ,   ,WEISSMANN ADAM,2021-10-01,2021-12-31,SPEECHWRITER,40000,2021
,2021 OFFICE OF THE MAJORITY LEADER,,GENERAL EXPENDITURES,PERSONNEL COMPENSATION,SUBTOTAL,   ,   ,   ,   ,   ,   ,PERSONNEL COMPENSATION TOTALS:,888615.96,2021
,2021 OFFICE OF THE MAJORITY LEADER,,GENERAL EXPENDITURES,TRAVEL,DETAIL,2021-10-27,AP,1482800,BEAN HARLEIGH J.,2021-09-20,2021-10-13,TAXI/RIDE SHARE,72.12,2021
,2021 OFFICE OF THE MAJORITY LEADER,,GENERAL EXPENDITURES,TRAVEL,DETAIL,2021-11-22,AP,1494268,BEAN HARLEIGH J.,2021-10-28,2021-11-06,TAXI/RIDE SHARE,76.58,2021
,2021 OFFICE OF THE MAJORITY LEADER,,GENERAL EXPENDITURES,TRAVEL,DETAIL,2021-11-23,AP,1494252,BRENNAN BRIDGET E.,2021-10-13,2021-11-12,TAXI/RIDE SHARE,325.78,2021
,2021 OFFICE OF THE MAJORITY LEADER,,GENERAL EXPENDITURES,TRAVEL,SUBTOTAL,   ,   ,   ,   ,   ,   ,TRAVEL TOTALS:,474.48,2021
,2021 OFFICE OF THE MAJORITY LEADER,,GENERAL EXPENDITURES,PRINTING AND REPRODUCTION,DETAIL,2021-10-21,AP,1481907,ACCURATE WORD,2021-08-26,2021-08-26,FRANKABLE PRINTING & REPROD,1157,2021
,2021 OFFICE OF THE MAJORITY LEADER,,GENERAL EXPENDITURES,PRINTING AND REPRODUCTION,DETAIL,2021-12-03,AP,1497248,ACCURATE WORD,2021-11-19,2021-11-19,FRANKABLE PRINTING & REPROD,43,2021
,2021 OFFICE OF THE MAJORITY LEADER,,GENERAL EXPENDITURES,PRINTING AND REPRODUCTION,SUBTOTAL,   ,   ,   ,   ,   ,   ,PRINTING AND REPRODUCTION TOTALS:,1200,2021
,2021 OFFICE OF THE MAJORITY LEADER,,GENERAL EXPENDITURES,SUPPLIES AND MATERIALS,DETAIL,2021-10-28,AP,1483819,BSL GEM LASER EXPRESS LLC,2021-10-11,2021-10-11,OFFICE SUPPLIES (OUTSIDE),94,2021
,2021 OFFICE OF THE MAJORITY LEADER,,GENERAL EXPENDITURES,SUPPLIES AND MATERIALS,DETAIL,2021-11-05,AP,1484100,READYREFRESH BY NESTLE,2021-09-30,2021-09-30,WATER,183.69,2021
,2021 OFFICE OF THE MAJORITY LEADER,,GENERAL EXPENDITURES,SUPPLIES AND MATERIALS,DETAIL,2021-11-23,AP,1495252,READYREFRESH BY NESTLE,2021-10-31,2021-10-31,WATER,8,2021
,2021 OFFICE OF THE MAJORITY LEADER,,GENERAL EXPENDITURES,SUPPLIES AND MATERIALS,DETAIL,2021-12-14,AP,1501328,BSL GEM LASER EXPRESS LLC,2021-12-10,2021-12-10,OFFICE SUPPLIES (OUTSIDE) QTY - 2,188,2021
,2021 OFFICE OF THE MAJORITY LEADER,,GENERAL EXPENDITURES,SUPPLIES AND MATERIALS,DETAIL,2021-12-27,AP,1507814,READYREFRESH BY NESTLE,2021-11-30,2021-11-30,WATER,8,2021
,2021 OFFICE OF THE MAJORITY LEADER,,GENERAL EXPENDITURES,SUPPLIES AND MATERIALS,SUBTOTAL,   ,   ,   ,   ,   ,   ,SUPPLIES AND MATERIALS TOTALS:,481.69,2021
,2021 OFFICE OF THE MAJORITY LEADER,,GENERAL EXPENDITURES,SUPPLIES AND MATERIALS,SUBTOTAL,   ,   ,   ,   ,   ,   ,GENERAL EXPENDITURES TOTALS:,890772.13,2021
,2021 OFFICE OF THE MAJORITY LEADER,,GENERAL EXPENDITURES,SUPPLIES AND MATERIALS,GRAND TOTAL FOR ORGANIZATION,   ,   ,   ,   ,   ,   ,OFFICE TOTALS: ,890772.13,2021
,2021 OFFICE OF THE MAJORITY LEADER,,INTERN ALLOWANCES,PERSONNEL COMPENSATION,DETAIL,   ,   ,   ,BIANCO GRANT M.,2021-10-19,2021-12-31,MAJ LEADER PAID INTERN - HOUSE,1800,2021
,2021 OFFICE OF THE MAJORITY LEADER,,INTERN ALLOWANCES,PERSONNEL COMPENSATION,DETAIL,   ,   ,   ,BLANTON ALEXANDER G.,2021-10-19,2021-12-31,MAJ LEADER PAID INTERN - HOUSE,1800,2021
,2021 OFFICE OF THE MAJORITY LEADER,,INTERN ALLOWANCES,PERSONNEL COMPENSATION,DETAIL,   ,   ,   ,CARUSO ROBERT J.,2021-10-19,2021-12-31,MAJ LEADER PAID INTERN - HOUSE,1800,2021
,2021 OFFICE OF THE MAJORITY LEADER,,INTERN ALLOWANCES,PERSONNEL COMPENSATION,DETAIL,   ,   ,   ,INGLE PETER N.,2021-10-19,2021-12-31,MAJ LEADER PAID INTERN - HOUSE,1800,2021
,2021 OFFICE OF THE MAJORITY LEADER,,INTERN ALLOWANCES,PERSONNEL COMPENSATION,SUBTOTAL,   ,   ,   ,   ,   ,   ,PERSONNEL COMPENSATION TOTALS:,7200,2021
,2021 OFFICE OF THE MAJORITY LEADER,,INTERN ALLOWANCES,PERSONNEL COMPENSATION,SUBTOTAL,   ,   ,   ,   ,   ,   ,INTERN ALLOWANCES TOTALS:,7200,2021
,2021 OFFICE OF THE MAJORITY LEADER,,INTERN ALLOWANCES,PERSONNEL COMPENSATION,GRAND TOTAL FOR ORGANIZATION,   ,   ,   ,   ,   ,   ,OFFICE TOTALS: ,7200,2021
,2021 OFFICE OF THE MINORITY LEADER,,GENERAL EXPENDITURES,PERSONNEL COMPENSATION,DETAIL,   ,   ,   ,BEDNAR MARK M,2021-10-01,2021-12-31,DIR OF STRATEGIC COMMUNICATION,41000,2021
,2021 OFFICE OF THE MINORITY LEADER,,GENERAL EXPENDITURES,PERSONNEL COMPENSATION,DETAIL,   ,   ,   ,BERTOLINI STEVEN R.,2021-10-01,2021-12-31,STAFF ASSISTANT,16000,2021
,2021 OFFICE OF THE MINORITY LEADER,,GENERAL EXPENDITURES,PERSONNEL COMPENSATION,DETAIL,   ,   ,   ,BIEN CHRISTOPHER A,2021-10-01,2021-12-31,DEPUTY DIR OF FLOOR OPERATIONS,36500,2021
,2021 OFFICE OF THE MINORITY LEADER,,GENERAL EXPENDITURES,PERSONNEL COMPENSATION,DETAIL,   ,   ,   ,BOGOROWSKI HANNA C,2021-10-01,2021-12-31,COMMUNICATIONS ADVISOR,22500,2021
,2021 OFFICE OF THE MINORITY LEADER,,GENERAL EXPENDITURES,PERSONNEL COMPENSATION,DETAIL,   ,   ,   ,BONNER JENNIFER L,2021-10-01,2021-12-31,SCHEDULER,24500,2021
,2021 OFFICE OF THE MINORITY LEADER,,GENERAL EXPENDITURES,PERSONNEL COMPENSATION,DETAIL,   ,   ,   ,BUCHANAN NATALIE L,2021-10-01,2021-12-31,DEPUTY CHIEF OF STAFF FOR MEMB,47000,2021
,2021 OFFICE OF THE MINORITY LEADER,,GENERAL EXPENDITURES,PERSONNEL COMPENSATION,DETAIL,   ,   ,   ,BURKE ROBERT J,2021-10-01,2021-12-31,COMMUNICATIONS AIDE,17500,2021
,2021 OFFICE OF THE MINORITY LEADER,,GENERAL EXPENDITURES,PERSONNEL COMPENSATION,DETAIL,   ,   ,   ,CAMERON CHRISTINA E,2021-10-01,2021-12-31,MEDIA AFFAIRS & OPERATIONS ADV,30500,2021
,2021 OFFICE OF THE MINORITY LEADER,,GENERAL EXPENDITURES,PERSONNEL COMPENSATION,DETAIL,   ,   ,   ,CARR MACHALAGH,2021-10-01,2021-12-31,GENERAL COUNSEL,47000,2021
,2021 OFFICE OF THE MINORITY LEADER,,GENERAL EXPENDITURES,PERSONNEL COMPENSATION,DETAIL,   ,   ,   ,CONSTANGY III HERBERT W,2021-10-01,2021-12-31,SHARED EMPLOYEE,30000,2021
,2021 OFFICE OF THE MINORITY LEADER,,GENERAL EXPENDITURES,PERSONNEL COMPENSATION,DETAIL,   ,   ,   ,COOK KRISTOPHER D.,2021-10-01,2021-12-31,SHARED EMPLOYEE,31000,2021
,2021 OFFICE OF THE MINORITY LEADER,,GENERAL EXPENDITURES,PERSONNEL COMPENSATION,DETAIL,   ,   ,   ,CORRELL CHARLES C,2021-10-01,2021-12-31,SPEECHWRITER,25500,2021
,2021 OFFICE OF THE MINORITY LEADER,,GENERAL EXPENDITURES,PERSONNEL COMPENSATION,DETAIL,   ,   ,   ,COYLE SARAH M,2021-10-01,2021-12-31,CLOAKROOM FLOOR DIRECTOR,27000,2021
,2021 OFFICE OF THE MINORITY LEADER,,GENERAL EXPENDITURES,PERSONNEL COMPENSATION,DETAIL,   ,   ,   ,DAYER KATHERINE J,2021-10-01,2021-12-31,CLOAKROOM FLOOR ASSISTANT,17500,2021
,2021 OFFICE OF THE MINORITY LEADER,,GENERAL EXPENDITURES,PERSONNEL COMPENSATION,DETAIL,   ,   ,   ,DOMENECH EMILY H,2021-10-01,2021-12-31,SENIOR POLICY ADVISOR,45500,2021
,2021 OFFICE OF THE MINORITY LEADER,,GENERAL EXPENDITURES,PERSONNEL COMPENSATION,DETAIL,   ,   ,   ,DUNHAM WILL,2021-10-01,2021-12-31,DEP CHIEF OF STAFF FOR POLICY,44500,2021
,2021 OFFICE OF THE MINORITY LEADER,,GENERAL EXPENDITURES,PERSONNEL COMPENSATION,DETAIL,   ,   ,   ,EARWOOD ELIZABETH K.,2021-10-01,2021-12-31,SHARED EMPLOYEE,29000,2021
,2021 OFFICE OF THE MINORITY LEADER,,GENERAL EXPENDITURES,PERSONNEL COMPENSATION,DETAIL,   ,   ,   ,ENGLING MAXIMILIAN T,2021-10-01,2021-12-31,DEP DIR OF MEMBER SERVICES,41000,2021
,2021 OFFICE OF THE MINORITY LEADER,,GENERAL EXPENDITURES,PERSONNEL COMPENSATION,DETAIL,   ,   ,   ,EXNER MICHELE P,2021-10-01,2021-12-31,COMMUNICATIONS DIRECTOR,40500,2021
,2021 OFFICE OF THE MINORITY LEADER,,GENERAL EXPENDITURES,PERSONNEL COMPENSATION,DETAIL,   ,   ,   ,GIAIER STEVEN S,2021-10-01,2021-12-31,SENIOR POLICY ADVISOR & COUNSE,44500,2021
,2021 OFFICE OF THE MINORITY LEADER,,GENERAL EXPENDITURES,PERSONNEL COMPENSATION,DETAIL,   ,   ,   ,GILLESPIE JAMES M.,2021-10-01,2021-12-31,SPECIAL ASSISTANT TO THE REPUL,22250,2021
,2021 OFFICE OF THE MINORITY LEADER,,GENERAL EXPENDITURES,PERSONNEL COMPENSATION,DETAIL,   ,   ,   ,GILMARTIN CHARLES P.,2021-10-01,2021-12-31,DEPUTY SPOKESMAN,21750,2021
,2021 OFFICE OF THE MINORITY LEADER,,GENERAL EXPENDITURES,PERSONNEL COMPENSATION,DETAIL,   ,   ,   ,GOURDIKIAN ALEXANDRA G.,2021-10-01,2021-12-31,DIRECTOR OF OPERATIONS & SCHED,42500,2021
,2021 OFFICE OF THE MINORITY LEADER,,GENERAL EXPENDITURES,PERSONNEL COMPENSATION,DETAIL,   ,   ,   ,HAULSEE TAYLOR S.,2021-10-01,2021-12-31,SHARED EMPLOYEE,30000,2021
,2021 OFFICE OF THE MINORITY LEADER,,GENERAL EXPENDITURES,PERSONNEL COMPENSATION,DETAIL,   ,   ,   ,HILL PRESTON W,2021-10-01,2021-12-31,POLICY ADVISOR,35000,2021
,2021 OFFICE OF THE MINORITY LEADER,,GENERAL EXPENDITURES,PERSONNEL COMPENSATION,DETAIL,   ,   ,   ,HOCHSCHILD KEENAN N.,2021-10-01,2021-12-31,DIGITAL COMMUNICATIONS ADVISOR,22500,2021
,2021 OFFICE OF THE MINORITY LEADER,,GENERAL EXPENDITURES,PERSONNEL COMPENSATION,DETAIL,   ,   ,   ,HOWELL MARGARET E.,2021-10-01,2021-12-31,GRAPHIC DESIGNER,19000,2021
,2021 OFFICE OF THE MINORITY LEADER,,GENERAL EXPENDITURES,PERSONNEL COMPENSATION,DETAIL,   ,   ,   ,HUMES ALEXANDRA W.,2021-10-01,2021-12-31,MEMBER SERVICES COORDINATOR,23250,2021
,2021 OFFICE OF THE MINORITY LEADER,,GENERAL EXPENDITURES,PERSONNEL COMPENSATION,DETAIL,   ,   ,   ,KELLY CARI R,2021-10-01,2021-12-31,SHARED EMPLOYEE,32750,2021
,2021 OFFICE OF THE MINORITY LEADER,,GENERAL EXPENDITURES,PERSONNEL COMPENSATION,DETAIL,   ,   ,   ,LEGANSKI JOHN G,2021-10-01,2021-12-31,DIRECTOR OF FLOOR OPERATIONS,47000,2021
,2021 OFFICE OF THE MINORITY LEADER,,GENERAL EXPENDITURES,PERSONNEL COMPENSATION,DETAIL,   ,   ,   ,LOMBARDI KYLE,2021-10-01,2021-12-31,SHARED EMPLOYEE,36500,2021
,2021 OFFICE OF THE MINORITY LEADER,,GENERAL EXPENDITURES,PERSONNEL COMPENSATION,DETAIL,   ,   ,   ,LONG RYAN C,2021-10-01,2021-12-31,SR POLICY ADVISOR  & COUNSEL,47000,2021
,2021 OFFICE OF THE MINORITY LEADER,,GENERAL EXPENDITURES,PERSONNEL COMPENSATION,DETAIL,   ,   ,   ,LUNDQUIST MICHAEL J.,2021-10-14,2021-12-31,TEMPORARY EMPLOYEE,2566.67,2021
,2021 OFFICE OF THE MINORITY LEADER,,GENERAL EXPENDITURES,PERSONNEL COMPENSATION,DETAIL,   ,   ,   ,MARTINEZ BRITTANY N,2021-10-01,2021-12-31,CALIFORNIA PRESS SECRETARY,23500,2021
,2021 OFFICE OF THE MINORITY LEADER,,GENERAL EXPENDITURES,PERSONNEL COMPENSATION,DETAIL,   ,   ,   ,MEYER DANIEL P,2021-10-01,2021-12-31,CHIEF OF STAFF,47600,2021
,2021 OFFICE OF THE MINORITY LEADER,,GENERAL EXPENDITURES,PERSONNEL COMPENSATION,DETAIL,   ,   ,   ,MIN JAMES B.,2021-10-01,2021-12-31,DEPUTY CHIEF OF STAFF/COUNSEL,45250,2021
,2021 OFFICE OF THE MINORITY LEADER,,GENERAL EXPENDITURES,PERSONNEL COMPENSATION,DETAIL,   ,   ,   ,MURPHY CULLEN D,2021-10-01,2021-12-31,FLOOR ASSISTANT,19000,2021
,2021 OFFICE OF THE MINORITY LEADER,,GENERAL EXPENDITURES,PERSONNEL COMPENSATION,DETAIL,   ,   ,   ,SMITH CALEB J,2021-10-01,2021-12-31,DIGITAL COMMUNICATIONS DIRECTO,47000,2021
,2021 OFFICE OF THE MINORITY LEADER,,GENERAL EXPENDITURES,PERSONNEL COMPENSATION,DETAIL,   ,   ,   ,SMITH TREVOR H,2021-10-01,2021-12-31,SHARED EMPLOYEE,30500,2021
,2021 OFFICE OF THE MINORITY LEADER,,GENERAL EXPENDITURES,PERSONNEL COMPENSATION,DETAIL,   ,   ,   ,SMITHWICK KYLE B,2021-10-01,2021-12-31,SHARED EMPLOYEE,30000,2021
,2021 OFFICE OF THE MINORITY LEADER,,GENERAL EXPENDITURES,PERSONNEL COMPENSATION,DETAIL,   ,   ,   ,SOUZA ALLEN R,2021-10-01,2021-12-31,NATIONAL SECURITY ADVISOR,45000,2021
,2021 OFFICE OF THE MINORITY LEADER,,GENERAL EXPENDITURES,PERSONNEL COMPENSATION,DETAIL,   ,   ,   ,SPARKS MATTHEW E,2021-10-01,2021-12-31,HEAD OF COMMUNICATIONS,47000,2021
,2021 OFFICE OF THE MINORITY LEADER,,GENERAL EXPENDITURES,PERSONNEL COMPENSATION,DETAIL,   ,   ,   ,SPECHT BRITTAN G,2021-10-01,2021-12-31,SENIOR POLICY ADVISOR,45500,2021
,2021 OFFICE OF THE MINORITY LEADER,,GENERAL EXPENDITURES,PERSONNEL COMPENSATION,SUBTOTAL,   ,   ,   ,   ,   ,   ,PERSONNEL COMPENSATION TOTALS:,1420916.67,2021
,2021 OFFICE OF THE MINORITY LEADER,,GENERAL EXPENDITURES,TRAVEL,DETAIL,2021-12-03,AP,1496953,GIAIER STEVEN S,2021-10-18,2021-10-18,TAXI/RIDE SHARE,48.69,2021
,2021 OFFICE OF THE MINORITY LEADER,,GENERAL EXPENDITURES,TRAVEL,DETAIL,2021-12-03,AP,1496953,GIAIER STEVEN S,2021-10-19,2021-10-19,TAXI/RIDE SHARE,47.9,2021
,2021 OFFICE OF THE MINORITY LEADER,,GENERAL EXPENDITURES,TRAVEL,DETAIL,2021-12-03,AP,1496953,GIAIER STEVEN S,2021-10-20,2021-10-20,TAXI/RIDE SHARE,61.08,2021
,2021 OFFICE OF THE MINORITY LEADER,,GENERAL EXPENDITURES,TRAVEL,DETAIL,2021-12-03,AP,1496953,GIAIER STEVEN S,2021-10-21,2021-10-21,TAXI/RIDE SHARE,48.9,2021
,2021 OFFICE OF THE MINORITY LEADER,,GENERAL EXPENDITURES,TRAVEL,DETAIL,2021-12-03,AP,1496953,GIAIER STEVEN S,2021-10-22,2021-10-22,TAXI/RIDE SHARE,54.86,2021
,2021 OFFICE OF THE MINORITY LEADER,,GENERAL EXPENDITURES,TRAVEL,DETAIL,2021-12-03,AP,1496953,GIAIER STEVEN S,2021-10-25,2021-10-25,TAXI/RIDE SHARE,51.21,2021
,2021 OFFICE OF THE MINORITY LEADER,,GENERAL EXPENDITURES,TRAVEL,DETAIL,2021-12-03,AP,1496953,GIAIER STEVEN S,2021-10-26,2021-10-26,TAXI/RIDE SHARE,53.93,2021
,2021 OFFICE OF THE MINORITY LEADER,,GENERAL EXPENDITURES,TRAVEL,DETAIL,2021-12-03,AP,1496953,GIAIER STEVEN S,2021-10-27,2021-10-27,TAXI/RIDE SHARE,52.24,2021
,2021 OFFICE OF THE MINORITY LEADER,,GENERAL EXPENDITURES,TRAVEL,DETAIL,2021-12-03,AP,1496953,GIAIER STEVEN S,2021-10-28,2021-10-28,TAXI/RIDE SHARE,21.56,2021
,2021 OFFICE OF THE MINORITY LEADER,,GENERAL EXPENDITURES,TRAVEL,SUBTOTAL,   ,   ,   ,   ,   ,   ,TRAVEL TOTALS:,440.37,2021
,2021 OFFICE OF THE MINORITY LEADER,,GENERAL EXPENDITURES,RENT  COMMUNICATION  UTILITIES,DETAIL,2021-10-15,AP,1476179,CITI PCARD-USPS PO 1050091422,2021-09-07,2021-09-07,POSTAGE / COURIER / BOX RENTAL,48.2,2021
,2021 OFFICE OF THE MINORITY LEADER,,GENERAL EXPENDITURES,RENT  COMMUNICATION  UTILITIES,DETAIL,2021-10-25,AP,1477008,CITI PCARD-GOOGLE  YouTube TV,2021-07-29,2021-08-28,UTILITIES,68.89,2021
,2021 OFFICE OF THE MINORITY LEADER,,GENERAL EXPENDITURES,RENT  COMMUNICATION  UTILITIES,DETAIL,2021-10-25,AP,1477008,CITI PCARD-GOOGLE  YouTube TV,2021-08-29,2021-09-28,UTILITIES,68.89,2021
,2021 OFFICE OF THE MINORITY LEADER,,GENERAL EXPENDITURES,RENT  COMMUNICATION  UTILITIES,DETAIL,2021-10-25,GL,EMS0110562, ,2021-09-01,2021-09-30,DC TELECOM EQUIP (TRANSFER),40,2021
,2021 OFFICE OF THE MINORITY LEADER,,GENERAL EXPENDITURES,RENT  COMMUNICATION  UTILITIES,DETAIL,2021-10-25,GL,EMS0110562, ,2021-09-01,2021-09-30,DC TELECOM SERV (TRANSFER),570.75,2021
,2021 OFFICE OF THE MINORITY LEADER,,GENERAL EXPENDITURES,RENT  COMMUNICATION  UTILITIES,DETAIL,2021-10-25,GL,EMS0110562, ,2021-09-01,2021-09-30,DC TELECOM TOLLS (TRANSFER),2059.72,2021
,2021 OFFICE OF THE MINORITY LEADER,,GENERAL EXPENDITURES,RENT  COMMUNICATION  UTILITIES,DETAIL,2021-11-09,AP,1485615,CITI PCARD-GOOGLE  YouTube TV,2021-09-29,2021-10-28,UTILITIES,68.89,2021
,2021 OFFICE OF THE MINORITY LEADER,,GENERAL EXPENDITURES,RENT  COMMUNICATION  UTILITIES,DETAIL,2021-11-24,GL,EMS0111169, ,2021-10-01,2021-10-31,DC TELECOM EQUIP (TRANSFER),40,2021
,2021 OFFICE OF THE MINORITY LEADER,,GENERAL EXPENDITURES,RENT  COMMUNICATION  UTILITIES,DETAIL,2021-11-24,GL,EMS0111169, ,2021-10-01,2021-10-31,DC TELECOM SERV (TRANSFER),570.75,2021
,2021 OFFICE OF THE MINORITY LEADER,,GENERAL EXPENDITURES,RENT  COMMUNICATION  UTILITIES,DETAIL,2021-11-24,GL,EMS0111169, ,2021-10-01,2021-10-31,DC TELECOM TOLLS (TRANSFER),2077.89,2021
,2021 OFFICE OF THE MINORITY LEADER,,GENERAL EXPENDITURES,RENT  COMMUNICATION  UTILITIES,DETAIL,2021-12-17,AP,1501064,CITI PCARD-FEDEX 940665528800,2021-11-16,2021-11-16,POSTAGE / COURIER / BOX RENTAL,24.9,2021
,2021 OFFICE OF THE MINORITY LEADER,,GENERAL EXPENDITURES,RENT  COMMUNICATION  UTILITIES,DETAIL,2021-12-20,AP,1500566,CITI PCARD-GOOGLE  YouTube TV,2021-10-29,2021-11-28,UTILITIES,68.89,2021
,2021 OFFICE OF THE MINORITY LEADER,,GENERAL EXPENDITURES,RENT  COMMUNICATION  UTILITIES,DETAIL,2021-12-27,GL,EMS0111861, ,2021-11-01,2021-11-30,DC TELECOM EQUIP (TRANSFER),40,2021
,2021 OFFICE OF THE MINORITY LEADER,,GENERAL EXPENDITURES,RENT  COMMUNICATION  UTILITIES,DETAIL,2021-12-27,GL,EMS0111861, ,2021-11-01,2021-11-30,DC TELECOM SERV (TRANSFER),570.75,2021
,2021 OFFICE OF THE MINORITY LEADER,,GENERAL EXPENDITURES,RENT  COMMUNICATION  UTILITIES,DETAIL,2021-12-27,GL,EMS0111861, ,2021-11-01,2021-11-30,DC TELECOM TOLLS (TRANSFER),2171.84,2021
,2021 OFFICE OF THE MINORITY LEADER,,GENERAL EXPENDITURES,RENT  COMMUNICATION  UTILITIES,SUBTOTAL,   ,   ,   ,   ,   ,   ,RENT  COMMUNICATION  UTILITIES TOTALS:,8490.36,2021
,2021 OFFICE OF THE MINORITY LEADER,,GENERAL EXPENDITURES,PRINTING AND REPRODUCTION,DETAIL,2021-12-16,AP,1501773,ACCURATE WORD,2021-12-10,2021-12-10,FRANKABLE PRINTING & REPROD,470,2021
,2021 OFFICE OF THE MINORITY LEADER,,GENERAL EXPENDITURES,PRINTING AND REPRODUCTION,SUBTOTAL,   ,   ,   ,   ,   ,   ,PRINTING AND REPRODUCTION TOTALS:,470,2021
,2021 OFFICE OF THE MINORITY LEADER,,GENERAL EXPENDITURES,OTHER SERVICES,DETAIL,2021-10-16,AP,1478260,HOUSECALL LLC,2021-10-01,2021-10-31,TECHNOLOGY SERVICE CONTRACTS,5125,2021
,2021 OFFICE OF THE MINORITY LEADER,,GENERAL EXPENDITURES,OTHER SERVICES,DETAIL,2021-10-25,AP,1477008,CITI PCARD-MailChimp,2021-09-12,2021-10-11,WEB DEV HST EMAIL & RLTD SERV,646.6,2021
,2021 OFFICE OF THE MINORITY LEADER,,GENERAL EXPENDITURES,OTHER SERVICES,DETAIL,2021-11-09,AP,1485615,CITI PCARD-MailChimp,2021-10-12,2021-11-11,WEB DEV HST EMAIL & RLTD SERV,646.6,2021
,2021 OFFICE OF THE MINORITY LEADER,,GENERAL EXPENDITURES,OTHER SERVICES,DETAIL,2021-11-16,AP,1490734,HOUSECALL LLC,2021-11-01,2021-11-30,TECHNOLOGY SERVICE CONTRACTS,5125,2021
,2021 OFFICE OF THE MINORITY LEADER,,GENERAL EXPENDITURES,OTHER SERVICES,DETAIL,2021-12-16,AP,1501127,DIVERSIFIED REPORTING SERVICES INC,2021-11-18,2021-11-22,STENOGRAPHIC REPORTING,1180.4,2021
,2021 OFFICE OF THE MINORITY LEADER,,GENERAL EXPENDITURES,OTHER SERVICES,DETAIL,2021-12-16,AP,1503539,HOUSECALL LLC,2021-12-01,2021-12-31,TECHNOLOGY SERVICE CONTRACTS,5125,2021
,2021 OFFICE OF THE MINORITY LEADER,,GENERAL EXPENDITURES,OTHER SERVICES,DETAIL,2021-12-20,AP,1500566,CITI PCARD-MailChimp,2021-11-12,2021-12-11,WEB DEV HST EMAIL & RLTD SERV,646.6,2021
,2021 OFFICE OF THE MINORITY LEADER,,GENERAL EXPENDITURES,OTHER SERVICES,SUBTOTAL,   ,   ,   ,   ,   ,   ,OTHER SERVICES TOTALS:,18495.2,2021
,2021 OFFICE OF THE MINORITY LEADER,,GENERAL EXPENDITURES,SUPPLIES AND MATERIALS,DETAIL,2021-10-12,AP,1476486,SMITH CALEB,2021-09-16,2021-09-16,SOFTWARE  LESS THAN  $500,-49,2021
,2021 OFFICE OF THE MINORITY LEADER,,GENERAL EXPENDITURES,SUPPLIES AND MATERIALS,DETAIL,2021-10-12,AP,1476486,SMITH CALEB,2021-09-16,2021-09-16,PUBLICATIONS/REFERENCE MAT'L,49,2021
,2021 OFFICE OF THE MINORITY LEADER,,GENERAL EXPENDITURES,SUPPLIES AND MATERIALS,DETAIL,2021-10-15,AP,1476179,CITI PCARD-CHICK-FIL-A #04346,2021-08-31,2021-08-31,FOOD & BEVERAGE,596.76,2021
,2021 OFFICE OF THE MINORITY LEADER,,GENERAL EXPENDITURES,SUPPLIES AND MATERIALS,DETAIL,2021-10-15,AP,1476179,CITI PCARD-CHICK-FIL-A #04346,2021-09-20,2021-09-20,FOOD & BEVERAGE,765.81,2021
,2021 OFFICE OF THE MINORITY LEADER,,GENERAL EXPENDITURES,SUPPLIES AND MATERIALS,DETAIL,2021-10-15,AP,1476179,CITI PCARD-CHICK-FIL-A #04346,2021-09-21,2021-09-21,FOOD & BEVERAGE,1006.09,2021
,2021 OFFICE OF THE MINORITY LEADER,,GENERAL EXPENDITURES,SUPPLIES AND MATERIALS,DETAIL,2021-10-15,AP,1476179,CITI PCARD-DISTRICT TACO 1003 ONLINE,2021-08-30,2021-08-30,FOOD & BEVERAGE,675.2,2021
,2021 OFFICE OF THE MINORITY LEADER,,GENERAL EXPENDITURES,SUPPLIES AND MATERIALS,DETAIL,2021-10-15,AP,1476179,CITI PCARD-DISTRICT TACO 1003 ONLINE,2021-09-21,2021-09-21,FOOD & BEVERAGE,447.17,2021
,2021 OFFICE OF THE MINORITY LEADER,,GENERAL EXPENDITURES,SUPPLIES AND MATERIALS,DETAIL,2021-10-15,AP,1476179,CITI PCARD-DISTRICT TACO 1003 ONLINE,2021-09-23,2021-09-23,FOOD & BEVERAGE,503.93,2021
,2021 OFFICE OF THE MINORITY LEADER,,GENERAL EXPENDITURES,SUPPLIES AND MATERIALS,DETAIL,2021-10-15,AP,1476179,CITI PCARD-PANERA BREAD #607014 O,2021-08-31,2021-08-31,FOOD & BEVERAGE,584.13,2021
,2021 OFFICE OF THE MINORITY LEADER,,GENERAL EXPENDITURES,SUPPLIES AND MATERIALS,DETAIL,2021-10-15,AP,1476179,CITI PCARD-READYREFRESH BY NESTLE,2021-08-27,2021-09-26,WATER,43.52,2021
,2021 OFFICE OF THE MINORITY LEADER,,GENERAL EXPENDITURES,SUPPLIES AND MATERIALS,DETAIL,2021-10-15,AP,1476179,CITI PCARD-SQ  BULLFROG BAGELS,2021-09-24,2021-09-24,FOOD & BEVERAGE,271.5,2021
,2021 OFFICE OF THE MINORITY LEADER,,GENERAL EXPENDITURES,SUPPLIES AND MATERIALS,DETAIL,2021-10-15,AP,1476233,MIN JAMES B.,2021-10-11,2021-10-11,WATER,28.3,2021
,2021 OFFICE OF THE MINORITY LEADER,,GENERAL EXPENDITURES,SUPPLIES AND MATERIALS,DETAIL,2021-10-15,AP,1476233,MIN JAMES B.,2021-10-11,2021-10-11,OFFICE SUPPLIES (OUTSIDE),7.69,2021
,2021 OFFICE OF THE MINORITY LEADER,,GENERAL EXPENDITURES,SUPPLIES AND MATERIALS,DETAIL,2021-10-25,AP,1477008,CITI PCARD-AMZN Mktp US 2C0QT3CX0,2021-09-21,2021-09-21,OFFICE SUPPLIES (OUTSIDE),27.99,2021
,2021 OFFICE OF THE MINORITY LEADER,,GENERAL EXPENDITURES,SUPPLIES AND MATERIALS,DETAIL,2021-10-25,AP,1477008,CITI PCARD-AMZN Mktp US 2G7S08V50,2021-09-13,2021-09-13,OFFICE SUPPLIES (OUTSIDE),22.98,2021
,2021 OFFICE OF THE MINORITY LEADER,,GENERAL EXPENDITURES,SUPPLIES AND MATERIALS,DETAIL,2021-10-25,AP,1477008,CITI PCARD-APPLE.COM/BILL,2021-08-12,2021-09-11,SOFTWARE  LESS THAN  $500,1.99,2021
,2021 OFFICE OF THE MINORITY LEADER,,GENERAL EXPENDITURES,SUPPLIES AND MATERIALS,DETAIL,2021-10-25,AP,1477008,CITI PCARD-APPLE.COM/BILL,2021-09-12,2021-10-11,SOFTWARE  LESS THAN  $500,1.99,2021
,2021 OFFICE OF THE MINORITY LEADER,,GENERAL EXPENDITURES,SUPPLIES AND MATERIALS,DETAIL,2021-10-25,AP,1477008,CITI PCARD-Amazon.com 2G4Q096L2,2021-09-21,2021-09-21,FOOD & BEVERAGE,27.96,2021
,2021 OFFICE OF THE MINORITY LEADER,,GENERAL EXPENDITURES,SUPPLIES AND MATERIALS,DETAIL,2021-10-25,AP,1477008,CITI PCARD-D J WALL-ST-JOURNAL,2021-09-20,2021-10-19,PUBLICATIONS/REFERENCE MAT'L,52.99,2021
,2021 OFFICE OF THE MINORITY LEADER,,GENERAL EXPENDITURES,SUPPLIES AND MATERIALS,DETAIL,2021-10-25,AP,1477008,CITI PCARD-FTP FINANCIAL TIMES,2021-08-29,2021-09-28,PUBLICATIONS/REFERENCE MAT'L,59.5,2021
,2021 OFFICE OF THE MINORITY LEADER,,GENERAL EXPENDITURES,SUPPLIES AND MATERIALS,DETAIL,2021-10-25,AP,1477008,CITI PCARD-NYTimes NYTimes,2021-09-10,2021-10-08,PUBLICATIONS/REFERENCE MAT'L,18.02,2021
,2021 OFFICE OF THE MINORITY LEADER,,GENERAL EXPENDITURES,SUPPLIES AND MATERIALS,DETAIL,2021-10-25,AP,1477008,CITI PCARD-ZOOM.US 888-799-9666,2021-09-04,2021-10-03,SOFTWARE  LESS THAN  $500,15.74,2021
,2021 OFFICE OF THE MINORITY LEADER,,GENERAL EXPENDITURES,SUPPLIES AND MATERIALS,DETAIL,2021-10-25,AP,1477008,CITI PCARD-ZOOM.US 888-799-9666,2021-09-23,2021-10-22,SOFTWARE  LESS THAN  $500,40,2021
,2021 OFFICE OF THE MINORITY LEADER,,GENERAL EXPENDITURES,SUPPLIES AND MATERIALS,DETAIL,2021-10-27,AP,1483160,MIN JAMES B.,2021-10-25,2021-10-25,FOOD & BEVERAGE,553.55,2021
,2021 OFFICE OF THE MINORITY LEADER,,GENERAL EXPENDITURES,SUPPLIES AND MATERIALS,DETAIL,2021-10-31,GL,RMS0110650, ,2021-10-01,2021-10-31,OFFICE SUPPLY (TRANSFER),289.42,2021
,2021 OFFICE OF THE MINORITY LEADER,,GENERAL EXPENDITURES,SUPPLIES AND MATERIALS,DETAIL,2021-11-02,AP,1484899,BOGOROWSKI HANNA C,2021-10-25,2021-10-25,HABITATION EXPENSE,20.97,2021
,2021 OFFICE OF THE MINORITY LEADER,,GENERAL EXPENDITURES,SUPPLIES AND MATERIALS,DETAIL,2021-11-03,AP,1485524,CAMERON CHRISTINA E.,2021-11-01,2021-11-01,HABITATION EXPENSE,31.77,2021
,2021 OFFICE OF THE MINORITY LEADER,,GENERAL EXPENDITURES,SUPPLIES AND MATERIALS,DETAIL,2021-11-09,AP,1485615,CITI PCARD-AMAZON.COM 275LU5KE0 AMZN,2021-10-13,2021-10-13,WATER,27.96,2021
,2021 OFFICE OF THE MINORITY LEADER,,GENERAL EXPENDITURES,SUPPLIES AND MATERIALS,DETAIL,2021-11-09,AP,1485615,CITI PCARD-AMZN Mktp US 276AM7U11,2021-10-12,2021-10-12,OFFICE SUPPLIES (OUTSIDE),11.99,2021
,2021 OFFICE OF THE MINORITY LEADER,,GENERAL EXPENDITURES,SUPPLIES AND MATERIALS,DETAIL,2021-11-09,AP,1485615,CITI PCARD-AMZN Mktp US 2Y3662ZA2,2021-10-19,2021-10-19,OFFICE SUPPLIES (OUTSIDE),204.8,2021
,2021 OFFICE OF THE MINORITY LEADER,,GENERAL EXPENDITURES,SUPPLIES AND MATERIALS,DETAIL,2021-11-09,AP,1485615,CITI PCARD-AMZN Mktp US 2Y4RS22M0,2021-10-22,2021-10-22,OFFICE SUPPLIES (OUTSIDE),107.78,2021
,2021 OFFICE OF THE MINORITY LEADER,,GENERAL EXPENDITURES,SUPPLIES AND MATERIALS,DETAIL,2021-11-09,AP,1485615,CITI PCARD-APPLE.COM/BILL,2021-08-08,2021-08-21,SOFTWARE  LESS THAN  $500,17.98,2021
,2021 OFFICE OF THE MINORITY LEADER,,GENERAL EXPENDITURES,SUPPLIES AND MATERIALS,DETAIL,2021-11-09,AP,1485615,CITI PCARD-D J WALL-ST-JOURNAL,2021-10-20,2021-11-19,PUBLICATIONS/REFERENCE MAT'L,52.99,2021
,2021 OFFICE OF THE MINORITY LEADER,,GENERAL EXPENDITURES,SUPPLIES AND MATERIALS,DETAIL,2021-11-09,AP,1485615,CITI PCARD-FTP FINANCIAL TIMES,2021-09-29,2021-10-28,PUBLICATIONS/REFERENCE MAT'L,59.5,2021
,2021 OFFICE OF THE MINORITY LEADER,,GENERAL EXPENDITURES,SUPPLIES AND MATERIALS,DETAIL,2021-11-09,AP,1485615,CITI PCARD-LA TIMES SUBSCRIPTION,2021-07-13,2021-08-10,PUBLICATIONS/REFERENCE MAT'L,27.72,2021
,2021 OFFICE OF THE MINORITY LEADER,,GENERAL EXPENDITURES,SUPPLIES AND MATERIALS,DETAIL,2021-11-09,AP,1485615,CITI PCARD-LA TIMES SUBSCRIPTION,2021-08-10,2021-09-07,PUBLICATIONS/REFERENCE MAT'L,27.72,2021
,2021 OFFICE OF THE MINORITY LEADER,,GENERAL EXPENDITURES,SUPPLIES AND MATERIALS,DETAIL,2021-11-09,AP,1485615,CITI PCARD-LA TIMES SUBSCRIPTION,2021-09-07,2021-10-05,PUBLICATIONS/REFERENCE MAT'L,27.72,2021
,2021 OFFICE OF THE MINORITY LEADER,,GENERAL EXPENDITURES,SUPPLIES AND MATERIALS,DETAIL,2021-11-09,AP,1485615,CITI PCARD-LA TIMES SUBSCRIPTION,2021-10-05,2021-11-02,PUBLICATIONS/REFERENCE MAT'L,27.72,2021
,2021 OFFICE OF THE MINORITY LEADER,,GENERAL EXPENDITURES,SUPPLIES AND MATERIALS,DETAIL,2021-11-09,AP,1485615,CITI PCARD-NYTimes NYTimes,2021-10-08,2021-11-05,PUBLICATIONS/REFERENCE MAT'L,18.02,2021
,2021 OFFICE OF THE MINORITY LEADER,,GENERAL EXPENDITURES,SUPPLIES AND MATERIALS,DETAIL,2021-11-09,AP,1485615,CITI PCARD-PERSONAL PAYMENT,2021-08-08,2021-08-08,SOFTWARE  LESS THAN  $500,-17.98,2021
,2021 OFFICE OF THE MINORITY LEADER,,GENERAL EXPENDITURES,SUPPLIES AND MATERIALS,DETAIL,2021-11-09,AP,1485615,CITI PCARD-ZOOM.US 888-799-9666,2021-10-04,2021-11-03,SOFTWARE  LESS THAN  $500,15.74,2021
,2021 OFFICE OF THE MINORITY LEADER,,GENERAL EXPENDITURES,SUPPLIES AND MATERIALS,DETAIL,2021-11-09,AP,1485615,CITI PCARD-ZOOM.US 888-799-9666,2021-10-23,2021-11-22,SOFTWARE  LESS THAN  $500,40,2021
,2021 OFFICE OF THE MINORITY LEADER,,GENERAL EXPENDITURES,SUPPLIES AND MATERIALS,DETAIL,2021-11-16,AP,1488868,CITI PCARD-ANIMOTO INC,2021-10-20,2022-10-20,PUBLICATIONS/REFERENCE MAT'L,180,2021
,2021 OFFICE OF THE MINORITY LEADER,,GENERAL EXPENDITURES,SUPPLIES AND MATERIALS,DETAIL,2021-11-16,AP,1488868,CITI PCARD-B&H PHOTO 800-606-6969,2021-10-25,2021-10-25,OFFICE SUPPLIES (OUTSIDE),276.44,2021
,2021 OFFICE OF THE MINORITY LEADER,,GENERAL EXPENDITURES,SUPPLIES AND MATERIALS,DETAIL,2021-11-16,AP,1488868,CITI PCARD-CAFE RIO CATERING,2021-10-21,2021-10-21,FOOD & BEVERAGE,628.57,2021
,2021 OFFICE OF THE MINORITY LEADER,,GENERAL EXPENDITURES,SUPPLIES AND MATERIALS,DETAIL,2021-11-16,AP,1488868,CITI PCARD-CHICK-FIL-A #04346,2021-09-27,2021-09-27,FOOD & BEVERAGE,378.4,2021
,2021 OFFICE OF THE MINORITY LEADER,,GENERAL EXPENDITURES,SUPPLIES AND MATERIALS,DETAIL,2021-11-16,AP,1488868,CITI PCARD-CHICK-FIL-A #04346,2021-10-19,2021-10-19,FOOD & BEVERAGE,765.81,2021
,2021 OFFICE OF THE MINORITY LEADER,,GENERAL EXPENDITURES,SUPPLIES AND MATERIALS,DETAIL,2021-11-16,AP,1488868,CITI PCARD-MISSION BBQ CATERING NORT,2021-10-26,2021-10-26,FOOD & BEVERAGE,465,2021
,2021 OFFICE OF THE MINORITY LEADER,,GENERAL EXPENDITURES,SUPPLIES AND MATERIALS,DETAIL,2021-11-16,AP,1488868,CITI PCARD-PUCK.NEWS,2021-10-19,2022-10-19,PUBLICATIONS/REFERENCE MAT'L,100,2021
,2021 OFFICE OF THE MINORITY LEADER,,GENERAL EXPENDITURES,SUPPLIES AND MATERIALS,DETAIL,2021-11-16,AP,1488868,CITI PCARD-READYREFRESH BY NESTLE,2021-08-27,2021-09-26,WATER,43.52,2021
,2021 OFFICE OF THE MINORITY LEADER,,GENERAL EXPENDITURES,SUPPLIES AND MATERIALS,DETAIL,2021-11-16,AP,1488868,CITI PCARD-USHR CATERING,2021-10-01,2021-10-01,FOOD & BEVERAGE,1111.21,2021
,2021 OFFICE OF THE MINORITY LEADER,,GENERAL EXPENDITURES,SUPPLIES AND MATERIALS,DETAIL,2021-11-16,AP,1488868,CITI PCARD-ZOES KITCHEN,2021-09-28,2021-09-28,FOOD & BEVERAGE,462.41,2021
,2021 OFFICE OF THE MINORITY LEADER,,GENERAL EXPENDITURES,SUPPLIES AND MATERIALS,DETAIL,2021-11-23,AP,1494430,BGOV LLC,2022-01-01,2022-12-31,PUBLICATIONS/REFERENCE MAT'L,5940,2021
,2021 OFFICE OF THE MINORITY LEADER,,GENERAL EXPENDITURES,SUPPLIES AND MATERIALS,DETAIL,2021-11-30,GL,RMS0111316, ,2021-11-01,2021-11-30,OFFICE SUPPLY (TRANSFER),46.1,2021
,2021 OFFICE OF THE MINORITY LEADER,,GENERAL EXPENDITURES,SUPPLIES AND MATERIALS,DETAIL,2021-12-01,AP,1496361,MIN JAMES B.,2021-11-29,2021-11-29,FOOD & BEVERAGE,431.25,2021
,2021 OFFICE OF THE MINORITY LEADER,,GENERAL EXPENDITURES,SUPPLIES AND MATERIALS,DETAIL,2021-12-01,AP,1496361,MIN JAMES B.,2021-11-27,2021-11-27,OFFICE SUPPLIES (OUTSIDE),26.48,2021
,2021 OFFICE OF THE MINORITY LEADER,,GENERAL EXPENDITURES,SUPPLIES AND MATERIALS,DETAIL,2021-12-06,AP,1497207,MIN JAMES B.,2021-12-01,2021-12-01,FOOD & BEVERAGE,26.42,2021
,2021 OFFICE OF THE MINORITY LEADER,,GENERAL EXPENDITURES,SUPPLIES AND MATERIALS,DETAIL,2021-12-06,AP,1497702,POLITICO LLC,2022-01-01,2022-12-31,PUBLICATIONS/REFERENCE MAT'L,8455,2021
,2021 OFFICE OF THE MINORITY LEADER,,GENERAL EXPENDITURES,SUPPLIES AND MATERIALS,DETAIL,2021-12-17,AP,1501064,CITI PCARD-B&H PHOTO 800-606-6969,2021-11-18,2021-11-18,OFFICE SUPPLIES (OUTSIDE),42.88,2021
,2021 OFFICE OF THE MINORITY LEADER,,GENERAL EXPENDITURES,SUPPLIES AND MATERIALS,DETAIL,2021-12-17,AP,1501064,CITI PCARD-BONCHON CHICKEN,2021-11-04,2021-11-04,FOOD & BEVERAGE,650,2021
,2021 OFFICE OF THE MINORITY LEADER,,GENERAL EXPENDITURES,SUPPLIES AND MATERIALS,DETAIL,2021-12-17,AP,1501064,CITI PCARD-BONCHON CHICKEN,2021-11-18,2021-11-18,FOOD & BEVERAGE,799.8,2021
,2021 OFFICE OF THE MINORITY LEADER,,GENERAL EXPENDITURES,SUPPLIES AND MATERIALS,DETAIL,2021-12-17,AP,1501064,CITI PCARD-CHICK-FIL-A #03882,2021-11-15,2021-11-15,FOOD & BEVERAGE,331.86,2021
,2021 OFFICE OF THE MINORITY LEADER,,GENERAL EXPENDITURES,SUPPLIES AND MATERIALS,DETAIL,2021-12-17,AP,1501064,CITI PCARD-CHICK-FIL-A #04346,2021-11-22,2021-11-22,FOOD & BEVERAGE,770.44,2021
,2021 OFFICE OF THE MINORITY LEADER,,GENERAL EXPENDITURES,SUPPLIES AND MATERIALS,DETAIL,2021-12-17,AP,1501064,CITI PCARD-DISTRICT TACO 1003 ONLINE,2021-10-28,2021-10-28,FOOD & BEVERAGE,464.43,2021
,2021 OFFICE OF THE MINORITY LEADER,,GENERAL EXPENDITURES,SUPPLIES AND MATERIALS,DETAIL,2021-12-17,AP,1501064,CITI PCARD-GOOD STUFF EATERY #2,2021-11-05,2021-11-05,FOOD & BEVERAGE,475.88,2021
,2021 OFFICE OF THE MINORITY LEADER,,GENERAL EXPENDITURES,SUPPLIES AND MATERIALS,DETAIL,2021-12-17,AP,1501064,CITI PCARD-GRAZIE GRAZIE,2021-11-11,2021-11-11,FOOD & BEVERAGE,289,2021
,2021 OFFICE OF THE MINORITY LEADER,,GENERAL EXPENDITURES,SUPPLIES AND MATERIALS,DETAIL,2021-12-17,AP,1501064,CITI PCARD-MISSION BBQ CATERING NORT,2021-11-16,2021-11-16,FOOD & BEVERAGE,465,2021
,2021 OFFICE OF THE MINORITY LEADER,,GENERAL EXPENDITURES,SUPPLIES AND MATERIALS,DETAIL,2021-12-17,AP,1501064,CITI PCARD-READYREFRESH BY NESTLE,2021-09-27,2021-10-26,WATER,131.3,2021
,2021 OFFICE OF THE MINORITY LEADER,,GENERAL EXPENDITURES,SUPPLIES AND MATERIALS,DETAIL,2021-12-17,AP,1501064,CITI PCARD-ZOES KITCHEN,2021-11-02,2021-11-02,FOOD & BEVERAGE,510.76,2021
,2021 OFFICE OF THE MINORITY LEADER,,GENERAL EXPENDITURES,SUPPLIES AND MATERIALS,DETAIL,2021-12-17,AP,1501825,CAMERON CHRISTINA E.,2021-12-13,2021-12-13,OFFICE SUPPLIES (OUTSIDE),29.8,2021
,2021 OFFICE OF THE MINORITY LEADER,,GENERAL EXPENDITURES,SUPPLIES AND MATERIALS,DETAIL,2021-12-17,AP,1502103,SMITH CALEB,2021-10-12,2021-11-11,SOFTWARE  LESS THAN  $500,1.99,2021
,2021 OFFICE OF THE MINORITY LEADER,,GENERAL EXPENDITURES,SUPPLIES AND MATERIALS,DETAIL,2021-12-17,AP,1502103,SMITH CALEB,2021-11-12,2021-12-11,SOFTWARE  LESS THAN  $500,1.99,2021
,2021 OFFICE OF THE MINORITY LEADER,,GENERAL EXPENDITURES,SUPPLIES AND MATERIALS,DETAIL,2021-12-17,AP,1502103,SMITH CALEB,2021-11-19,2021-11-19,SOFTWARE  LESS THAN  $500,49,2021
,2021 OFFICE OF THE MINORITY LEADER,,GENERAL EXPENDITURES,SUPPLIES AND MATERIALS,DETAIL,2021-12-17,AP,1502103,SMITH CALEB,2021-12-12,2022-01-11,SOFTWARE  LESS THAN  $500,1.99,2021
,2021 OFFICE OF THE MINORITY LEADER,,GENERAL EXPENDITURES,SUPPLIES AND MATERIALS,DETAIL,2021-12-17,AP,1502103,SMITH CALEB,2021-12-15,2021-12-15,SOFTWARE  LESS THAN  $500,49,2021
,2021 OFFICE OF THE MINORITY LEADER,,GENERAL EXPENDITURES,SUPPLIES AND MATERIALS,DETAIL,2021-12-20,AP,1500566,CITI PCARD-AMAZON.COM WI09U4QC3 AMZN,2021-11-12,2021-11-12,WATER,27.96,2021
,2021 OFFICE OF THE MINORITY LEADER,,GENERAL EXPENDITURES,SUPPLIES AND MATERIALS,DETAIL,2021-12-20,AP,1500566,CITI PCARD-D J WALL-ST-JOURNAL,2021-11-20,2021-12-19,PUBLICATIONS/REFERENCE MAT'L,52.99,2021
,2021 OFFICE OF THE MINORITY LEADER,,GENERAL EXPENDITURES,SUPPLIES AND MATERIALS,DETAIL,2021-12-20,AP,1500566,CITI PCARD-FIRSTCHOICEAMERICANCOFF,2021-10-28,2021-10-28,FOOD & BEVERAGE,1050.56,2021
,2021 OFFICE OF THE MINORITY LEADER,,GENERAL EXPENDITURES,SUPPLIES AND MATERIALS,DETAIL,2021-12-20,AP,1500566,CITI PCARD-FTP FINANCIAL TIMES,2021-10-29,2021-11-28,PUBLICATIONS/REFERENCE MAT'L,59.5,2021
,2021 OFFICE OF THE MINORITY LEADER,,GENERAL EXPENDITURES,SUPPLIES AND MATERIALS,DETAIL,2021-12-20,AP,1500566,CITI PCARD-LA TIMES SUBSCRIPTION,2021-11-02,2021-11-30,PUBLICATIONS/REFERENCE MAT'L,27.72,2021
,2021 OFFICE OF THE MINORITY LEADER,,GENERAL EXPENDITURES,SUPPLIES AND MATERIALS,DETAIL,2021-12-20,AP,1500566,CITI PCARD-NYTimes NYTimes,2021-11-05,2021-12-03,PUBLICATIONS/REFERENCE MAT'L,18.02,2021
,2021 OFFICE OF THE MINORITY LEADER,,GENERAL EXPENDITURES,SUPPLIES AND MATERIALS,DETAIL,2021-12-31,GL,RMS0112074, ,2021-12-01,2021-12-31,OFFICE SUPPLY (TRANSFER),106.17,2021
,2021 OFFICE OF THE MINORITY LEADER,,GENERAL EXPENDITURES,SUPPLIES AND MATERIALS,SUBTOTAL,   ,   ,   ,   ,   ,   ,SUPPLIES AND MATERIALS TOTALS:,32489.28,2021
,2021 OFFICE OF THE MINORITY LEADER,,GENERAL EXPENDITURES,EQUIPMENT,DETAIL,2021-10-29,GL,MNT0110598, ,2021-10-01,2021-10-31,MAINTENANCE / REPAIRS,124,2021
,2021 OFFICE OF THE MINORITY LEADER,,GENERAL EXPENDITURES,EQUIPMENT,DETAIL,2021-11-26,AP,1495112,GULF PARTYLINE CORPORATION,2021-10-01,2021-10-31,COMPUTER SOFTW PURCH  LESS THAN $10 000,6000,2021
,2021 OFFICE OF THE MINORITY LEADER,,GENERAL EXPENDITURES,EQUIPMENT,DETAIL,2021-11-30,AP,1496356,GULF PARTYLINE CORPORATION,2021-09-01,2021-09-30,COMPUTER SOFTW PURCH  LESS THAN $10 000,6000,2021
,2021 OFFICE OF THE MINORITY LEADER,,GENERAL EXPENDITURES,EQUIPMENT,DETAIL,2021-11-30,GL,MNT0111241, ,2021-11-01,2021-11-30,MAINTENANCE / REPAIRS,124,2021
,2021 OFFICE OF THE MINORITY LEADER,,GENERAL EXPENDITURES,EQUIPMENT,DETAIL,2021-12-03,AP,1497530,GULF PARTYLINE CORPORATION,2021-11-01,2021-11-30,COMPUTER SOFTW PURCH  LESS THAN $10 000,6000,2021
,2021 OFFICE OF THE MINORITY LEADER,,GENERAL EXPENDITURES,EQUIPMENT,DETAIL,2021-12-30,GL,MNT0111957, ,2021-12-01,2021-12-31,MAINTENANCE / REPAIRS,124,2021
,2021 OFFICE OF THE MINORITY LEADER,,GENERAL EXPENDITURES,EQUIPMENT,SUBTOTAL,   ,   ,   ,   ,   ,   ,EQUIPMENT TOTALS:,18372,2021
,2021 OFFICE OF THE MINORITY LEADER,,GENERAL EXPENDITURES,EQUIPMENT,SUBTOTAL,   ,   ,   ,   ,   ,   ,GENERAL EXPENDITURES TOTALS:,1499673.88,2021
,2021 OFFICE OF THE MINORITY LEADER,,REPUBLICAN POLICY COMMITTEE,PERSONNEL COMPENSATION,DETAIL,   ,   ,   ,WALL KELSEY V,2021-10-01,2021-12-31,SHARED EMPLOYEE,26250,2021
,2021 OFFICE OF THE MINORITY LEADER,,REPUBLICAN POLICY COMMITTEE,PERSONNEL COMPENSATION,SUBTOTAL,   ,   ,   ,   ,   ,   ,PERSONNEL COMPENSATION TOTALS:,26250,2021
,2021 OFFICE OF THE MINORITY LEADER,,REPUBLICAN POLICY COMMITTEE,PERSONNEL COMPENSATION,SUBTOTAL,   ,   ,   ,   ,   ,   ,REPUBLICAN POLICY COMMITTEE TOTALS:,26250,2021
,2021 OFFICE OF THE MINORITY LEADER,,REPUBLICAN POLICY COMMITTEE,PERSONNEL COMPENSATION,GRAND TOTAL FOR ORGANIZATION,   ,   ,   ,   ,   ,   ,OFFICE TOTALS: ,1525923.88,2021
,2021 OFFICE OF THE MINORITY LEADER,,INTERN ALLOWANCES,PERSONNEL COMPENSATION,DETAIL,   ,   ,   ,CAKE ANNEMARIE O.,2021-10-01,2021-12-31,MIN LEADER PAID INTERN - HOUSE,3000,2021
,2021 OFFICE OF THE MINORITY LEADER,,INTERN ALLOWANCES,PERSONNEL COMPENSATION,DETAIL,   ,   ,   ,CHRISTIAN ALANNA K.,2021-10-01,2021-12-31,MIN LEADER PAID INTERN - HOUSE,2250,2021
,2021 OFFICE OF THE MINORITY LEADER,,INTERN ALLOWANCES,PERSONNEL COMPENSATION,DETAIL,   ,   ,   ,CULP WESLEY J.,2021-10-01,2021-12-15,MIN LEADER PAID INTERN - HOUSE,2500,2021
,2021 OFFICE OF THE MINORITY LEADER,,INTERN ALLOWANCES,PERSONNEL COMPENSATION,DETAIL,   ,   ,   ,KREUSCHER ANN P.,2021-10-01,2021-11-15,MIN LEADER PAID INTERN - HOUSE,1500,2021
,2021 OFFICE OF THE MINORITY LEADER,,INTERN ALLOWANCES,PERSONNEL COMPENSATION,DETAIL,   ,   ,   ,ODUBER TIFFANIE A.,2021-10-01,2021-12-31,MIN LEADER PAID INTERN - HOUSE,2250,2021
,2021 OFFICE OF THE MINORITY LEADER,,INTERN ALLOWANCES,PERSONNEL COMPENSATION,SUBTOTAL,   ,   ,   ,   ,   ,   ,PERSONNEL COMPENSATION TOTALS:,11500,2021
,2021 OFFICE OF THE MINORITY LEADER,,INTERN ALLOWANCES,PERSONNEL COMPENSATION,SUBTOTAL,   ,   ,   ,   ,   ,   ,INTERN ALLOWANCES TOTALS:,11500,2021
,2021 OFFICE OF THE MINORITY LEADER,,INTERN ALLOWANCES,PERSONNEL COMPENSATION,GRAND TOTAL FOR ORGANIZATION,   ,   ,   ,   ,   ,   ,OFFICE TOTALS: ,11500,2021
,2021 OFFICE OF THE MAJORITY WHIP,,GENERAL EXPENDITURES,PERSONNEL COMPENSATION,DETAIL,   ,   ,   ,DERRICK HOPE E,2021-10-01,2021-12-31,COMMUNICATIONS DIRECTOR,39500.01,2021
,2021 OFFICE OF THE MAJORITY WHIP,,GENERAL EXPENDITURES,PERSONNEL COMPENSATION,DETAIL,   ,   ,   ,ELLISON MATTHEW B.,2021-10-01,2021-12-31,POLICY DIRECTOR,30000,2021
,2021 OFFICE OF THE MAJORITY WHIP,,GENERAL EXPENDITURES,PERSONNEL COMPENSATION,DETAIL,   ,   ,   ,FRIAS BRIANNA A.,2021-10-01,2021-12-31,DIGITAL DIRECTOR,18249.99,2021
,2021 OFFICE OF THE MAJORITY WHIP,,GENERAL EXPENDITURES,PERSONNEL COMPENSATION,DETAIL,   ,   ,   ,GARRETT EMERALD P.,2021-09-01,2021-12-31,FLOOR ASSISTANT,16333.34,2021
,2021 OFFICE OF THE MAJORITY WHIP,,GENERAL EXPENDITURES,PERSONNEL COMPENSATION,DETAIL,   ,   ,   ,JOHNSON JAHLEEL,2021-10-01,2021-12-17,PAID INTERN,2459.72,2021
,2021 OFFICE OF THE MAJORITY WHIP,,GENERAL EXPENDITURES,PERSONNEL COMPENSATION,DETAIL,   ,   ,   ,KELLY SARAH,2021-10-01,2021-12-31,SENIOR ADVISOR,34250.01,2021
,2021 OFFICE OF THE MAJORITY WHIP,,GENERAL EXPENDITURES,PERSONNEL COMPENSATION,DETAIL,   ,   ,   ,LINK CRAIG C,2021-10-01,2021-12-31,FLOOR DIRECTOR AND GENERAL COU,42249.99,2021
,2021 OFFICE OF THE MAJORITY WHIP,,GENERAL EXPENDITURES,PERSONNEL COMPENSATION,DETAIL,   ,   ,   ,LYLES III WILLIE,2021-10-01,2021-12-31,SENIOR ADVISOR & COUNSEL,42000,2021
,2021 OFFICE OF THE MAJORITY WHIP,,GENERAL EXPENDITURES,PERSONNEL COMPENSATION,DETAIL,   ,   ,   ,MASON TAMIKA K,2021-10-01,2021-12-31,DIRECTOR OF TECHNOLOGY FOR FLO,23750.01,2021
,2021 OFFICE OF THE MAJORITY WHIP,,GENERAL EXPENDITURES,PERSONNEL COMPENSATION,DETAIL,   ,   ,   ,MICHALAK TIMOTHY J,2021-10-01,2021-12-31,LEGISLATIVE ASSISTANT,12500.01,2021
,2021 OFFICE OF THE MAJORITY WHIP,,GENERAL EXPENDITURES,PERSONNEL COMPENSATION,DETAIL,   ,   ,   ,MOORE DYLAN B.,2021-10-01,2021-12-31,LEGISLATIVE ASSISTANT,12000,2021
,2021 OFFICE OF THE MAJORITY WHIP,,GENERAL EXPENDITURES,PERSONNEL COMPENSATION,DETAIL,   ,   ,   ,O'DONNELL FREDERICK J.,2021-10-01,2021-12-31,STAFF ASSISTANT,8750.01,2021
,2021 OFFICE OF THE MAJORITY WHIP,,GENERAL EXPENDITURES,PERSONNEL COMPENSATION,DETAIL,   ,   ,   ,QUINTERO OSORIO MARIA A.,2021-10-01,2021-12-31,STAFF ASSISTANT,8750.01,2021
,2021 OFFICE OF THE MAJORITY WHIP,,GENERAL EXPENDITURES,PERSONNEL COMPENSATION,DETAIL,   ,   ,   ,SAUNDERS NIA G.,2021-10-01,2021-12-31,PRESS ASSISTANT,8750.01,2021
,2021 OFFICE OF THE MAJORITY WHIP,,GENERAL EXPENDITURES,PERSONNEL COMPENSATION,DETAIL,   ,   ,   ,SINGLETARY BARVETTA,2021-11-22,2021-12-31,SENIOR ADVISOR,17875,2021
,2021 OFFICE OF THE MAJORITY WHIP,,GENERAL EXPENDITURES,PERSONNEL COMPENSATION,DETAIL,   ,   ,   ,STALLINGS BERNADINE A,2021-10-01,2021-12-31,DEPUTY COMM DIRECTOR,28749.99,2021
,2021 OFFICE OF THE MAJORITY WHIP,,GENERAL EXPENDITURES,PERSONNEL COMPENSATION,DETAIL,   ,   ,   ,UBEZONU NNEMDILIM I,2021-10-01,2021-12-31,DEPUTY FLOOR DIRECTOR,20499.99,2021
,2021 OFFICE OF THE MAJORITY WHIP,,GENERAL EXPENDITURES,PERSONNEL COMPENSATION,DETAIL,   ,   ,   ,WATKINS YELBERTON R.,2021-10-01,2021-12-31,CHIEF OF STAFF,42000,2021
,2021 OFFICE OF THE MAJORITY WHIP,,GENERAL EXPENDITURES,PERSONNEL COMPENSATION,DETAIL,   ,   ,   ,WHITEHOUSE LIN,2021-10-01,2021-10-01,DIR OF MEMBER SVCS & COALITION,208.33,2021
,2021 OFFICE OF THE MAJORITY WHIP,,GENERAL EXPENDITURES,PERSONNEL COMPENSATION,DETAIL,   ,   ,   ,WILSON ASHLEIGH R.,2021-10-01,2021-12-31,LEGISLATIVE DIRECTOR,6249.99,2021
,2021 OFFICE OF THE MAJORITY WHIP,,GENERAL EXPENDITURES,PERSONNEL COMPENSATION,SUBTOTAL,   ,   ,   ,   ,   ,   ,PERSONNEL COMPENSATION TOTALS:,415126.41,2021
,2021 OFFICE OF THE MAJORITY WHIP,,GENERAL EXPENDITURES,RENT  COMMUNICATION  UTILITIES,DETAIL,2021-10-25,GL,EMS0110562, ,2021-09-01,2021-09-30,DC TELECOM EQUIP (TRANSFER),76,2021
,2021 OFFICE OF THE MAJORITY WHIP,,GENERAL EXPENDITURES,RENT  COMMUNICATION  UTILITIES,DETAIL,2021-10-25,GL,EMS0110562, ,2021-09-01,2021-09-30,DC TELECOM SERV (TRANSFER),295.75,2021
,2021 OFFICE OF THE MAJORITY WHIP,,GENERAL EXPENDITURES,RENT  COMMUNICATION  UTILITIES,DETAIL,2021-10-25,GL,EMS0110562, ,2021-09-01,2021-09-30,DC TELECOM TOLLS (TRANSFER),1325.52,2021
,2021 OFFICE OF THE MAJORITY WHIP,,GENERAL EXPENDITURES,RENT  COMMUNICATION  UTILITIES,DETAIL,2021-11-24,GL,EMS0111169, ,2021-10-01,2021-10-31,DC TELECOM EQUIP (TRANSFER),76,2021
,2021 OFFICE OF THE MAJORITY WHIP,,GENERAL EXPENDITURES,RENT  COMMUNICATION  UTILITIES,DETAIL,2021-11-24,GL,EMS0111169, ,2021-10-01,2021-10-31,DC TELECOM SERV (TRANSFER),295.75,2021
,2021 OFFICE OF THE MAJORITY WHIP,,GENERAL EXPENDITURES,RENT  COMMUNICATION  UTILITIES,DETAIL,2021-11-24,GL,EMS0111169, ,2021-10-01,2021-10-31,DC TELECOM TOLLS (TRANSFER),1323.88,2021
,2021 OFFICE OF THE MAJORITY WHIP,,GENERAL EXPENDITURES,RENT  COMMUNICATION  UTILITIES,DETAIL,2021-12-27,GL,EMS0111861, ,2021-11-01,2021-11-30,DC TELECOM EQUIP (TRANSFER),76,2021
,2021 OFFICE OF THE MAJORITY WHIP,,GENERAL EXPENDITURES,RENT  COMMUNICATION  UTILITIES,DETAIL,2021-12-27,GL,EMS0111861, ,2021-11-01,2021-11-30,DC TELECOM SERV (TRANSFER),295.75,2021
,2021 OFFICE OF THE MAJORITY WHIP,,GENERAL EXPENDITURES,RENT  COMMUNICATION  UTILITIES,DETAIL,2021-12-27,GL,EMS0111861, ,2021-11-01,2021-11-30,DC TELECOM TOLLS (TRANSFER),1336.72,2021
,2021 OFFICE OF THE MAJORITY WHIP,,GENERAL EXPENDITURES,RENT  COMMUNICATION  UTILITIES,SUBTOTAL,   ,   ,   ,   ,   ,   ,RENT  COMMUNICATION  UTILITIES TOTALS:,5101.37,2021
,2021 OFFICE OF THE MAJORITY WHIP,,GENERAL EXPENDITURES,PRINTING AND REPRODUCTION,DETAIL,2021-11-24,GL,MED0111171, ,2021-11-05,2021-11-12,PHOTOGRAPHIC (TRANSFER),38,2021
,2021 OFFICE OF THE MAJORITY WHIP,,GENERAL EXPENDITURES,PRINTING AND REPRODUCTION,DETAIL,2021-12-23,AP,1507283,CONSTANT MESSENGER INC,2021-12-14,2021-12-14,FRANKABLE PRINTING & REPROD,1414.92,2021
,2021 OFFICE OF THE MAJORITY WHIP,,GENERAL EXPENDITURES,PRINTING AND REPRODUCTION,DETAIL,2021-12-23,AP,1507285,CONSTANT MESSENGER INC,2021-12-14,2021-12-14,FRANKABLE PRINTING & REPROD,749.71,2021
,2021 OFFICE OF THE MAJORITY WHIP,,GENERAL EXPENDITURES,PRINTING AND REPRODUCTION,DETAIL,2021-12-29,AP,1504248,CITI PCARD-FACEBK  2LSAG8F7V2,2021-11-24,2021-11-25,ADVERTISEMENTS,15,2021
,2021 OFFICE OF THE MAJORITY WHIP,,GENERAL EXPENDITURES,PRINTING AND REPRODUCTION,DETAIL,2021-12-29,AP,1504248,CITI PCARD-FACEBK  9BX5G8F7V2,2021-11-25,2021-11-25,ADVERTISEMENTS,5,2021
,2021 OFFICE OF THE MAJORITY WHIP,,GENERAL EXPENDITURES,PRINTING AND REPRODUCTION,DETAIL,2021-12-29,AP,1504248,CITI PCARD-FACEBK  DS75G8F7V2,2021-11-24,2021-11-25,ADVERTISEMENTS,3,2021
,2021 OFFICE OF THE MAJORITY WHIP,,GENERAL EXPENDITURES,PRINTING AND REPRODUCTION,DETAIL,2021-12-29,AP,1504248,CITI PCARD-FACEBK  H7M2G8F7V2,2021-11-24,2021-11-25,ADVERTISEMENTS,3.18,2021
,2021 OFFICE OF THE MAJORITY WHIP,,GENERAL EXPENDITURES,PRINTING AND REPRODUCTION,DETAIL,2021-12-29,AP,1504248,CITI PCARD-FACEBK  KUC58B77V2,2021-11-25,2021-11-25,ADVERTISEMENTS,7,2021
,2021 OFFICE OF THE MAJORITY WHIP,,GENERAL EXPENDITURES,PRINTING AND REPRODUCTION,DETAIL,2021-12-29,AP,1504248,CITI PCARD-FACEBK  LG3QA9B7V2,2021-11-25,2021-11-25,ADVERTISEMENTS,10,2021
,2021 OFFICE OF THE MAJORITY WHIP,,GENERAL EXPENDITURES,PRINTING AND REPRODUCTION,DETAIL,2021-12-29,AP,1504248,CITI PCARD-FACEBK 3LP379P7V2,2021-11-25,2021-11-25,ADVERTISEMENTS,2,2021
,2021 OFFICE OF THE MAJORITY WHIP,,GENERAL EXPENDITURES,PRINTING AND REPRODUCTION,DETAIL,2021-12-29,AP,1504248,CITI PCARD-FACEBK D8MZP838V2,2021-11-24,2021-11-25,ADVERTISEMENTS,2,2021
,2021 OFFICE OF THE MAJORITY WHIP,,GENERAL EXPENDITURES,PRINTING AND REPRODUCTION,DETAIL,2021-12-29,AP,1504248,CITI PCARD-FACEBK PEEYU8T7V2,2021-11-24,2021-11-25,ADVERTISEMENTS,2,2021
,2021 OFFICE OF THE MAJORITY WHIP,,GENERAL EXPENDITURES,PRINTING AND REPRODUCTION,SUBTOTAL,   ,   ,   ,   ,   ,   ,PRINTING AND REPRODUCTION TOTALS:,2251.81,2021
,2021 OFFICE OF THE MAJORITY WHIP,,GENERAL EXPENDITURES,OTHER SERVICES,DETAIL,2021-10-16,AP,1478259,FIRESIDE 21 LLC,2021-10-01,2021-10-31,TECHNOLOGY SERVICE CONTRACTS,1895,2021
,2021 OFFICE OF THE MAJORITY WHIP,,GENERAL EXPENDITURES,OTHER SERVICES,DETAIL,2021-11-16,AP,1490733,FIRESIDE 21 LLC,2021-11-01,2021-11-30,TECHNOLOGY SERVICE CONTRACTS,1895,2021
,2021 OFFICE OF THE MAJORITY WHIP,,GENERAL EXPENDITURES,OTHER SERVICES,DETAIL,2021-12-16,AP,1498241,1BRIGHTSTAR MEDIA,2021-10-01,2021-10-31,WEB DEV HST EMAIL & RLTD SERV,499,2021
,2021 OFFICE OF THE MAJORITY WHIP,,GENERAL EXPENDITURES,OTHER SERVICES,DETAIL,2021-12-16,AP,1498250,1BRIGHTSTAR MEDIA,2021-11-01,2021-11-30,WEB DEV HST EMAIL & RLTD SERV,499,2021
,2021 OFFICE OF THE MAJORITY WHIP,,GENERAL EXPENDITURES,OTHER SERVICES,DETAIL,2021-12-16,AP,1498259,1BRIGHTSTAR MEDIA,2021-12-01,2021-12-31,WEB DEV HST EMAIL & RLTD SERV,499,2021
,2021 OFFICE OF THE MAJORITY WHIP,,GENERAL EXPENDITURES,OTHER SERVICES,DETAIL,2021-12-16,AP,1503538,FIRESIDE 21 LLC,2021-12-01,2021-12-31,TECHNOLOGY SERVICE CONTRACTS,1895,2021
,2021 OFFICE OF THE MAJORITY WHIP,,GENERAL EXPENDITURES,OTHER SERVICES,SUBTOTAL,   ,   ,   ,   ,   ,   ,OTHER SERVICES TOTALS:,7182,2021
,2021 OFFICE OF THE MAJORITY WHIP,,GENERAL EXPENDITURES,SUPPLIES AND MATERIALS,DETAIL,2021-10-07,AP,1474481,REVIVE EVENTS AND CATERING,2021-09-30,2021-09-30,FOOD & BEVERAGE,3480,2021
,2021 OFFICE OF THE MAJORITY WHIP,,GENERAL EXPENDITURES,SUPPLIES AND MATERIALS,DETAIL,2021-10-19,AP,1474488,CITI PCARD-AMZN MKTP US 2G4OT0580 AM,2021-09-14,2021-09-14,OFFICE SUPPLIES (OUTSIDE),197.04,2021
,2021 OFFICE OF THE MAJORITY WHIP,,GENERAL EXPENDITURES,SUPPLIES AND MATERIALS,DETAIL,2021-10-19,AP,1474488,CITI PCARD-AMZN Mktp US 2C1H08TL0,2021-09-24,2021-09-24,OFFICE SUPPLIES (OUTSIDE),6.49,2021
,2021 OFFICE OF THE MAJORITY WHIP,,GENERAL EXPENDITURES,SUPPLIES AND MATERIALS,DETAIL,2021-10-19,AP,1474488,CITI PCARD-AMZN Mktp US 2C6B171K1,2021-09-24,2021-09-24,OFFICE SUPPLIES (OUTSIDE),316.85,2021
,2021 OFFICE OF THE MAJORITY WHIP,,GENERAL EXPENDITURES,SUPPLIES AND MATERIALS,DETAIL,2021-10-19,AP,1474488,CITI PCARD-CANVA  I03179-31359312,2021-09-15,2021-10-15,SOFTWARE  LESS THAN  $500,31.8,2021
,2021 OFFICE OF THE MAJORITY WHIP,,GENERAL EXPENDITURES,SUPPLIES AND MATERIALS,DETAIL,2021-10-19,AP,1474488,CITI PCARD-COSTCO BY INSTACART,2021-09-08,2021-09-08,FOOD & BEVERAGE,369.35,2021
,2021 OFFICE OF THE MAJORITY WHIP,,GENERAL EXPENDITURES,SUPPLIES AND MATERIALS,DETAIL,2021-10-19,AP,1474488,CITI PCARD-COSTCO BY INSTACART,2021-09-16,2021-09-16,FOOD & BEVERAGE,304.85,2021
,2021 OFFICE OF THE MAJORITY WHIP,,GENERAL EXPENDITURES,SUPPLIES AND MATERIALS,DETAIL,2021-10-19,AP,1474488,CITI PCARD-COSTCO BY INSTACART,2021-09-21,2021-09-21,FOOD & BEVERAGE,58.58,2021
,2021 OFFICE OF THE MAJORITY WHIP,,GENERAL EXPENDITURES,SUPPLIES AND MATERIALS,DETAIL,2021-10-19,AP,1474488,CITI PCARD-DUNKIN #351980 Q35,2021-08-31,2021-08-31,FOOD & BEVERAGE,27.48,2021
,2021 OFFICE OF THE MAJORITY WHIP,,GENERAL EXPENDITURES,SUPPLIES AND MATERIALS,DETAIL,2021-10-19,AP,1474488,CITI PCARD-INSTACART,2021-09-08,2021-09-08,FOOD & BEVERAGE,47.51,2021
,2021 OFFICE OF THE MAJORITY WHIP,,GENERAL EXPENDITURES,SUPPLIES AND MATERIALS,DETAIL,2021-10-19,AP,1474488,CITI PCARD-INSTACART,2021-09-16,2021-09-16,FOOD & BEVERAGE,210.9,2021
,2021 OFFICE OF THE MAJORITY WHIP,,GENERAL EXPENDITURES,SUPPLIES AND MATERIALS,DETAIL,2021-10-19,AP,1474488,CITI PCARD-INSTACART,2021-09-17,2021-09-17,FOOD & BEVERAGE,216.8,2021
,2021 OFFICE OF THE MAJORITY WHIP,,GENERAL EXPENDITURES,SUPPLIES AND MATERIALS,DETAIL,2021-10-19,AP,1474488,CITI PCARD-INSTACART,2021-09-21,2021-09-21,FOOD & BEVERAGE,144.01,2021
,2021 OFFICE OF THE MAJORITY WHIP,,GENERAL EXPENDITURES,SUPPLIES AND MATERIALS,DETAIL,2021-10-19,AP,1474488,CITI PCARD-ISLANDPACKET DIGITAL SUB,2021-09-18,2021-10-17,PUBLICATIONS/REFERENCE MAT'L,15.99,2021
,2021 OFFICE OF THE MAJORITY WHIP,,GENERAL EXPENDITURES,SUPPLIES AND MATERIALS,DETAIL,2021-10-19,AP,1474488,CITI PCARD-NYTimes NYTimes,2021-09-08,2021-10-06,PUBLICATIONS/REFERENCE MAT'L,51.94,2021
,2021 OFFICE OF THE MAJORITY WHIP,,GENERAL EXPENDITURES,SUPPLIES AND MATERIALS,DETAIL,2021-10-19,AP,1474488,CITI PCARD-SQ  THE PRETZEL BAKERY,2021-08-31,2021-08-31,FOOD & BEVERAGE,28.75,2021
,2021 OFFICE OF THE MAJORITY WHIP,,GENERAL EXPENDITURES,SUPPLIES AND MATERIALS,DETAIL,2021-10-31,GL,RMS0110650, ,2021-10-01,2021-10-31,OFFICE SUPPLY (TRANSFER),212.74,2021
,2021 OFFICE OF THE MAJORITY WHIP,,GENERAL EXPENDITURES,SUPPLIES AND MATERIALS,DETAIL,2021-11-10,AP,1486138,REVIVE EVENTS AND CATERING,2021-10-27,2021-10-27,FOOD & BEVERAGE,3498,2021
,2021 OFFICE OF THE MAJORITY WHIP,,GENERAL EXPENDITURES,SUPPLIES AND MATERIALS,DETAIL,2021-11-12,AP,1486135,REVIVE EVENTS AND CATERING,2021-10-21,2021-10-21,FOOD & BEVERAGE,3418,2021
,2021 OFFICE OF THE MAJORITY WHIP,,GENERAL EXPENDITURES,SUPPLIES AND MATERIALS,DETAIL,2021-11-22,AP,1491656,CITI PCARD-AMZN Mktp US 271ZY4SQ1,2021-10-06,2021-10-06,OFFICE SUPPLIES (OUTSIDE),13.49,2021
,2021 OFFICE OF THE MAJORITY WHIP,,GENERAL EXPENDITURES,SUPPLIES AND MATERIALS,DETAIL,2021-11-22,AP,1491656,CITI PCARD-AMZN Mktp US 2741A7M32,2021-10-13,2021-10-13,OFFICE SUPPLIES (OUTSIDE),34.98,2021
,2021 OFFICE OF THE MAJORITY WHIP,,GENERAL EXPENDITURES,SUPPLIES AND MATERIALS,DETAIL,2021-11-22,AP,1491656,CITI PCARD-AMZN Mktp US D89XF9DQ3,2021-10-26,2021-10-26,OFFICE SUPPLIES (OUTSIDE),31.49,2021
,2021 OFFICE OF THE MAJORITY WHIP,,GENERAL EXPENDITURES,SUPPLIES AND MATERIALS,DETAIL,2021-11-22,AP,1491656,CITI PCARD-COSTCO BY INSTACART,2021-09-28,2021-09-28,FOOD & BEVERAGE,264.15,2021
,2021 OFFICE OF THE MAJORITY WHIP,,GENERAL EXPENDITURES,SUPPLIES AND MATERIALS,DETAIL,2021-11-22,AP,1491656,CITI PCARD-COSTCO BY INSTACART,2021-10-07,2021-10-07,FOOD & BEVERAGE,203.22,2021
,2021 OFFICE OF THE MAJORITY WHIP,,GENERAL EXPENDITURES,SUPPLIES AND MATERIALS,DETAIL,2021-11-22,AP,1491656,CITI PCARD-COSTCO BY INSTACART,2021-10-14,2021-10-14,FOOD & BEVERAGE,222.56,2021
,2021 OFFICE OF THE MAJORITY WHIP,,GENERAL EXPENDITURES,SUPPLIES AND MATERIALS,DETAIL,2021-11-22,AP,1491656,CITI PCARD-COSTCO BY INSTACART,2021-10-20,2021-10-20,FOOD & BEVERAGE,47.83,2021
,2021 OFFICE OF THE MAJORITY WHIP,,GENERAL EXPENDITURES,SUPPLIES AND MATERIALS,DETAIL,2021-11-22,AP,1491656,CITI PCARD-COSTCO BY INSTACART,2021-10-22,2021-10-22,FOOD & BEVERAGE,95.71,2021
,2021 OFFICE OF THE MAJORITY WHIP,,GENERAL EXPENDITURES,SUPPLIES AND MATERIALS,DETAIL,2021-11-22,AP,1491656,CITI PCARD-CV LINENS,2021-10-27,2021-10-27,OFFICE SUPPLIES (OUTSIDE),42.4,2021
,2021 OFFICE OF THE MAJORITY WHIP,,GENERAL EXPENDITURES,SUPPLIES AND MATERIALS,DETAIL,2021-11-22,AP,1491656,CITI PCARD-INSTACART,2021-09-28,2021-09-28,FOOD & BEVERAGE,303.14,2021
,2021 OFFICE OF THE MAJORITY WHIP,,GENERAL EXPENDITURES,SUPPLIES AND MATERIALS,DETAIL,2021-11-22,AP,1491656,CITI PCARD-INSTACART,2021-09-29,2021-09-29,FOOD & BEVERAGE,161.72,2021
,2021 OFFICE OF THE MAJORITY WHIP,,GENERAL EXPENDITURES,SUPPLIES AND MATERIALS,DETAIL,2021-11-22,AP,1491656,CITI PCARD-INSTACART,2021-10-07,2021-10-07,FOOD & BEVERAGE,43.88,2021
,2021 OFFICE OF THE MAJORITY WHIP,,GENERAL EXPENDITURES,SUPPLIES AND MATERIALS,DETAIL,2021-11-22,AP,1491656,CITI PCARD-INSTACART,2021-10-14,2021-10-14,FOOD & BEVERAGE,155.67,2021
,2021 OFFICE OF THE MAJORITY WHIP,,GENERAL EXPENDITURES,SUPPLIES AND MATERIALS,DETAIL,2021-11-22,AP,1491656,CITI PCARD-INSTACART,2021-10-18,2021-10-18,FOOD & BEVERAGE,91.34,2021
,2021 OFFICE OF THE MAJORITY WHIP,,GENERAL EXPENDITURES,SUPPLIES AND MATERIALS,DETAIL,2021-11-22,AP,1491656,CITI PCARD-INSTACART,2021-10-20,2021-10-20,FOOD & BEVERAGE,246.06,2021
,2021 OFFICE OF THE MAJORITY WHIP,,GENERAL EXPENDITURES,SUPPLIES AND MATERIALS,DETAIL,2021-11-22,AP,1491656,CITI PCARD-INSTACART,2021-10-22,2021-10-22,FOOD & BEVERAGE,234.75,2021
,2021 OFFICE OF THE MAJORITY WHIP,,GENERAL EXPENDITURES,SUPPLIES AND MATERIALS,DETAIL,2021-11-22,AP,1491656,CITI PCARD-INSTACART,2021-10-26,2021-10-26,FOOD & BEVERAGE,233.92,2021
,2021 OFFICE OF THE MAJORITY WHIP,,GENERAL EXPENDITURES,SUPPLIES AND MATERIALS,DETAIL,2021-11-22,AP,1491656,CITI PCARD-MEI WAH RESTAURAURT,2021-10-07,2021-10-07,FOOD & BEVERAGE,4227.28,2021
,2021 OFFICE OF THE MAJORITY WHIP,,GENERAL EXPENDITURES,SUPPLIES AND MATERIALS,DETAIL,2021-11-22,AP,1491656,CITI PCARD-NYTimes NYTimes,2021-10-06,2021-11-03,PUBLICATIONS/REFERENCE MAT'L,51.94,2021
,2021 OFFICE OF THE MAJORITY WHIP,,GENERAL EXPENDITURES,SUPPLIES AND MATERIALS,DETAIL,2021-11-22,AP,1491656,CITI PCARD-TST  BUTTER CHICKEN #3,2021-09-30,2021-09-30,FOOD & BEVERAGE,174.78,2021
,2021 OFFICE OF THE MAJORITY WHIP,,GENERAL EXPENDITURES,SUPPLIES AND MATERIALS,DETAIL,2021-11-22,AP,1491656,CITI PCARD-WE THE PIZZA,2021-10-13,2021-10-13,FOOD & BEVERAGE,162.84,2021
,2021 OFFICE OF THE MAJORITY WHIP,,GENERAL EXPENDITURES,SUPPLIES AND MATERIALS,DETAIL,2021-11-26,AP,1495152,REVIVE EVENTS AND CATERING,2021-11-04,2021-11-04,FOOD & BEVERAGE,3498,2021
,2021 OFFICE OF THE MAJORITY WHIP,,GENERAL EXPENDITURES,SUPPLIES AND MATERIALS,DETAIL,2021-11-30,GL,RMS0111316, ,2021-11-01,2021-11-30,OFFICE SUPPLY (TRANSFER),92.96,2021
,2021 OFFICE OF THE MAJORITY WHIP,,GENERAL EXPENDITURES,SUPPLIES AND MATERIALS,DETAIL,2021-12-10,AP,1500811,CITIBANK,2021-10-14,2021-10-14,FOOD & BEVERAGE,-36.45,2021
,2021 OFFICE OF THE MAJORITY WHIP,,GENERAL EXPENDITURES,SUPPLIES AND MATERIALS,DETAIL,2021-12-10,AP,1500811,CITIBANK,2021-10-14,2021-10-14,OFFICE SUPPLIES (OUTSIDE),36.45,2021
,2021 OFFICE OF THE MAJORITY WHIP,,GENERAL EXPENDITURES,SUPPLIES AND MATERIALS,DETAIL,2021-12-10,AP,1500812,CITIBANK,2021-10-27,2021-10-27,OFFICE SUPPLIES (OUTSIDE),-42.4,2021
,2021 OFFICE OF THE MAJORITY WHIP,,GENERAL EXPENDITURES,SUPPLIES AND MATERIALS,DETAIL,2021-12-10,AP,1500812,CITIBANK,2021-11-01,2021-11-01,OFFICE SUPPLIES (OUTSIDE),42.4,2021
,2021 OFFICE OF THE MAJORITY WHIP,,GENERAL EXPENDITURES,SUPPLIES AND MATERIALS,DETAIL,2021-12-14,AP,1498230,REVIVE EVENTS AND CATERING,2021-11-17,2021-11-17,FOOD & BEVERAGE,3498,2021
,2021 OFFICE OF THE MAJORITY WHIP,,GENERAL EXPENDITURES,SUPPLIES AND MATERIALS,DETAIL,2021-12-17,AP,1501166,MASON TAMIKA K.,2021-12-08,2021-12-08,HABITATION EXPENSE,26.49,2021
,2021 OFFICE OF THE MAJORITY WHIP,,GENERAL EXPENDITURES,SUPPLIES AND MATERIALS,DETAIL,2021-12-17,AP,1506160,REVIVE EVENTS AND CATERING,2021-12-02,2021-12-02,FOOD & BEVERAGE,3298,2021
,2021 OFFICE OF THE MAJORITY WHIP,,GENERAL EXPENDITURES,SUPPLIES AND MATERIALS,DETAIL,2021-12-22,AP,1507248,CITI PCARD-ENVATO,2021-11-12,2022-11-12,SOFTWARE  LESS THAN  $500,348,2021
,2021 OFFICE OF THE MAJORITY WHIP,,GENERAL EXPENDITURES,SUPPLIES AND MATERIALS,DETAIL,2021-12-29,AP,1504248,CITI PCARD-AMAZON.COM 8Y6MJ7UC3 AMZN,2021-11-04,2021-11-04,OFFICE SUPPLIES (OUTSIDE),66.67,2021
,2021 OFFICE OF THE MAJORITY WHIP,,GENERAL EXPENDITURES,SUPPLIES AND MATERIALS,DETAIL,2021-12-29,AP,1504248,CITI PCARD-AMZN Mktp US,2021-11-02,2021-11-02,OFFICE SUPPLIES (OUTSIDE),-109,2021
,2021 OFFICE OF THE MAJORITY WHIP,,GENERAL EXPENDITURES,SUPPLIES AND MATERIALS,DETAIL,2021-12-29,AP,1504248,CITI PCARD-AMZN Mktp US 2T2297P03,2021-11-01,2021-11-01,OFFICE SUPPLIES (OUTSIDE),199,2021
,2021 OFFICE OF THE MAJORITY WHIP,,GENERAL EXPENDITURES,SUPPLIES AND MATERIALS,DETAIL,2021-12-29,AP,1504248,CITI PCARD-AMZN Mktp US 2Y6PP52Z1,2021-10-22,2021-10-22,OFFICE SUPPLIES (OUTSIDE),109,2021
,2021 OFFICE OF THE MAJORITY WHIP,,GENERAL EXPENDITURES,SUPPLIES AND MATERIALS,DETAIL,2021-12-29,AP,1504248,CITI PCARD-BOJANGLES 706,2021-11-04,2021-11-04,FOOD & BEVERAGE,1920.4,2021
,2021 OFFICE OF THE MAJORITY WHIP,,GENERAL EXPENDITURES,SUPPLIES AND MATERIALS,DETAIL,2021-12-29,AP,1504248,CITI PCARD-CANVA  I03209-28661882,2021-10-01,2021-10-31,SOFTWARE  LESS THAN  $500,31.8,2021
,2021 OFFICE OF THE MAJORITY WHIP,,GENERAL EXPENDITURES,SUPPLIES AND MATERIALS,DETAIL,2021-12-29,AP,1504248,CITI PCARD-CANVA  I03240-28158923,2021-11-01,2021-11-30,SOFTWARE  LESS THAN  $500,31.8,2021
,2021 OFFICE OF THE MAJORITY WHIP,,GENERAL EXPENDITURES,SUPPLIES AND MATERIALS,DETAIL,2021-12-29,AP,1504248,CITI PCARD-COSTCO BY INSTACART,2021-11-02,2021-11-02,FOOD & BEVERAGE,160.98,2021
,2021 OFFICE OF THE MAJORITY WHIP,,GENERAL EXPENDITURES,SUPPLIES AND MATERIALS,DETAIL,2021-12-29,AP,1504248,CITI PCARD-COSTCO BY INSTACART,2021-11-03,2021-11-03,FOOD & BEVERAGE,127.33,2021
,2021 OFFICE OF THE MAJORITY WHIP,,GENERAL EXPENDITURES,SUPPLIES AND MATERIALS,DETAIL,2021-12-29,AP,1504248,CITI PCARD-COSTCO BY INSTACART,2021-11-09,2021-11-09,FOOD & BEVERAGE,114.5,2021
,2021 OFFICE OF THE MAJORITY WHIP,,GENERAL EXPENDITURES,SUPPLIES AND MATERIALS,DETAIL,2021-12-29,AP,1504248,CITI PCARD-COSTCO BY INSTACART,2021-11-15,2021-11-15,FOOD & BEVERAGE,196.1,2021
,2021 OFFICE OF THE MAJORITY WHIP,,GENERAL EXPENDITURES,SUPPLIES AND MATERIALS,DETAIL,2021-12-29,AP,1504248,CITI PCARD-HELLO DIRECT,2021-11-05,2021-11-05,OFFICE SUPPLIES (OUTSIDE),193.42,2021
,2021 OFFICE OF THE MAJORITY WHIP,,GENERAL EXPENDITURES,SUPPLIES AND MATERIALS,DETAIL,2021-12-29,AP,1504248,CITI PCARD-INSTACART,2021-11-02,2021-11-02,FOOD & BEVERAGE,164.97,2021
,2021 OFFICE OF THE MAJORITY WHIP,,GENERAL EXPENDITURES,SUPPLIES AND MATERIALS,DETAIL,2021-12-29,AP,1504248,CITI PCARD-INSTACART,2021-11-03,2021-11-03,FOOD & BEVERAGE,71.92,2021
,2021 OFFICE OF THE MAJORITY WHIP,,GENERAL EXPENDITURES,SUPPLIES AND MATERIALS,DETAIL,2021-12-29,AP,1504248,CITI PCARD-INSTACART,2021-11-09,2021-11-09,FOOD & BEVERAGE,188.41,2021
,2021 OFFICE OF THE MAJORITY WHIP,,GENERAL EXPENDITURES,SUPPLIES AND MATERIALS,DETAIL,2021-12-29,AP,1504248,CITI PCARD-INSTACART,2021-11-15,2021-11-15,FOOD & BEVERAGE,193.57,2021
,2021 OFFICE OF THE MAJORITY WHIP,,GENERAL EXPENDITURES,SUPPLIES AND MATERIALS,DETAIL,2021-12-29,AP,1504248,CITI PCARD-INSTACART SUBSCRIPTION,2021-11-04,2021-11-04,FOOD & BEVERAGE,104.94,2021
,2021 OFFICE OF THE MAJORITY WHIP,,GENERAL EXPENDITURES,SUPPLIES AND MATERIALS,DETAIL,2021-12-29,AP,1504248,CITI PCARD-NYTimes NYTimes,2021-11-03,2021-12-01,PUBLICATIONS/REFERENCE MAT'L,51.94,2021
,2021 OFFICE OF THE MAJORITY WHIP,,GENERAL EXPENDITURES,SUPPLIES AND MATERIALS,DETAIL,2021-12-29,AP,1504248,CITI PCARD-SAINT GERMAIN CATERING,2021-09-29,2021-09-29,FOOD & BEVERAGE,2348.75,2021
,2021 OFFICE OF THE MAJORITY WHIP,,GENERAL EXPENDITURES,SUPPLIES AND MATERIALS,DETAIL,2021-12-29,AP,1504248,CITI PCARD-SAINT GERMAIN CATERING,2021-10-28,2021-10-28,FOOD & BEVERAGE,4405.59,2021
,2021 OFFICE OF THE MAJORITY WHIP,,GENERAL EXPENDITURES,SUPPLIES AND MATERIALS,DETAIL,2021-12-29,AP,1504248,CITI PCARD-WE THE PIZZA,2021-11-18,2021-11-18,FOOD & BEVERAGE,3670.66,2021
,2021 OFFICE OF THE MAJORITY WHIP,,GENERAL EXPENDITURES,SUPPLIES AND MATERIALS,DETAIL,2021-12-30,AP,1508012,ACCURATE WORD,2021-12-15,2021-12-15,PUBLICATIONS/REFERENCE MAT'L,151,2021
,2021 OFFICE OF THE MAJORITY WHIP,,GENERAL EXPENDITURES,SUPPLIES AND MATERIALS,DETAIL,2021-12-31,GL,RMS0112074, ,2021-12-01,2021-12-31,OFFICE SUPPLY (TRANSFER),426.96,2021
,2021 OFFICE OF THE MAJORITY WHIP,,GENERAL EXPENDITURES,SUPPLIES AND MATERIALS,SUBTOTAL,   ,   ,   ,   ,   ,   ,SUPPLIES AND MATERIALS TOTALS:,45262.39,2021
,2021 OFFICE OF THE MAJORITY WHIP,,GENERAL EXPENDITURES,EQUIPMENT,DETAIL,2021-10-29,GL,MNT0110598, ,2021-10-01,2021-10-31,MAINTENANCE / REPAIRS,355,2021
,2021 OFFICE OF THE MAJORITY WHIP,,GENERAL EXPENDITURES,EQUIPMENT,DETAIL,2021-11-30,GL,MNT0111241, ,2021-11-01,2021-11-30,MAINTENANCE / REPAIRS,355,2021
,2021 OFFICE OF THE MAJORITY WHIP,,GENERAL EXPENDITURES,EQUIPMENT,DETAIL,2021-12-30,GL,MNT0111957, ,2021-12-01,2021-12-31,MAINTENANCE / REPAIRS,355,2021
,2021 OFFICE OF THE MAJORITY WHIP,,GENERAL EXPENDITURES,EQUIPMENT,DETAIL,2021-12-31,GL,RMS0112074, ,2021-12-01,2021-12-31,COMPUTER HARDW PURCH  LESS THAN $25 000,412,2021
,2021 OFFICE OF THE MAJORITY WHIP,,GENERAL EXPENDITURES,EQUIPMENT,SUBTOTAL,   ,   ,   ,   ,   ,   ,EQUIPMENT TOTALS:,1477,2021
,2021 OFFICE OF THE MAJORITY WHIP,,GENERAL EXPENDITURES,EQUIPMENT,SUBTOTAL,   ,   ,   ,   ,   ,   ,GENERAL EXPENDITURES TOTALS:,476400.98,2021
,2021 OFFICE OF THE MAJORITY WHIP,,GENERAL EXPENDITURES,EQUIPMENT,GRAND TOTAL FOR ORGANIZATION,   ,   ,   ,   ,   ,   ,OFFICE TOTALS: ,476400.98,2021
,2020 OFFICE OF THE MAJORITY WHIP,,GENERAL EXPENDITURES,EQUIPMENT,DETAIL,2021-12-29,AP,1504248,CITI PCARD-EMERGENT LLC,2021-01-01,2021-10-31,COMPUTER SOFTW PURCH  LESS THAN $10 000,1505.6,2021
,2020 OFFICE OF THE MAJORITY WHIP,,GENERAL EXPENDITURES,EQUIPMENT,SUBTOTAL,   ,   ,   ,   ,   ,   ,EQUIPMENT TOTALS:,1505.6,2021
,2020 OFFICE OF THE MAJORITY WHIP,,GENERAL EXPENDITURES,EQUIPMENT,SUBTOTAL,   ,   ,   ,   ,   ,   ,GENERAL EXPENDITURES TOTALS:,1505.6,2021
,2020 OFFICE OF THE MAJORITY WHIP,,GENERAL EXPENDITURES,EQUIPMENT,GRAND TOTAL FOR ORGANIZATION,   ,   ,   ,   ,   ,   ,OFFICE TOTALS: ,1505.6,2021
,2021 OFFICE OF THE MINORITY WHIP,,GENERAL EXPENDITURES,PERSONNEL COMPENSATION,DETAIL,   ,   ,   ,ACORNLEY MARK A.,2021-10-01,2021-12-31,FINANCIAL ADMINISTRATOR,5000.01,2021
,2021 OFFICE OF THE MINORITY WHIP,,GENERAL EXPENDITURES,PERSONNEL COMPENSATION,DETAIL,   ,   ,   ,ADCOCK AUSTEN L,2021-10-01,2021-12-31,STAFF ASSISTANT,10333.32,2021
,2021 OFFICE OF THE MINORITY WHIP,,GENERAL EXPENDITURES,PERSONNEL COMPENSATION,DETAIL,   ,   ,   ,BATTAGLIA JACQUELINE P,2021-09-01,2021-12-31,SCHEDULE COORDINATOR,17437.5,2021
,2021 OFFICE OF THE MINORITY WHIP,,GENERAL EXPENDITURES,PERSONNEL COMPENSATION,DETAIL,   ,   ,   ,BROOKE JR FRANCIS J.,2021-10-01,2021-12-31,LEGISLATIVE COUNSEL,21249.99,2021
,2021 OFFICE OF THE MINORITY WHIP,,GENERAL EXPENDITURES,PERSONNEL COMPENSATION,DETAIL,   ,   ,   ,COMER II MICHAEL D,2021-10-01,2021-12-31,DEPUTY COMMUNICATIONS DIRECTOR,37141.66,2021
,2021 OFFICE OF THE MINORITY WHIP,,GENERAL EXPENDITURES,PERSONNEL COMPENSATION,DETAIL,   ,   ,   ,FINE LAUREN R,2021-10-01,2021-12-31,COMMUNICATIONS DIRECTOR,26287.5,2021
,2021 OFFICE OF THE MINORITY WHIP,,GENERAL EXPENDITURES,PERSONNEL COMPENSATION,DETAIL,   ,   ,   ,HORTON BRETT H.,2021-10-01,2021-12-31,CHIEF OF STAFF,49524.99,2021
,2021 OFFICE OF THE MINORITY WHIP,,GENERAL EXPENDITURES,PERSONNEL COMPENSATION,DETAIL,   ,   ,   ,KRIEGER ROBYN W,2021-09-01,2021-12-31,STAFF ASSISTANT,16749.99,2021
,2021 OFFICE OF THE MINORITY WHIP,,GENERAL EXPENDITURES,PERSONNEL COMPENSATION,DETAIL,   ,   ,   ,LOVELL HUNTER J.,2021-10-01,2021-12-31,DEPUTY PRESS SECRETARY,5000.01,2021
,2021 OFFICE OF THE MINORITY WHIP,,GENERAL EXPENDITURES,PERSONNEL COMPENSATION,DETAIL,   ,   ,   ,MCINTOSH ARTHUR R.,2021-09-01,2021-12-31,SPECIAL ASSISTANT,17250,2021
,2021 OFFICE OF THE MINORITY WHIP,,GENERAL EXPENDITURES,PERSONNEL COMPENSATION,DETAIL,   ,   ,   ,MINKLER ANN W,2021-10-01,2021-12-31,DEPUTY FLOOR DIRECTOR,27500.01,2021
,2021 OFFICE OF THE MINORITY WHIP,,GENERAL EXPENDITURES,PERSONNEL COMPENSATION,DETAIL,   ,   ,   ,MLINAR ALYENE S,2021-10-01,2021-12-31,POLICY ADVISOR,16750.3,2021
,2021 OFFICE OF THE MINORITY WHIP,,GENERAL EXPENDITURES,PERSONNEL COMPENSATION,DETAIL,   ,   ,   ,NAFT JEFFREY C,2021-09-01,2021-12-31,COMMUNICATIONS ADVISOR,28749.99,2021
,2021 OFFICE OF THE MINORITY WHIP,,GENERAL EXPENDITURES,PERSONNEL COMPENSATION,DETAIL,   ,   ,   ,NALLS DENNIS A,2021-09-01,2021-12-31,FLOOR ASSISTANT,27250,2021
,2021 OFFICE OF THE MINORITY WHIP,,GENERAL EXPENDITURES,PERSONNEL COMPENSATION,DETAIL,   ,   ,   ,NAPIER BENJAMIN W,2021-10-01,2021-12-31,FLOOR DIRECTOR,39208.29,2021
,2021 OFFICE OF THE MINORITY WHIP,,GENERAL EXPENDITURES,PERSONNEL COMPENSATION,DETAIL,   ,   ,   ,REISING JOHN B,2021-10-01,2021-12-31,MEMBER SERVICES DIRECTOR,47383.33,2021
,2021 OFFICE OF THE MINORITY WHIP,,GENERAL EXPENDITURES,PERSONNEL COMPENSATION,DETAIL,   ,   ,   ,ROBBINS KATHERINE W.,2021-10-01,2021-12-31,PRESS ASSISTANT,9999.99,2021
,2021 OFFICE OF THE MINORITY WHIP,,GENERAL EXPENDITURES,PERSONNEL COMPENSATION,DETAIL,   ,   ,   ,SCHMITZ ERIC T,2021-10-01,2021-12-31,COALITIONS COORDINATOR,22500,2021
,2021 OFFICE OF THE MINORITY WHIP,,GENERAL EXPENDITURES,PERSONNEL COMPENSATION,DETAIL,   ,   ,   ,SEHER ELLEN G.,2021-10-01,2021-12-31,DIRECTOR OF OPERATIONS,36508.33,2021
,2021 OFFICE OF THE MINORITY WHIP,,GENERAL EXPENDITURES,PERSONNEL COMPENSATION,DETAIL,   ,   ,   ,WIEAND JR JEFFREY L,2021-10-01,2021-12-31,COUNSEL,26391.67,2021
,2021 OFFICE OF THE MINORITY WHIP,,GENERAL EXPENDITURES,PERSONNEL COMPENSATION,SUBTOTAL,   ,   ,   ,   ,   ,   ,PERSONNEL COMPENSATION TOTALS:,488216.88,2021
,2021 OFFICE OF THE MINORITY WHIP,,GENERAL EXPENDITURES,TRAVEL,DETAIL,2021-10-18,AP,1475757,CITIBANK GOV CARD SERVICE,2021-10-13,2021-10-17,AIRFARE COMMERCIAL TRANSPORT,580.4,2021
,2021 OFFICE OF THE MINORITY WHIP,,GENERAL EXPENDITURES,TRAVEL,DETAIL,2021-11-16,AP,1489089,SCHMITZ ERIC T.,2021-10-21,2021-10-27,TAXI/RIDE SHARE,36.45,2021
,2021 OFFICE OF THE MINORITY WHIP,,GENERAL EXPENDITURES,TRAVEL,DETAIL,2021-11-16,AP,1489089,SCHMITZ ERIC T.,2021-11-03,2021-11-03,TAXI/RIDE SHARE,17.34,2021
,2021 OFFICE OF THE MINORITY WHIP,,GENERAL EXPENDITURES,TRAVEL,SUBTOTAL,   ,   ,   ,   ,   ,   ,TRAVEL TOTALS:,634.19,2021
,2021 OFFICE OF THE MINORITY WHIP,,GENERAL EXPENDITURES,RENT  COMMUNICATION  UTILITIES,DETAIL,2021-10-19,AP,1476586,CITI PCARD-GOOGLE  YouTube TV,2021-09-25,2021-10-24,UTILITIES,68.89,2021
,2021 OFFICE OF THE MINORITY WHIP,,GENERAL EXPENDITURES,RENT  COMMUNICATION  UTILITIES,DETAIL,2021-10-25,GL,EMS0110562, ,2021-09-01,2021-09-30,DC TELECOM EQUIP (TRANSFER),76,2021
,2021 OFFICE OF THE MINORITY WHIP,,GENERAL EXPENDITURES,RENT  COMMUNICATION  UTILITIES,DETAIL,2021-10-25,GL,EMS0110562, ,2021-09-01,2021-09-30,DC TELECOM SERV (TRANSFER),248,2021
,2021 OFFICE OF THE MINORITY WHIP,,GENERAL EXPENDITURES,RENT  COMMUNICATION  UTILITIES,DETAIL,2021-10-25,GL,EMS0110562, ,2021-09-01,2021-09-30,DC TELECOM TOLLS (TRANSFER),6107.95,2021
,2021 OFFICE OF THE MINORITY WHIP,,GENERAL EXPENDITURES,RENT  COMMUNICATION  UTILITIES,DETAIL,2021-11-17,AP,1486818,FINE LAUREN R.,2021-04-09,2021-04-27,UTILITIES,35,2021
,2021 OFFICE OF THE MINORITY WHIP,,GENERAL EXPENDITURES,RENT  COMMUNICATION  UTILITIES,DETAIL,2021-11-17,AP,1486818,FINE LAUREN R.,2021-10-17,2021-10-17,UTILITIES,31.99,2021
,2021 OFFICE OF THE MINORITY WHIP,,GENERAL EXPENDITURES,RENT  COMMUNICATION  UTILITIES,DETAIL,2021-11-24,GL,EMS0111169, ,2021-10-01,2021-10-31,DC TELECOM EQUIP (TRANSFER),76,2021
,2021 OFFICE OF THE MINORITY WHIP,,GENERAL EXPENDITURES,RENT  COMMUNICATION  UTILITIES,DETAIL,2021-11-24,GL,EMS0111169, ,2021-10-01,2021-10-31,DC TELECOM SERV (TRANSFER),248,2021
,2021 OFFICE OF THE MINORITY WHIP,,GENERAL EXPENDITURES,RENT  COMMUNICATION  UTILITIES,DETAIL,2021-11-24,GL,EMS0111169, ,2021-10-01,2021-10-31,DC TELECOM TOLLS (TRANSFER),4835.22,2021
,2021 OFFICE OF THE MINORITY WHIP,,GENERAL EXPENDITURES,RENT  COMMUNICATION  UTILITIES,DETAIL,2021-12-20,AP,1489538,CITI PCARD-GOOGLE  YouTube TV,2021-10-25,2021-11-24,UTILITIES,68.89,2021
,2021 OFFICE OF THE MINORITY WHIP,,GENERAL EXPENDITURES,RENT  COMMUNICATION  UTILITIES,DETAIL,2021-12-20,AP,1501090,CITI PCARD-GOOGLE  YouTube TV,2021-11-25,2021-12-24,UTILITIES,68.89,2021
,2021 OFFICE OF THE MINORITY WHIP,,GENERAL EXPENDITURES,RENT  COMMUNICATION  UTILITIES,DETAIL,2021-12-27,GL,EMS0111861, ,2021-11-01,2021-11-30,DC TELECOM EQUIP (TRANSFER),76,2021
,2021 OFFICE OF THE MINORITY WHIP,,GENERAL EXPENDITURES,RENT  COMMUNICATION  UTILITIES,DETAIL,2021-12-27,GL,EMS0111861, ,2021-11-01,2021-11-30,DC TELECOM SERV (TRANSFER),248,2021
,2021 OFFICE OF THE MINORITY WHIP,,GENERAL EXPENDITURES,RENT  COMMUNICATION  UTILITIES,DETAIL,2021-12-27,GL,EMS0111861, ,2021-11-01,2021-11-30,DC TELECOM TOLLS (TRANSFER),5315.83,2021
,2021 OFFICE OF THE MINORITY WHIP,,GENERAL EXPENDITURES,RENT  COMMUNICATION  UTILITIES,SUBTOTAL,   ,   ,   ,   ,   ,   ,RENT  COMMUNICATION  UTILITIES TOTALS:,17504.66,2021
,2021 OFFICE OF THE MINORITY WHIP,,GENERAL EXPENDITURES,PRINTING AND REPRODUCTION,DETAIL,2021-10-13,AP,1476378,ACCURATE WORD,2021-10-01,2021-10-01,FRANKABLE PRINTING & REPROD,65,2021
,2021 OFFICE OF THE MINORITY WHIP,,GENERAL EXPENDITURES,PRINTING AND REPRODUCTION,DETAIL,2021-10-13,AP,1476386,ACCURATE WORD,2021-09-30,2021-09-30,FRANKABLE PRINTING & REPROD,33,2021
,2021 OFFICE OF THE MINORITY WHIP,,GENERAL EXPENDITURES,PRINTING AND REPRODUCTION,DETAIL,2021-10-14,AP,1473293,ACCURATE WORD,2021-09-28,2021-09-28,FRANKABLE PRINTING & REPROD,43,2021
,2021 OFFICE OF THE MINORITY WHIP,,GENERAL EXPENDITURES,PRINTING AND REPRODUCTION,DETAIL,2021-10-26,GL,MED0110469, ,2021-10-24,2021-10-24,PHOTOGRAPHIC (TRANSFER),20,2021
,2021 OFFICE OF THE MINORITY WHIP,,GENERAL EXPENDITURES,PRINTING AND REPRODUCTION,DETAIL,2021-11-16,AP,1489053,ACCURATE WORD,2021-11-03,2021-11-03,FRANKABLE PRINTING & REPROD,33,2021
,2021 OFFICE OF THE MINORITY WHIP,,GENERAL EXPENDITURES,PRINTING AND REPRODUCTION,DETAIL,2021-11-24,GL,MED0111171, ,2021-11-22,2021-11-22,PHOTOGRAPHIC (TRANSFER),20,2021
,2021 OFFICE OF THE MINORITY WHIP,,GENERAL EXPENDITURES,PRINTING AND REPRODUCTION,DETAIL,2021-12-27,GL,MED0111855, ,2021-12-09,2021-12-14,PHOTOGRAPHIC (TRANSFER),30.6,2021
,2021 OFFICE OF THE MINORITY WHIP,,GENERAL EXPENDITURES,PRINTING AND REPRODUCTION,SUBTOTAL,   ,   ,   ,   ,   ,   ,PRINTING AND REPRODUCTION TOTALS:,244.6,2021
,2021 OFFICE OF THE MINORITY WHIP,,GENERAL EXPENDITURES,OTHER SERVICES,DETAIL,2021-10-14,AP,1462682,GULF PARTYLINE CORPORATION,2021-08-01,2021-08-31,TECHNOLOGY SERVICE CONTRACTS,3000,2021
,2021 OFFICE OF THE MINORITY WHIP,,GENERAL EXPENDITURES,OTHER SERVICES,DETAIL,2021-10-16,AP,1478264,HOUSECALL LLC,2021-10-01,2021-10-31,TECHNOLOGY SERVICE CONTRACTS,5125,2021
,2021 OFFICE OF THE MINORITY WHIP,,GENERAL EXPENDITURES,OTHER SERVICES,DETAIL,2021-10-18,AP,1463178,CITI PCARD-APPLE.COM/BILL,2021-07-30,2021-08-29,TECHNOLOGY SERVICE CONTRACTS,3.17,2021
,2021 OFFICE OF THE MINORITY WHIP,,GENERAL EXPENDITURES,OTHER SERVICES,DETAIL,2021-10-18,AP,1463178,CITI PCARD-APPLE.COM/BILL,2021-08-23,2021-09-22,TECHNOLOGY SERVICE CONTRACTS,3.17,2021
,2021 OFFICE OF THE MINORITY WHIP,,GENERAL EXPENDITURES,OTHER SERVICES,DETAIL,2021-10-18,AP,1463178,CITI PCARD-GOOGLE  Google Storage,2021-08-14,2021-09-13,TECHNOLOGY SERVICE CONTRACTS,10.59,2021
,2021 OFFICE OF THE MINORITY WHIP,,GENERAL EXPENDITURES,OTHER SERVICES,DETAIL,2021-10-18,AP,1463178,CITI PCARD-GOOGLE  YouTube TV,2021-08-25,2021-09-24,TECHNOLOGY SERVICE CONTRACTS,68.89,2021
,2021 OFFICE OF THE MINORITY WHIP,,GENERAL EXPENDITURES,OTHER SERVICES,DETAIL,2021-10-18,AP,1463178,CITI PCARD-MAILCHIMP    MONTHLY,2021-08-07,2021-09-06,WEB DEV HST EMAIL & RLTD SERV,304.21,2021
,2021 OFFICE OF THE MINORITY WHIP,,GENERAL EXPENDITURES,OTHER SERVICES,DETAIL,2021-10-19,AP,1476586,CITI PCARD-APPLE.COM/BILL,2021-08-30,2021-09-29,TECHNOLOGY SERVICE CONTRACTS,3.17,2021
,2021 OFFICE OF THE MINORITY WHIP,,GENERAL EXPENDITURES,OTHER SERVICES,DETAIL,2021-10-19,AP,1476586,CITI PCARD-APPLE.COM/BILL,2021-09-09,2021-10-08,TECHNOLOGY SERVICE CONTRACTS,1.05,2021
,2021 OFFICE OF THE MINORITY WHIP,,GENERAL EXPENDITURES,OTHER SERVICES,DETAIL,2021-10-19,AP,1476586,CITI PCARD-APPLE.COM/BILL,2021-09-23,2021-10-22,TECHNOLOGY SERVICE CONTRACTS,3.17,2021
,2021 OFFICE OF THE MINORITY WHIP,,GENERAL EXPENDITURES,OTHER SERVICES,DETAIL,2021-10-19,AP,1476586,CITI PCARD-GOOGLE  Google Storage,2021-09-14,2021-10-13,TECHNOLOGY SERVICE CONTRACTS,10.59,2021
,2021 OFFICE OF THE MINORITY WHIP,,GENERAL EXPENDITURES,OTHER SERVICES,DETAIL,2021-10-19,AP,1476586,CITI PCARD-MAILCHIMP    MONTHLY,2021-09-07,2021-10-06,WEB DEV HST EMAIL & RLTD SERV,304.21,2021
,2021 OFFICE OF THE MINORITY WHIP,,GENERAL EXPENDITURES,OTHER SERVICES,DETAIL,2021-11-16,AP,1490738,HOUSECALL LLC,2021-11-01,2021-11-30,TECHNOLOGY SERVICE CONTRACTS,5125,2021
,2021 OFFICE OF THE MINORITY WHIP,,GENERAL EXPENDITURES,OTHER SERVICES,DETAIL,2021-11-17,AP,1489534,GULF PARTYLINE CORPORATION,2021-10-01,2021-10-31,TECHNOLOGY SERVICE CONTRACTS,3000,2021
,2021 OFFICE OF THE MINORITY WHIP,,GENERAL EXPENDITURES,OTHER SERVICES,DETAIL,2021-12-16,AP,1503543,HOUSECALL LLC,2021-12-01,2021-12-31,TECHNOLOGY SERVICE CONTRACTS,5125,2021
,2021 OFFICE OF THE MINORITY WHIP,,GENERAL EXPENDITURES,OTHER SERVICES,DETAIL,2021-12-17,AP,1497804,GULF PARTYLINE CORPORATION,2021-11-01,2021-11-30,TECHNOLOGY SERVICE CONTRACTS,3000,2021
,2021 OFFICE OF THE MINORITY WHIP,,GENERAL EXPENDITURES,OTHER SERVICES,DETAIL,2021-12-20,AP,1489538,CITI PCARD-APPLE.COM/BILL,2021-09-30,2021-10-29,TECHNOLOGY SERVICE CONTRACTS,3.17,2021
,2021 OFFICE OF THE MINORITY WHIP,,GENERAL EXPENDITURES,OTHER SERVICES,DETAIL,2021-12-20,AP,1489538,CITI PCARD-APPLE.COM/BILL,2021-10-09,2021-11-08,TECHNOLOGY SERVICE CONTRACTS,1.05,2021
,2021 OFFICE OF THE MINORITY WHIP,,GENERAL EXPENDITURES,OTHER SERVICES,DETAIL,2021-12-20,AP,1489538,CITI PCARD-APPLE.COM/BILL,2021-10-23,2021-11-22,TECHNOLOGY SERVICE CONTRACTS,3.17,2021
,2021 OFFICE OF THE MINORITY WHIP,,GENERAL EXPENDITURES,OTHER SERVICES,DETAIL,2021-12-20,AP,1489538,CITI PCARD-GOOGLE  Google Storage,2021-10-14,2021-11-13,TECHNOLOGY SERVICE CONTRACTS,10.59,2021
,2021 OFFICE OF THE MINORITY WHIP,,GENERAL EXPENDITURES,OTHER SERVICES,DETAIL,2021-12-20,AP,1489538,CITI PCARD-MAILCHIMP    MONTHLY,2021-10-07,2021-11-06,WEB DEV HST EMAIL & RLTD SERV,304.21,2021
,2021 OFFICE OF THE MINORITY WHIP,,GENERAL EXPENDITURES,OTHER SERVICES,DETAIL,2021-12-20,AP,1501090,CITI PCARD-APPLE.COM/BILL,2021-10-30,2021-11-29,TECHNOLOGY SERVICE CONTRACTS,3.17,2021
,2021 OFFICE OF THE MINORITY WHIP,,GENERAL EXPENDITURES,OTHER SERVICES,DETAIL,2021-12-20,AP,1501090,CITI PCARD-APPLE.COM/BILL,2021-11-09,2021-12-08,TECHNOLOGY SERVICE CONTRACTS,1.05,2021
,2021 OFFICE OF THE MINORITY WHIP,,GENERAL EXPENDITURES,OTHER SERVICES,DETAIL,2021-12-20,AP,1501090,CITI PCARD-APPLE.COM/BILL,2021-11-23,2021-12-22,TECHNOLOGY SERVICE CONTRACTS,3.17,2021
,2021 OFFICE OF THE MINORITY WHIP,,GENERAL EXPENDITURES,OTHER SERVICES,DETAIL,2021-12-20,AP,1501090,CITI PCARD-GOOGLE  Google Storage,2021-11-14,2021-12-13,TECHNOLOGY SERVICE CONTRACTS,10.59,2021
,2021 OFFICE OF THE MINORITY WHIP,,GENERAL EXPENDITURES,OTHER SERVICES,DETAIL,2021-12-20,AP,1501090,CITI PCARD-MAILCHIMP    MONTHLY,2021-11-07,2021-12-06,WEB DEV HST EMAIL & RLTD SERV,304.21,2021
,2021 OFFICE OF THE MINORITY WHIP,,GENERAL EXPENDITURES,OTHER SERVICES,SUBTOTAL,   ,   ,   ,   ,   ,   ,OTHER SERVICES TOTALS:,25731.6,2021
,2021 OFFICE OF THE MINORITY WHIP,,GENERAL EXPENDITURES,SUPPLIES AND MATERIALS,DETAIL,2021-10-13,AP,1473311,QUENCH USA LLC,2021-10-01,2021-10-31,WATER,46.75,2021
,2021 OFFICE OF THE MINORITY WHIP,,GENERAL EXPENDITURES,SUPPLIES AND MATERIALS,DETAIL,2021-10-14,AP,1470871,IMPACTOFFICE,2021-07-26,2021-07-26,OFFICE SUPPLIES (OUTSIDE),16.6,2021
,2021 OFFICE OF THE MINORITY WHIP,,GENERAL EXPENDITURES,SUPPLIES AND MATERIALS,DETAIL,2021-10-15,AP,1473446,COMER II MICHAEL D.,2021-09-15,2021-09-15,OFFICE SUPPLIES (OUTSIDE),95.81,2021
,2021 OFFICE OF THE MINORITY WHIP,,GENERAL EXPENDITURES,SUPPLIES AND MATERIALS,DETAIL,2021-10-18,AP,1463178,CITI PCARD-NYTimes NYTimes disc,2021-08-14,2021-09-13,PUBLICATIONS/REFERENCE MAT'L,16.96,2021
,2021 OFFICE OF THE MINORITY WHIP,,GENERAL EXPENDITURES,SUPPLIES AND MATERIALS,DETAIL,2021-10-18,AP,1463178,CITI PCARD-STK Shutterstock,2021-07-28,2021-08-27,SOFTWARE  LESS THAN  $500,169,2021
,2021 OFFICE OF THE MINORITY WHIP,,GENERAL EXPENDITURES,SUPPLIES AND MATERIALS,DETAIL,2021-10-18,AP,1463178,CITI PCARD-STK Shutterstock,2021-08-19,2021-09-20,SOFTWARE  LESS THAN  $500,98,2021
,2021 OFFICE OF THE MINORITY WHIP,,GENERAL EXPENDITURES,SUPPLIES AND MATERIALS,DETAIL,2021-10-18,AP,1463178,CITI PCARD-SUB WASHPOST 015043157,2021-08-19,2021-09-18,PUBLICATIONS/REFERENCE MAT'L,10.6,2021
,2021 OFFICE OF THE MINORITY WHIP,,GENERAL EXPENDITURES,SUPPLIES AND MATERIALS,DETAIL,2021-10-19,AP,1476586,CITI PCARD-AMZN Mktp US 2G0HD5JS2,2021-09-17,2021-09-17,OFFICE SUPPLIES (OUTSIDE),24.48,2021
,2021 OFFICE OF THE MINORITY WHIP,,GENERAL EXPENDITURES,SUPPLIES AND MATERIALS,DETAIL,2021-10-19,AP,1476586,CITI PCARD-AMZN Mktp US 2G1KO7KN2,2021-09-23,2021-09-23,OFFICE SUPPLIES (OUTSIDE),27.98,2021
,2021 OFFICE OF THE MINORITY WHIP,,GENERAL EXPENDITURES,SUPPLIES AND MATERIALS,DETAIL,2021-10-19,AP,1476586,CITI PCARD-AMZN Mktp US 2G3Y11452,2021-09-14,2021-09-14,OFFICE SUPPLIES (OUTSIDE),54.19,2021
,2021 OFFICE OF THE MINORITY WHIP,,GENERAL EXPENDITURES,SUPPLIES AND MATERIALS,DETAIL,2021-10-19,AP,1476586,CITI PCARD-AMZN Mktp US 2G4DW8A20,2021-09-10,2021-09-10,OFFICE SUPPLIES (OUTSIDE),222.32,2021
,2021 OFFICE OF THE MINORITY WHIP,,GENERAL EXPENDITURES,SUPPLIES AND MATERIALS,DETAIL,2021-10-19,AP,1476586,CITI PCARD-AMZN Mktp US 2G8AE48T2,2021-09-21,2021-09-21,OFFICE SUPPLIES (OUTSIDE),18.38,2021
,2021 OFFICE OF THE MINORITY WHIP,,GENERAL EXPENDITURES,SUPPLIES AND MATERIALS,DETAIL,2021-10-19,AP,1476586,CITI PCARD-AMZN Mktp US 2G9JQ5B12,2021-09-21,2021-09-21,OFFICE SUPPLIES (OUTSIDE),27.98,2021
,2021 OFFICE OF THE MINORITY WHIP,,GENERAL EXPENDITURES,SUPPLIES AND MATERIALS,DETAIL,2021-10-19,AP,1476586,CITI PCARD-LEGISTORM LLC,2021-05-19,2021-12-31,PUBLICATIONS/REFERENCE MAT'L,928.77,2021
,2021 OFFICE OF THE MINORITY WHIP,,GENERAL EXPENDITURES,SUPPLIES AND MATERIALS,DETAIL,2021-10-19,AP,1476586,CITI PCARD-NYTimes NYTimes disc,2021-09-11,2021-10-10,PUBLICATIONS/REFERENCE MAT'L,16.96,2021
,2021 OFFICE OF THE MINORITY WHIP,,GENERAL EXPENDITURES,SUPPLIES AND MATERIALS,DETAIL,2021-10-19,AP,1476586,CITI PCARD-STK Shutterstock,2021-08-28,2021-09-27,SOFTWARE  LESS THAN  $500,169,2021
,2021 OFFICE OF THE MINORITY WHIP,,GENERAL EXPENDITURES,SUPPLIES AND MATERIALS,DETAIL,2021-10-19,AP,1476586,CITI PCARD-SUB WASHPOST 015043157,2021-09-16,2021-10-15,PUBLICATIONS/REFERENCE MAT'L,10.6,2021
,2021 OFFICE OF THE MINORITY WHIP,,GENERAL EXPENDITURES,SUPPLIES AND MATERIALS,DETAIL,2021-10-31,GL,RMS0110650, ,2021-10-01,2021-10-31,OFFICE SUPPLY (TRANSFER),65.05,2021
,2021 OFFICE OF THE MINORITY WHIP,,GENERAL EXPENDITURES,SUPPLIES AND MATERIALS,DETAIL,2021-11-03,AP,1483241,QUENCH USA LLC,2021-11-01,2021-11-30,WATER,46.75,2021
,2021 OFFICE OF THE MINORITY WHIP,,GENERAL EXPENDITURES,SUPPLIES AND MATERIALS,DETAIL,2021-11-30,GL,RMS0111316, ,2021-11-01,2021-11-30,OFFICE SUPPLY (TRANSFER),157.33,2021
,2021 OFFICE OF THE MINORITY WHIP,,GENERAL EXPENDITURES,SUPPLIES AND MATERIALS,DETAIL,2021-12-14,AP,1501261,CDW GOVERNMENT LLC,2021-12-06,2021-12-06,OFFICE SUPPLIES (OUTSIDE),122.14,2021
,2021 OFFICE OF THE MINORITY WHIP,,GENERAL EXPENDITURES,SUPPLIES AND MATERIALS,DETAIL,2021-12-14,AP,1501261,CDW GOVERNMENT LLC,2021-12-06,2021-12-06,OFFICE SUPPLIES (OUTSIDE) QTY - 8,1793.04,2021
,2021 OFFICE OF THE MINORITY WHIP,,GENERAL EXPENDITURES,SUPPLIES AND MATERIALS,DETAIL,2021-12-20,AP,1489538,CITI PCARD-AMAZON.COM 2Y6K486U2 AMZN,2021-10-25,2021-10-25,OFFICE SUPPLIES (OUTSIDE),118.86,2021
,2021 OFFICE OF THE MINORITY WHIP,,GENERAL EXPENDITURES,SUPPLIES AND MATERIALS,DETAIL,2021-12-20,AP,1489538,CITI PCARD-AMZN Mktp US 2Y3HT57E0,2021-10-22,2021-10-22,OFFICE SUPPLIES (OUTSIDE),78.79,2021
,2021 OFFICE OF THE MINORITY WHIP,,GENERAL EXPENDITURES,SUPPLIES AND MATERIALS,DETAIL,2021-12-20,AP,1489538,CITI PCARD-D J WALL-ST-JOURNAL,2021-10-20,2021-12-20,PUBLICATIONS/REFERENCE MAT'L,123.99,2021
,2021 OFFICE OF THE MINORITY WHIP,,GENERAL EXPENDITURES,SUPPLIES AND MATERIALS,DETAIL,2021-12-20,AP,1489538,CITI PCARD-NYTimes NYTimes disc,2021-10-09,2021-11-08,PUBLICATIONS/REFERENCE MAT'L,16.96,2021
,2021 OFFICE OF THE MINORITY WHIP,,GENERAL EXPENDITURES,SUPPLIES AND MATERIALS,DETAIL,2021-12-20,AP,1489538,CITI PCARD-STK Shutterstock,2021-09-28,2021-10-27,SOFTWARE  LESS THAN  $500,169,2021
,2021 OFFICE OF THE MINORITY WHIP,,GENERAL EXPENDITURES,SUPPLIES AND MATERIALS,DETAIL,2021-12-20,AP,1489538,CITI PCARD-SUB WASHPOST 015043157,2021-10-14,2021-11-13,PUBLICATIONS/REFERENCE MAT'L,10.6,2021
,2021 OFFICE OF THE MINORITY WHIP,,GENERAL EXPENDITURES,SUPPLIES AND MATERIALS,DETAIL,2021-12-20,AP,1501090,CITI PCARD-AMZN Mktp US E26RL1IP3,2021-10-27,2021-10-27,OFFICE SUPPLIES (OUTSIDE),199.96,2021
,2021 OFFICE OF THE MINORITY WHIP,,GENERAL EXPENDITURES,SUPPLIES AND MATERIALS,DETAIL,2021-12-20,AP,1501090,CITI PCARD-B&H PHOTO 800-606-6969,2021-11-01,2021-11-01,OFFICE SUPPLIES (OUTSIDE),74.09,2021
,2021 OFFICE OF THE MINORITY WHIP,,GENERAL EXPENDITURES,SUPPLIES AND MATERIALS,DETAIL,2021-12-20,AP,1501090,CITI PCARD-NYTimes NYTimes disc,2021-11-06,2021-12-05,PUBLICATIONS/REFERENCE MAT'L,16.96,2021
,2021 OFFICE OF THE MINORITY WHIP,,GENERAL EXPENDITURES,SUPPLIES AND MATERIALS,DETAIL,2021-12-20,AP,1501090,CITI PCARD-RESTREAM INC.,2021-11-17,2022-11-17,SOFTWARE  LESS THAN  $500,490,2021
,2021 OFFICE OF THE MINORITY WHIP,,GENERAL EXPENDITURES,SUPPLIES AND MATERIALS,DETAIL,2021-12-20,AP,1501090,CITI PCARD-STK Shutterstock,2021-10-28,2021-11-27,SOFTWARE  LESS THAN  $500,169,2021
,2021 OFFICE OF THE MINORITY WHIP,,GENERAL EXPENDITURES,SUPPLIES AND MATERIALS,DETAIL,2021-12-20,AP,1501090,CITI PCARD-SUB WASHPOST 015043157,2021-11-11,2021-12-10,PUBLICATIONS/REFERENCE MAT'L,10.6,2021
,2021 OFFICE OF THE MINORITY WHIP,,GENERAL EXPENDITURES,SUPPLIES AND MATERIALS,DETAIL,2021-12-31,GL,RMS0112074, ,2021-12-01,2021-12-31,OFFICE SUPPLY (TRANSFER),103.18,2021
,2021 OFFICE OF THE MINORITY WHIP,,GENERAL EXPENDITURES,SUPPLIES AND MATERIALS,SUBTOTAL,   ,   ,   ,   ,   ,   ,SUPPLIES AND MATERIALS TOTALS:,5720.68,2021
,2021 OFFICE OF THE MINORITY WHIP,,GENERAL EXPENDITURES,EQUIPMENT,DETAIL,2021-10-19,AP,1476586,CITI PCARD-AMAZON.COM 2G1NU4F00 AMZN,2021-09-06,2021-09-06,COMPUTER HARDW PURCH  LESS THAN $25 000,1147.46,2021
,2021 OFFICE OF THE MINORITY WHIP,,GENERAL EXPENDITURES,EQUIPMENT,DETAIL,2021-10-19,AP,1476586,CITI PCARD-AMAZON.COM 2G7VI4NB1 AMZN,2021-09-06,2021-09-06,COMPUTER HARDW PURCH  LESS THAN $25 000,1108.88,2021
,2021 OFFICE OF THE MINORITY WHIP,,GENERAL EXPENDITURES,EQUIPMENT,DETAIL,2021-10-29,GL,MNT0110598, ,2021-10-01,2021-10-31,MAINTENANCE / REPAIRS,196,2021
,2021 OFFICE OF THE MINORITY WHIP,,GENERAL EXPENDITURES,EQUIPMENT,DETAIL,2021-11-09,AP,1487827,CDW GOVERNMENT LLC,2021-10-11,2021-10-11,COMPUTER HARDW PURCH  LESS THAN $25 000,3030.53,2021
,2021 OFFICE OF THE MINORITY WHIP,,GENERAL EXPENDITURES,EQUIPMENT,DETAIL,2021-11-09,AP,1487827,CDW GOVERNMENT LLC,2021-10-11,2021-10-11,WARRANTIES QTY - 2,251.1,2021
,2021 OFFICE OF THE MINORITY WHIP,,GENERAL EXPENDITURES,EQUIPMENT,DETAIL,2021-11-30,GL,MNT0111241, ,2021-11-01,2021-11-30,MAINTENANCE / REPAIRS,196,2021
,2021 OFFICE OF THE MINORITY WHIP,,GENERAL EXPENDITURES,EQUIPMENT,DETAIL,2021-12-14,AP,1501261,CDW GOVERNMENT LLC,2021-12-06,2021-12-06,COMPUTER HARDW PURCH  LESS THAN $25 000,3108.36,2021
,2021 OFFICE OF THE MINORITY WHIP,,GENERAL EXPENDITURES,EQUIPMENT,DETAIL,2021-12-14,AP,1501261,CDW GOVERNMENT LLC,2021-12-06,2021-12-06,WARRANTIES,303.13,2021
,2021 OFFICE OF THE MINORITY WHIP,,GENERAL EXPENDITURES,EQUIPMENT,DETAIL,2021-12-30,GL,MNT0111957, ,2021-12-01,2021-12-31,MAINTENANCE / REPAIRS,196,2021
,2021 OFFICE OF THE MINORITY WHIP,,GENERAL EXPENDITURES,EQUIPMENT,SUBTOTAL,   ,   ,   ,   ,   ,   ,EQUIPMENT TOTALS:,9537.46,2021
,2021 OFFICE OF THE MINORITY WHIP,,GENERAL EXPENDITURES,EQUIPMENT,SUBTOTAL,   ,   ,   ,   ,   ,   ,GENERAL EXPENDITURES TOTALS:,547590.07,2021
,2021 OFFICE OF THE MINORITY WHIP,,GENERAL EXPENDITURES,EQUIPMENT,GRAND TOTAL FOR ORGANIZATION,   ,   ,   ,   ,   ,   ,OFFICE TOTALS: ,547590.07,2021
,2021 OFFICE OF THE MINORITY WHIP,,INTERN ALLOWANCES,PERSONNEL COMPENSATION,DETAIL,   ,   ,   ,ELKINS CODY J.,2021-10-01,2021-12-17,MIN WHIP PAID INTERN - HOUSE P,1283.33,2021
,2021 OFFICE OF THE MINORITY WHIP,,INTERN ALLOWANCES,PERSONNEL COMPENSATION,DETAIL,   ,   ,   ,GATESMAN AUSTIN R.,2021-10-01,2021-12-17,MIN WHIP PAID INTERN - HOUSE P,1283.33,2021
,2021 OFFICE OF THE MINORITY WHIP,,INTERN ALLOWANCES,PERSONNEL COMPENSATION,DETAIL,   ,   ,   ,GUIDRY JR GAVIN M.,2021-10-01,2021-12-17,MIN WHIP PAID INTERN - HOUSE P,1283.33,2021
,2021 OFFICE OF THE MINORITY WHIP,,INTERN ALLOWANCES,PERSONNEL COMPENSATION,DETAIL,   ,   ,   ,HAGIGH DAVIS,2021-10-01,2021-12-17,MIN WHIP PAID INTERN - HOUSE P,1283.33,2021
,2021 OFFICE OF THE MINORITY WHIP,,INTERN ALLOWANCES,PERSONNEL COMPENSATION,DETAIL,   ,   ,   ,MUNROE JACKSON D.,2021-10-01,2021-12-17,MIN WHIP PAID INTERN - HOUSE P,1283.33,2021
,2021 OFFICE OF THE MINORITY WHIP,,INTERN ALLOWANCES,PERSONNEL COMPENSATION,DETAIL,   ,   ,   ,SIMONEAUX HARRISON J.,2021-10-01,2021-12-17,MIN WHIP PAID INTERN - HOUSE P,1283.33,2021
,2021 OFFICE OF THE MINORITY WHIP,,INTERN ALLOWANCES,PERSONNEL COMPENSATION,SUBTOTAL,   ,   ,   ,   ,   ,   ,PERSONNEL COMPENSATION TOTALS:,7699.98,2021
,2021 OFFICE OF THE MINORITY WHIP,,INTERN ALLOWANCES,PERSONNEL COMPENSATION,SUBTOTAL,   ,   ,   ,   ,   ,   ,INTERN ALLOWANCES TOTALS:,7699.98,2021
,2021 OFFICE OF THE MINORITY WHIP,,INTERN ALLOWANCES,PERSONNEL COMPENSATION,GRAND TOTAL FOR ORGANIZATION,   ,   ,   ,   ,   ,   ,OFFICE TOTALS: ,7699.98,2021
,2021 DEMOCRATIC CAUCUS,,GENERAL EXPENDITURES,PERSONNEL COMPENSATION,DETAIL,   ,   ,   ,BRAGIN GIDEON,2021-10-01,2021-12-31,EXECUTIVE DIRECTOR,41999.99,2021
,2021 DEMOCRATIC CAUCUS,,GENERAL EXPENDITURES,PERSONNEL COMPENSATION,DETAIL,   ,   ,   ,CARRILLO MANUEL J,2021-10-01,2021-12-31,DIRECTOR OF OPERATIONS,30749.99,2021
,2021 DEMOCRATIC CAUCUS,,GENERAL EXPENDITURES,PERSONNEL COMPENSATION,DETAIL,   ,   ,   ,CORNELL REBECCA T.,2021-10-01,2021-12-31,CHIEF OF STAFF TO THE VICE CHA,37166.67,2021
,2021 DEMOCRATIC CAUCUS,,GENERAL EXPENDITURES,PERSONNEL COMPENSATION,DETAIL,   ,   ,   ,DANIEL JASMINE N.,2021-11-29,2021-12-31,DIGITAL RESIDENT,1600,2021
,2021 DEMOCRATIC CAUCUS,,GENERAL EXPENDITURES,PERSONNEL COMPENSATION,DETAIL,   ,   ,   ,DAWSON EARNESTINE E,2021-10-01,2021-12-31,DIGITAL DIRECTOR & ADVISOR TO,26999.99,2021
,2021 DEMOCRATIC CAUCUS,,GENERAL EXPENDITURES,PERSONNEL COMPENSATION,DETAIL,   ,   ,   ,DESOWITZ-LEIBELL ZACHARY J,2021-10-01,2021-12-31,DEPUTY PRESS SECRETARY,18250.01,2021
,2021 DEMOCRATIC CAUCUS,,GENERAL EXPENDITURES,PERSONNEL COMPENSATION,DETAIL,   ,   ,   ,DICKERSON KALISE S.,2021-10-01,2021-12-31,SYSTEM ADMINISTRATOR,18250.01,2021
,2021 DEMOCRATIC CAUCUS,,GENERAL EXPENDITURES,PERSONNEL COMPENSATION,DETAIL,   ,   ,   ,GIULINO DANIELLE M.,2021-10-01,2021-12-31,SHARED EMPLOYEE,14075.33,2021
,2021 DEMOCRATIC CAUCUS,,GENERAL EXPENDITURES,PERSONNEL COMPENSATION,DETAIL,   ,   ,   ,HERNANDEZ ITZEL N,2021-10-01,2021-12-31,OPERATIONS COORDINATOR & MEMBE,14500.01,2021
,2021 DEMOCRATIC CAUCUS,,GENERAL EXPENDITURES,PERSONNEL COMPENSATION,DETAIL,   ,   ,   ,JACKSON TASIA,2021-10-01,2021-12-31,CHIEF OF STAFF,7124.99,2021
,2021 DEMOCRATIC CAUCUS,,GENERAL EXPENDITURES,PERSONNEL COMPENSATION,DETAIL,   ,   ,   ,MENSIE ALYSSA D,2021-10-01,2021-12-31,MEMBER SERVICES AND OUTREACH A,23250.01,2021
,2021 DEMOCRATIC CAUCUS,,GENERAL EXPENDITURES,PERSONNEL COMPENSATION,DETAIL,   ,   ,   ,MITCHELL JOHNA B.,2021-10-06,2021-12-31,DIGITAL RESIDENCE,4250,2021
,2021 DEMOCRATIC CAUCUS,,GENERAL EXPENDITURES,PERSONNEL COMPENSATION,DETAIL,   ,   ,   ,MUNOZ LOPEZ LAURA,2021-10-01,2021-12-31,MEMBER SERVICES AND OUTREACH A,25000.01,2021
,2021 DEMOCRATIC CAUCUS,,GENERAL EXPENDITURES,PERSONNEL COMPENSATION,DETAIL,   ,   ,   ,NARAYAN NANDINI K,2021-10-01,2021-12-05,VC MEMBER SERVICES & OUTREACH,11375.01,2021
,2021 DEMOCRATIC CAUCUS,,GENERAL EXPENDITURES,PERSONNEL COMPENSATION,DETAIL,   ,   ,   ,NARAYAN NANDINI K,2021-12-01,2021-12-05,VC MEMBER SERVICES & OUTREACH (OTHER COMPENSATION),1173.61,2021
,2021 DEMOCRATIC CAUCUS,,GENERAL EXPENDITURES,PERSONNEL COMPENSATION,DETAIL,   ,   ,   ,NORIEGA-MAY EMILY J,2021-10-01,2021-12-31,DEPUTY EXECUTIVE DIRECTOR,33250.01,2021
,2021 DEMOCRATIC CAUCUS,,GENERAL EXPENDITURES,PERSONNEL COMPENSATION,DETAIL,   ,   ,   ,ROBINSON TEJAH R,2021-10-01,2021-12-31,CREATIVE MANAGER,15749.99,2021
,2021 DEMOCRATIC CAUCUS,,GENERAL EXPENDITURES,PERSONNEL COMPENSATION,DETAIL,   ,   ,   ,SACHSE ANDREW M,2021-10-01,2021-12-31,DEP DIR OF MEMBER SERVICES,21312.5,2021
,2021 DEMOCRATIC CAUCUS,,GENERAL EXPENDITURES,PERSONNEL COMPENSATION,DETAIL,   ,   ,   ,SCHEUER ALEXANDER J,2021-10-01,2021-12-31,DEPUTY DIRECTOR OF OPERATIONS,17000,2021
,2021 DEMOCRATIC CAUCUS,,GENERAL EXPENDITURES,PERSONNEL COMPENSATION,DETAIL,   ,   ,   ,SHELDON ELIZABETH C.,2021-10-01,2021-12-31,STAFF ASSISTANT,11999.99,2021
,2021 DEMOCRATIC CAUCUS,,GENERAL EXPENDITURES,PERSONNEL COMPENSATION,DETAIL,   ,   ,   ,STEPHENSON CHRISTIANA E,2021-10-01,2021-12-31,COMMUNICATIONS DIRECTOR,33250.01,2021
,2021 DEMOCRATIC CAUCUS,,GENERAL EXPENDITURES,PERSONNEL COMPENSATION,DETAIL,   ,   ,   ,STICKNEY LAKECIA N,2021-10-01,2021-12-31,POLICY AND OUTREACH DIRECTOR,32624.99,2021
,2021 DEMOCRATIC CAUCUS,,GENERAL EXPENDITURES,PERSONNEL COMPENSATION,DETAIL,   ,   ,   ,TSETSENGARID BUYANDELGER,2021-11-19,2021-11-30,CHIEF OF STAFF TO THE VICE CHA,1333.33,2021
,2021 DEMOCRATIC CAUCUS,,GENERAL EXPENDITURES,PERSONNEL COMPENSATION,DETAIL,   ,   ,   ,TSETSENGARID BUYANDELGER,2021-12-01,2021-12-31,CAUCUS ASSISTANT,5333.33,2021
,2021 DEMOCRATIC CAUCUS,,GENERAL EXPENDITURES,PERSONNEL COMPENSATION,DETAIL,   ,   ,   ,WILLIAMS WAYNE K,2021-10-01,2021-12-31,SENIOR POLICY ADVISOR,26999.99,2021
,2021 DEMOCRATIC CAUCUS,,GENERAL EXPENDITURES,PERSONNEL COMPENSATION,DETAIL,   ,   ,   ,WU TONIA S,2021-10-01,2021-12-31,POLICY ADVISOR,14500.01,2021
,2021 DEMOCRATIC CAUCUS,,GENERAL EXPENDITURES,PERSONNEL COMPENSATION,SUBTOTAL,   ,   ,   ,   ,   ,   ,PERSONNEL COMPENSATION TOTALS:,489119.78,2021
,2021 DEMOCRATIC CAUCUS,,GENERAL EXPENDITURES,TRAVEL,DETAIL,2021-10-14,AP,1476482,DAWSON EARNESTINE E.,2021-09-19,2021-09-20,TAXI/RIDE SHARE,55.76,2021
,2021 DEMOCRATIC CAUCUS,,GENERAL EXPENDITURES,TRAVEL,DETAIL,2021-11-05,AP,1486319,STICKNEY LAKECIA N.,2021-09-22,2021-09-22,TAXI/RIDE SHARE,11,2021
,2021 DEMOCRATIC CAUCUS,,GENERAL EXPENDITURES,TRAVEL,DETAIL,2021-11-05,AP,1486448,CITI PCARD-LYFT   RIDE MON 8AM,2021-06-08,2021-06-08,TAXI/RIDE SHARE,20.99,2021
,2021 DEMOCRATIC CAUCUS,,GENERAL EXPENDITURES,TRAVEL,DETAIL,2021-11-30,AP,1496295,CITIBANK GOV CARD SERVICE,2021-03-29,2021-03-29,TAXI/RIDE SHARE,13.99,2021
,2021 DEMOCRATIC CAUCUS,,GENERAL EXPENDITURES,TRAVEL,DETAIL,2021-11-30,AP,1496295,CITIBANK GOV CARD SERVICE,2021-03-31,2021-03-31,TAXI/RIDE SHARE,21.99,2021
,2021 DEMOCRATIC CAUCUS,,GENERAL EXPENDITURES,TRAVEL,DETAIL,2021-11-30,AP,1496295,CITIBANK GOV CARD SERVICE,2021-04-01,2021-04-01,TAXI/RIDE SHARE,10.99,2021
,2021 DEMOCRATIC CAUCUS,,GENERAL EXPENDITURES,TRAVEL,DETAIL,2021-11-30,AP,1496295,CITIBANK GOV CARD SERVICE,2021-04-08,2021-04-08,TAXI/RIDE SHARE,18.99,2021
,2021 DEMOCRATIC CAUCUS,,GENERAL EXPENDITURES,TRAVEL,DETAIL,2021-11-30,AP,1496295,CITIBANK GOV CARD SERVICE,2021-04-13,2021-04-13,TAXI/RIDE SHARE,12.99,2021
,2021 DEMOCRATIC CAUCUS,,GENERAL EXPENDITURES,TRAVEL,DETAIL,2021-11-30,AP,1496295,CITIBANK GOV CARD SERVICE,2021-04-14,2021-04-14,TAXI/RIDE SHARE,29.98,2021
,2021 DEMOCRATIC CAUCUS,,GENERAL EXPENDITURES,TRAVEL,DETAIL,2021-11-30,AP,1496295,CITIBANK GOV CARD SERVICE,2021-04-15,2021-04-15,TAXI/RIDE SHARE,36.98,2021
,2021 DEMOCRATIC CAUCUS,,GENERAL EXPENDITURES,TRAVEL,DETAIL,2021-11-30,AP,1496295,CITIBANK GOV CARD SERVICE,2021-04-16,2021-04-16,TAXI/RIDE SHARE,13.99,2021
,2021 DEMOCRATIC CAUCUS,,GENERAL EXPENDITURES,TRAVEL,DETAIL,2021-11-30,AP,1496295,CITIBANK GOV CARD SERVICE,2021-04-17,2021-04-17,TAXI/RIDE SHARE,11.99,2021
,2021 DEMOCRATIC CAUCUS,,GENERAL EXPENDITURES,TRAVEL,DETAIL,2021-11-30,AP,1496295,CITIBANK GOV CARD SERVICE,2021-04-19,2021-04-19,TAXI/RIDE SHARE,24.99,2021
,2021 DEMOCRATIC CAUCUS,,GENERAL EXPENDITURES,TRAVEL,DETAIL,2021-11-30,AP,1496295,CITIBANK GOV CARD SERVICE,2021-04-20,2021-04-20,TAXI/RIDE SHARE,29.98,2021
,2021 DEMOCRATIC CAUCUS,,GENERAL EXPENDITURES,TRAVEL,DETAIL,2021-11-30,AP,1496295,CITIBANK GOV CARD SERVICE,2021-04-21,2021-04-21,TAXI/RIDE SHARE,34.98,2021
,2021 DEMOCRATIC CAUCUS,,GENERAL EXPENDITURES,TRAVEL,DETAIL,2021-11-30,AP,1496295,CITIBANK GOV CARD SERVICE,2021-04-22,2021-04-22,TAXI/RIDE SHARE,10.99,2021
,2021 DEMOCRATIC CAUCUS,,GENERAL EXPENDITURES,TRAVEL,DETAIL,2021-11-30,AP,1496295,CITIBANK GOV CARD SERVICE,2021-04-28,2021-04-28,TAXI/RIDE SHARE,41.98,2021
,2021 DEMOCRATIC CAUCUS,,GENERAL EXPENDITURES,TRAVEL,DETAIL,2021-11-30,AP,1496295,CITIBANK GOV CARD SERVICE,2021-04-29,2021-04-29,TAXI/RIDE SHARE,31.99,2021
,2021 DEMOCRATIC CAUCUS,,GENERAL EXPENDITURES,TRAVEL,DETAIL,2021-11-30,AP,1496295,CITIBANK GOV CARD SERVICE,2021-05-01,2021-05-01,TAXI/RIDE SHARE,18.99,2021
,2021 DEMOCRATIC CAUCUS,,GENERAL EXPENDITURES,TRAVEL,DETAIL,2021-11-30,AP,1496295,CITIBANK GOV CARD SERVICE,2021-05-04,2021-05-04,TAXI/RIDE SHARE,25.09,2021
,2021 DEMOCRATIC CAUCUS,,GENERAL EXPENDITURES,TRAVEL,DETAIL,2021-11-30,AP,1496295,CITIBANK GOV CARD SERVICE,2021-05-05,2021-05-05,TAXI/RIDE SHARE,29.7,2021
,2021 DEMOCRATIC CAUCUS,,GENERAL EXPENDITURES,TRAVEL,DETAIL,2021-11-30,AP,1496295,CITIBANK GOV CARD SERVICE,2021-05-06,2021-05-06,TAXI/RIDE SHARE,30.98,2021
,2021 DEMOCRATIC CAUCUS,,GENERAL EXPENDITURES,TRAVEL,DETAIL,2021-11-30,AP,1496295,CITIBANK GOV CARD SERVICE,2021-05-07,2021-05-07,TAXI/RIDE SHARE,13.99,2021
,2021 DEMOCRATIC CAUCUS,,GENERAL EXPENDITURES,TRAVEL,DETAIL,2021-11-30,AP,1496295,CITIBANK GOV CARD SERVICE,2021-05-12,2021-05-12,TAXI/RIDE SHARE,26.98,2021
,2021 DEMOCRATIC CAUCUS,,GENERAL EXPENDITURES,TRAVEL,DETAIL,2021-11-30,AP,1496295,CITIBANK GOV CARD SERVICE,2021-05-13,2021-05-13,TAXI/RIDE SHARE,32.77,2021
,2021 DEMOCRATIC CAUCUS,,GENERAL EXPENDITURES,TRAVEL,DETAIL,2021-11-30,AP,1496295,CITIBANK GOV CARD SERVICE,2021-05-14,2021-05-14,TAXI/RIDE SHARE,13.99,2021
,2021 DEMOCRATIC CAUCUS,,GENERAL EXPENDITURES,TRAVEL,DETAIL,2021-11-30,AP,1496295,CITIBANK GOV CARD SERVICE,2021-05-17,2021-05-17,TAXI/RIDE SHARE,27.98,2021
,2021 DEMOCRATIC CAUCUS,,GENERAL EXPENDITURES,TRAVEL,DETAIL,2021-11-30,AP,1496295,CITIBANK GOV CARD SERVICE,2021-05-18,2021-05-18,TAXI/RIDE SHARE,15.99,2021
,2021 DEMOCRATIC CAUCUS,,GENERAL EXPENDITURES,TRAVEL,DETAIL,2021-11-30,AP,1496295,CITIBANK GOV CARD SERVICE,2021-05-19,2021-05-19,TAXI/RIDE SHARE,27.98,2021
,2021 DEMOCRATIC CAUCUS,,GENERAL EXPENDITURES,TRAVEL,DETAIL,2021-11-30,AP,1496295,CITIBANK GOV CARD SERVICE,2021-05-20,2021-05-20,TAXI/RIDE SHARE,28.17,2021
,2021 DEMOCRATIC CAUCUS,,GENERAL EXPENDITURES,TRAVEL,DETAIL,2021-11-30,AP,1496295,CITIBANK GOV CARD SERVICE,2021-05-21,2021-05-21,TAXI/RIDE SHARE,12.99,2021
,2021 DEMOCRATIC CAUCUS,,GENERAL EXPENDITURES,TRAVEL,DETAIL,2021-11-30,AP,1496295,CITIBANK GOV CARD SERVICE,2021-05-22,2021-05-22,TAXI/RIDE SHARE,14.99,2021
,2021 DEMOCRATIC CAUCUS,,GENERAL EXPENDITURES,TRAVEL,DETAIL,2021-11-30,AP,1496295,CITIBANK GOV CARD SERVICE,2021-06-02,2021-06-02,TAXI/RIDE SHARE,11.99,2021
,2021 DEMOCRATIC CAUCUS,,GENERAL EXPENDITURES,TRAVEL,DETAIL,2021-11-30,AP,1496295,CITIBANK GOV CARD SERVICE,2021-06-08,2021-06-08,TAXI/RIDE SHARE,19.99,2021
,2021 DEMOCRATIC CAUCUS,,GENERAL EXPENDITURES,TRAVEL,DETAIL,2021-11-30,AP,1496295,CITIBANK GOV CARD SERVICE,2021-06-09,2021-06-09,TAXI/RIDE SHARE,33.77,2021
,2021 DEMOCRATIC CAUCUS,,GENERAL EXPENDITURES,TRAVEL,DETAIL,2021-11-30,AP,1496295,CITIBANK GOV CARD SERVICE,2021-06-10,2021-06-10,TAXI/RIDE SHARE,42.71,2021
,2021 DEMOCRATIC CAUCUS,,GENERAL EXPENDITURES,TRAVEL,DETAIL,2021-11-30,AP,1496295,CITIBANK GOV CARD SERVICE,2021-06-11,2021-06-11,TAXI/RIDE SHARE,88.91,2021
,2021 DEMOCRATIC CAUCUS,,GENERAL EXPENDITURES,TRAVEL,DETAIL,2021-11-30,AP,1496295,CITIBANK GOV CARD SERVICE,2021-06-12,2021-06-12,TAXI/RIDE SHARE,10.38,2021
,2021 DEMOCRATIC CAUCUS,,GENERAL EXPENDITURES,TRAVEL,DETAIL,2021-11-30,AP,1496295,CITIBANK GOV CARD SERVICE,2021-06-14,2021-06-14,TAXI/RIDE SHARE,41.9,2021
,2021 DEMOCRATIC CAUCUS,,GENERAL EXPENDITURES,TRAVEL,DETAIL,2021-11-30,AP,1496295,CITIBANK GOV CARD SERVICE,2021-06-15,2021-06-15,TAXI/RIDE SHARE,60.18,2021
,2021 DEMOCRATIC CAUCUS,,GENERAL EXPENDITURES,TRAVEL,DETAIL,2021-11-30,AP,1496295,CITIBANK GOV CARD SERVICE,2021-06-16,2021-06-16,TAXI/RIDE SHARE,48.82,2021
,2021 DEMOCRATIC CAUCUS,,GENERAL EXPENDITURES,TRAVEL,DETAIL,2021-11-30,AP,1496295,CITIBANK GOV CARD SERVICE,2021-06-17,2021-06-17,TAXI/RIDE SHARE,14.94,2021
,2021 DEMOCRATIC CAUCUS,,GENERAL EXPENDITURES,TRAVEL,DETAIL,2021-11-30,AP,1496295,CITIBANK GOV CARD SERVICE,2021-06-18,2021-06-18,TAXI/RIDE SHARE,18.92,2021
,2021 DEMOCRATIC CAUCUS,,GENERAL EXPENDITURES,TRAVEL,DETAIL,2021-11-30,AP,1496295,CITIBANK GOV CARD SERVICE,2021-06-19,2021-06-19,TAXI/RIDE SHARE,24.94,2021
,2021 DEMOCRATIC CAUCUS,,GENERAL EXPENDITURES,TRAVEL,DETAIL,2021-11-30,AP,1496295,CITIBANK GOV CARD SERVICE,2021-06-21,2021-06-21,TAXI/RIDE SHARE,28.73,2021
,2021 DEMOCRATIC CAUCUS,,GENERAL EXPENDITURES,TRAVEL,DETAIL,2021-11-30,AP,1496295,CITIBANK GOV CARD SERVICE,2021-06-22,2021-06-22,TAXI/RIDE SHARE,72.5,2021
,2021 DEMOCRATIC CAUCUS,,GENERAL EXPENDITURES,TRAVEL,DETAIL,2021-11-30,AP,1496295,CITIBANK GOV CARD SERVICE,2021-06-23,2021-06-23,TAXI/RIDE SHARE,67.34,2021
,2021 DEMOCRATIC CAUCUS,,GENERAL EXPENDITURES,TRAVEL,DETAIL,2021-11-30,AP,1496295,CITIBANK GOV CARD SERVICE,2021-06-24,2021-06-24,TAXI/RIDE SHARE,60.96,2021
,2021 DEMOCRATIC CAUCUS,,GENERAL EXPENDITURES,TRAVEL,DETAIL,2021-11-30,AP,1496295,CITIBANK GOV CARD SERVICE,2021-06-25,2021-06-25,TAXI/RIDE SHARE,38.37,2021
,2021 DEMOCRATIC CAUCUS,,GENERAL EXPENDITURES,TRAVEL,DETAIL,2021-11-30,AP,1496295,CITIBANK GOV CARD SERVICE,2021-06-26,2021-06-26,TAXI/RIDE SHARE,34.46,2021
,2021 DEMOCRATIC CAUCUS,,GENERAL EXPENDITURES,TRAVEL,DETAIL,2021-11-30,AP,1496295,CITIBANK GOV CARD SERVICE,2021-06-28,2021-06-28,TAXI/RIDE SHARE,56.03,2021
,2021 DEMOCRATIC CAUCUS,,GENERAL EXPENDITURES,TRAVEL,DETAIL,2021-11-30,AP,1496295,CITIBANK GOV CARD SERVICE,2021-06-29,2021-06-29,TAXI/RIDE SHARE,18.9,2021
,2021 DEMOCRATIC CAUCUS,,GENERAL EXPENDITURES,TRAVEL,DETAIL,2021-12-06,AP,1498061,CITIBANK GOV CARD SERVICE,2021-03-01,2021-03-01,TAXI/RIDE SHARE,114.98,2021
,2021 DEMOCRATIC CAUCUS,,GENERAL EXPENDITURES,TRAVEL,DETAIL,2021-12-06,AP,1498061,CITIBANK GOV CARD SERVICE,2021-03-02,2021-03-02,TAXI/RIDE SHARE,167.25,2021
,2021 DEMOCRATIC CAUCUS,,GENERAL EXPENDITURES,TRAVEL,DETAIL,2021-12-06,AP,1498061,CITIBANK GOV CARD SERVICE,2021-03-03,2021-03-03,TAXI/RIDE SHARE,151.23,2021
,2021 DEMOCRATIC CAUCUS,,GENERAL EXPENDITURES,TRAVEL,DETAIL,2021-12-06,AP,1498061,CITIBANK GOV CARD SERVICE,2021-03-04,2021-03-04,TAXI/RIDE SHARE,148.29,2021
,2021 DEMOCRATIC CAUCUS,,GENERAL EXPENDITURES,TRAVEL,DETAIL,2021-12-06,AP,1498061,CITIBANK GOV CARD SERVICE,2021-03-05,2021-03-05,TAXI/RIDE SHARE,7.47,2021
,2021 DEMOCRATIC CAUCUS,,GENERAL EXPENDITURES,TRAVEL,DETAIL,2021-12-06,AP,1498061,CITIBANK GOV CARD SERVICE,2021-03-10,2021-03-10,TAXI/RIDE SHARE,82.38,2021
,2021 DEMOCRATIC CAUCUS,,GENERAL EXPENDITURES,TRAVEL,DETAIL,2021-12-06,AP,1498061,CITIBANK GOV CARD SERVICE,2021-03-11,2021-03-11,TAXI/RIDE SHARE,44,2021
,2021 DEMOCRATIC CAUCUS,,GENERAL EXPENDITURES,TRAVEL,DETAIL,2021-12-06,AP,1498061,CITIBANK GOV CARD SERVICE,2021-03-17,2021-03-17,TAXI/RIDE SHARE,16.65,2021
,2021 DEMOCRATIC CAUCUS,,GENERAL EXPENDITURES,TRAVEL,DETAIL,2021-12-06,AP,1498061,CITIBANK GOV CARD SERVICE,2021-03-18,2021-03-18,TAXI/RIDE SHARE,32.78,2021
,2021 DEMOCRATIC CAUCUS,,GENERAL EXPENDITURES,TRAVEL,DETAIL,2021-12-06,AP,1498061,CITIBANK GOV CARD SERVICE,2021-03-19,2021-03-19,TAXI/RIDE SHARE,46.29,2021
,2021 DEMOCRATIC CAUCUS,,GENERAL EXPENDITURES,TRAVEL,DETAIL,2021-12-06,AP,1498061,CITIBANK GOV CARD SERVICE,2021-03-24,2021-03-24,TAXI/RIDE SHARE,21.76,2021
,2021 DEMOCRATIC CAUCUS,,GENERAL EXPENDITURES,TRAVEL,DETAIL,2021-12-06,AP,1498061,CITIBANK GOV CARD SERVICE,2021-03-26,2021-03-26,TAXI/RIDE SHARE,16.4,2021
,2021 DEMOCRATIC CAUCUS,,GENERAL EXPENDITURES,TRAVEL,DETAIL,2021-12-06,AP,1498061,CITIBANK GOV CARD SERVICE,2021-03-27,2021-03-27,TAXI/RIDE SHARE,15.15,2021
,2021 DEMOCRATIC CAUCUS,,GENERAL EXPENDITURES,TRAVEL,DETAIL,2021-12-06,AP,1498061,CITIBANK GOV CARD SERVICE,2021-03-28,2021-03-28,TAXI/RIDE SHARE,37.06,2021
,2021 DEMOCRATIC CAUCUS,,GENERAL EXPENDITURES,TRAVEL,DETAIL,2021-12-06,AP,1498061,CITIBANK GOV CARD SERVICE,2021-03-29,2021-03-29,TAXI/RIDE SHARE,30.09,2021
,2021 DEMOCRATIC CAUCUS,,GENERAL EXPENDITURES,TRAVEL,DETAIL,2021-12-06,AP,1498061,CITIBANK GOV CARD SERVICE,2021-03-30,2021-03-30,TAXI/RIDE SHARE,33.82,2021
,2021 DEMOCRATIC CAUCUS,,GENERAL EXPENDITURES,TRAVEL,DETAIL,2021-12-06,AP,1498061,CITIBANK GOV CARD SERVICE,2021-03-31,2021-03-31,TAXI/RIDE SHARE,52.03,2021
,2021 DEMOCRATIC CAUCUS,,GENERAL EXPENDITURES,TRAVEL,DETAIL,2021-12-07,AP,1498384,CITIBANK GOV CARD SERVICE,2021-04-07,2021-04-07,TAXI/RIDE SHARE,56.18,2021
,2021 DEMOCRATIC CAUCUS,,GENERAL EXPENDITURES,TRAVEL,DETAIL,2021-12-07,AP,1498384,CITIBANK GOV CARD SERVICE,2021-04-08,2021-04-08,TAXI/RIDE SHARE,113.71,2021
,2021 DEMOCRATIC CAUCUS,,GENERAL EXPENDITURES,TRAVEL,DETAIL,2021-12-07,AP,1498384,CITIBANK GOV CARD SERVICE,2021-04-10,2021-04-10,TAXI/RIDE SHARE,32.76,2021
,2021 DEMOCRATIC CAUCUS,,GENERAL EXPENDITURES,TRAVEL,DETAIL,2021-12-07,AP,1498384,CITIBANK GOV CARD SERVICE,2021-04-14,2021-04-14,TAXI/RIDE SHARE,82.62,2021
,2021 DEMOCRATIC CAUCUS,,GENERAL EXPENDITURES,TRAVEL,DETAIL,2021-12-07,AP,1498384,CITIBANK GOV CARD SERVICE,2021-04-15,2021-04-15,TAXI/RIDE SHARE,108.32,2021
,2021 DEMOCRATIC CAUCUS,,GENERAL EXPENDITURES,TRAVEL,DETAIL,2021-12-07,AP,1498384,CITIBANK GOV CARD SERVICE,2021-04-16,2021-04-16,TAXI/RIDE SHARE,73.76,2021
,2021 DEMOCRATIC CAUCUS,,GENERAL EXPENDITURES,TRAVEL,DETAIL,2021-12-07,AP,1498384,CITIBANK GOV CARD SERVICE,2021-04-17,2021-04-17,TAXI/RIDE SHARE,20.98,2021
,2021 DEMOCRATIC CAUCUS,,GENERAL EXPENDITURES,TRAVEL,DETAIL,2021-12-07,AP,1498384,CITIBANK GOV CARD SERVICE,2021-04-19,2021-04-19,TAXI/RIDE SHARE,36.73,2021
,2021 DEMOCRATIC CAUCUS,,GENERAL EXPENDITURES,TRAVEL,DETAIL,2021-12-07,AP,1498384,CITIBANK GOV CARD SERVICE,2021-04-20,2021-04-20,TAXI/RIDE SHARE,183.19,2021
,2021 DEMOCRATIC CAUCUS,,GENERAL EXPENDITURES,TRAVEL,DETAIL,2021-12-07,AP,1498384,CITIBANK GOV CARD SERVICE,2021-04-21,2021-04-21,TAXI/RIDE SHARE,219.4,2021
,2021 DEMOCRATIC CAUCUS,,GENERAL EXPENDITURES,TRAVEL,DETAIL,2021-12-07,AP,1498384,CITIBANK GOV CARD SERVICE,2021-04-22,2021-04-22,TAXI/RIDE SHARE,96.55,2021
,2021 DEMOCRATIC CAUCUS,,GENERAL EXPENDITURES,TRAVEL,DETAIL,2021-12-07,AP,1498384,CITIBANK GOV CARD SERVICE,2021-04-23,2021-04-23,TAXI/RIDE SHARE,11.7,2021
,2021 DEMOCRATIC CAUCUS,,GENERAL EXPENDITURES,TRAVEL,DETAIL,2021-12-07,AP,1498384,CITIBANK GOV CARD SERVICE,2021-04-27,2021-04-27,TAXI/RIDE SHARE,49.18,2021
,2021 DEMOCRATIC CAUCUS,,GENERAL EXPENDITURES,TRAVEL,DETAIL,2021-12-07,AP,1498384,CITIBANK GOV CARD SERVICE,2021-04-28,2021-04-28,TAXI/RIDE SHARE,98.82,2021
,2021 DEMOCRATIC CAUCUS,,GENERAL EXPENDITURES,TRAVEL,DETAIL,2021-12-07,AP,1498384,CITIBANK GOV CARD SERVICE,2021-04-29,2021-04-29,TAXI/RIDE SHARE,51.55,2021
,2021 DEMOCRATIC CAUCUS,,GENERAL EXPENDITURES,TRAVEL,DETAIL,2021-12-07,AP,1498384,CITIBANK GOV CARD SERVICE,2021-04-30,2021-04-30,TAXI/RIDE SHARE,180.73,2021
,2021 DEMOCRATIC CAUCUS,,GENERAL EXPENDITURES,TRAVEL,DETAIL,2021-12-08,AP,1498904,CITI PCARD-LYFT    RIDE THU 5PM,2021-07-30,2021-07-30,TAXI/RIDE SHARE,27.87,2021
,2021 DEMOCRATIC CAUCUS,,GENERAL EXPENDITURES,TRAVEL,DETAIL,2021-12-08,AP,1498904,CITI PCARD-LYFT    RIDE THU 9AM,2021-07-29,2021-07-29,TAXI/RIDE SHARE,15.77,2021
,2021 DEMOCRATIC CAUCUS,,GENERAL EXPENDITURES,TRAVEL,DETAIL,2021-12-08,AP,1498904,CITI PCARD-LYFT    RIDE TUE 7AM,2021-07-20,2021-07-20,TAXI/RIDE SHARE,14.68,2021
,2021 DEMOCRATIC CAUCUS,,GENERAL EXPENDITURES,TRAVEL,DETAIL,2021-12-16,AP,1500906,CITI PCARD-UBER   TRIP,2021-09-16,2021-09-16,TAXI/RIDE SHARE,58.56,2021
,2021 DEMOCRATIC CAUCUS,,GENERAL EXPENDITURES,TRAVEL,DETAIL,2021-12-17,AP,1506193,CARRILLO MANUEL J.,2021-11-22,2021-11-22,PRIVATE AUTO MILEAGE,177.02,2021
,2021 DEMOCRATIC CAUCUS,,GENERAL EXPENDITURES,TRAVEL,DETAIL,2021-12-17,AP,1506193,CARRILLO MANUEL J.,2021-11-22,2021-11-22,TAXI/RIDE SHARE,21.19,2021
,2021 DEMOCRATIC CAUCUS,,GENERAL EXPENDITURES,TRAVEL,DETAIL,2021-12-17,AP,1506214,SACHSE ANDREW M.,2021-11-22,2021-11-22,PRIVATE AUTO MILEAGE,152.32,2021
,2021 DEMOCRATIC CAUCUS,,GENERAL EXPENDITURES,TRAVEL,DETAIL,2021-12-17,AP,1506303,STICKNEY LAKECIA N.,2021-11-20,2021-11-20,PRIVATE AUTO MILEAGE,168,2021
,2021 DEMOCRATIC CAUCUS,,GENERAL EXPENDITURES,TRAVEL,DETAIL,2021-12-17,AP,1506303,STICKNEY LAKECIA N.,2021-11-22,2021-11-22,TAXI/RIDE SHARE,24,2021
,2021 DEMOCRATIC CAUCUS,,GENERAL EXPENDITURES,TRAVEL,DETAIL,2021-12-17,AP,1506317,DESOWITZ-LEIBELL ZACHARY J.,2021-11-22,2021-11-22,PRIVATE AUTO MILEAGE,159.21,2021
,2021 DEMOCRATIC CAUCUS,,GENERAL EXPENDITURES,TRAVEL,DETAIL,2021-12-17,AP,1506317,DESOWITZ-LEIBELL ZACHARY J.,2021-05-18,2021-06-17,TAXI/RIDE SHARE,345.18,2021
,2021 DEMOCRATIC CAUCUS,,GENERAL EXPENDITURES,TRAVEL,DETAIL,2021-12-22,AP,1506920,TSETSENGARID BUYANDELGER,2021-11-22,2021-11-22,TAXI/RIDE SHARE,32.39,2021
,2021 DEMOCRATIC CAUCUS,,GENERAL EXPENDITURES,TRAVEL,DETAIL,2021-12-22,AP,1507026,CITIBANK GOV CARD SERVICE,2021-05-01,2021-05-01,TAXI/RIDE SHARE,145.23,2021
,2021 DEMOCRATIC CAUCUS,,GENERAL EXPENDITURES,TRAVEL,DETAIL,2021-12-22,AP,1507026,CITIBANK GOV CARD SERVICE,2021-05-03,2021-05-03,TAXI/RIDE SHARE,25,2021
,2021 DEMOCRATIC CAUCUS,,GENERAL EXPENDITURES,TRAVEL,DETAIL,2021-12-22,AP,1507026,CITIBANK GOV CARD SERVICE,2021-05-04,2021-05-04,TAXI/RIDE SHARE,117.45,2021
,2021 DEMOCRATIC CAUCUS,,GENERAL EXPENDITURES,TRAVEL,DETAIL,2021-12-22,AP,1507026,CITIBANK GOV CARD SERVICE,2021-05-05,2021-05-05,TAXI/RIDE SHARE,111.15,2021
,2021 DEMOCRATIC CAUCUS,,GENERAL EXPENDITURES,TRAVEL,DETAIL,2021-12-22,AP,1507026,CITIBANK GOV CARD SERVICE,2021-05-06,2021-05-06,TAXI/RIDE SHARE,41.57,2021
,2021 DEMOCRATIC CAUCUS,,GENERAL EXPENDITURES,TRAVEL,DETAIL,2021-12-22,AP,1507026,CITIBANK GOV CARD SERVICE,2021-05-07,2021-05-07,TAXI/RIDE SHARE,31.18,2021
,2021 DEMOCRATIC CAUCUS,,GENERAL EXPENDITURES,TRAVEL,DETAIL,2021-12-22,AP,1507026,CITIBANK GOV CARD SERVICE,2021-05-08,2021-05-08,TAXI/RIDE SHARE,26.43,2021
,2021 DEMOCRATIC CAUCUS,,GENERAL EXPENDITURES,TRAVEL,DETAIL,2021-12-22,AP,1507026,CITIBANK GOV CARD SERVICE,2021-05-09,2021-05-09,TAXI/RIDE SHARE,5.8,2021
,2021 DEMOCRATIC CAUCUS,,GENERAL EXPENDITURES,TRAVEL,DETAIL,2021-12-22,AP,1507026,CITIBANK GOV CARD SERVICE,2021-05-12,2021-05-12,TAXI/RIDE SHARE,144.13,2021
,2021 DEMOCRATIC CAUCUS,,GENERAL EXPENDITURES,TRAVEL,DETAIL,2021-12-22,AP,1507026,CITIBANK GOV CARD SERVICE,2021-05-13,2021-05-13,TAXI/RIDE SHARE,104.84,2021
,2021 DEMOCRATIC CAUCUS,,GENERAL EXPENDITURES,TRAVEL,DETAIL,2021-12-22,AP,1507026,CITIBANK GOV CARD SERVICE,2021-05-14,2021-05-14,TAXI/RIDE SHARE,120.12,2021
,2021 DEMOCRATIC CAUCUS,,GENERAL EXPENDITURES,TRAVEL,DETAIL,2021-12-22,AP,1507026,CITIBANK GOV CARD SERVICE,2021-05-15,2021-05-15,TAXI/RIDE SHARE,49.88,2021
,2021 DEMOCRATIC CAUCUS,,GENERAL EXPENDITURES,TRAVEL,DETAIL,2021-12-22,AP,1507026,CITIBANK GOV CARD SERVICE,2021-05-17,2021-05-17,TAXI/RIDE SHARE,42.06,2021
,2021 DEMOCRATIC CAUCUS,,GENERAL EXPENDITURES,TRAVEL,DETAIL,2021-12-22,AP,1507026,CITIBANK GOV CARD SERVICE,2021-05-18,2021-05-18,TAXI/RIDE SHARE,53.72,2021
,2021 DEMOCRATIC CAUCUS,,GENERAL EXPENDITURES,TRAVEL,DETAIL,2021-12-22,AP,1507026,CITIBANK GOV CARD SERVICE,2021-05-19,2021-05-19,TAXI/RIDE SHARE,114.26,2021
,2021 DEMOCRATIC CAUCUS,,GENERAL EXPENDITURES,TRAVEL,DETAIL,2021-12-22,AP,1507026,CITIBANK GOV CARD SERVICE,2021-05-20,2021-05-20,TAXI/RIDE SHARE,81.8,2021
,2021 DEMOCRATIC CAUCUS,,GENERAL EXPENDITURES,TRAVEL,DETAIL,2021-12-22,AP,1507026,CITIBANK GOV CARD SERVICE,2021-05-21,2021-05-21,TAXI/RIDE SHARE,95.94,2021
,2021 DEMOCRATIC CAUCUS,,GENERAL EXPENDITURES,TRAVEL,DETAIL,2021-12-22,AP,1507026,CITIBANK GOV CARD SERVICE,2021-05-22,2021-05-22,TAXI/RIDE SHARE,208.58,2021
,2021 DEMOCRATIC CAUCUS,,GENERAL EXPENDITURES,TRAVEL,DETAIL,2021-12-22,AP,1507026,CITIBANK GOV CARD SERVICE,2021-05-26,2021-05-26,TAXI/RIDE SHARE,34.41,2021
,2021 DEMOCRATIC CAUCUS,,GENERAL EXPENDITURES,TRAVEL,DETAIL,2021-12-22,AP,1507026,CITIBANK GOV CARD SERVICE,2021-05-27,2021-05-27,TAXI/RIDE SHARE,55.54,2021
,2021 DEMOCRATIC CAUCUS,,GENERAL EXPENDITURES,TRAVEL,DETAIL,2021-12-22,AP,1507026,CITIBANK GOV CARD SERVICE,2021-05-29,2021-05-29,TAXI/RIDE SHARE,30.26,2021
,2021 DEMOCRATIC CAUCUS,,GENERAL EXPENDITURES,TRAVEL,DETAIL,2021-12-22,AP,1507026,CITIBANK GOV CARD SERVICE,2021-06-02,2021-06-02,TAXI/RIDE SHARE,21.81,2021
,2021 DEMOCRATIC CAUCUS,,GENERAL EXPENDITURES,TRAVEL,DETAIL,2021-12-22,AP,1507117,CITIBANK GOV CARD SERVICE,2021-06-01,2021-06-01,TAXI/RIDE SHARE,6,2021
,2021 DEMOCRATIC CAUCUS,,GENERAL EXPENDITURES,TRAVEL,DETAIL,2021-12-22,AP,1507117,CITIBANK GOV CARD SERVICE,2021-06-02,2021-06-02,TAXI/RIDE SHARE,63.79,2021
,2021 DEMOCRATIC CAUCUS,,GENERAL EXPENDITURES,TRAVEL,DETAIL,2021-12-22,AP,1507117,CITIBANK GOV CARD SERVICE,2021-06-03,2021-06-03,TAXI/RIDE SHARE,9.89,2021
,2021 DEMOCRATIC CAUCUS,,GENERAL EXPENDITURES,TRAVEL,DETAIL,2021-12-22,AP,1507117,CITIBANK GOV CARD SERVICE,2021-06-04,2021-06-04,TAXI/RIDE SHARE,108.75,2021
,2021 DEMOCRATIC CAUCUS,,GENERAL EXPENDITURES,TRAVEL,DETAIL,2021-12-22,AP,1507117,CITIBANK GOV CARD SERVICE,2021-06-05,2021-06-05,TAXI/RIDE SHARE,73.76,2021
,2021 DEMOCRATIC CAUCUS,,GENERAL EXPENDITURES,TRAVEL,DETAIL,2021-12-22,AP,1507117,CITIBANK GOV CARD SERVICE,2021-06-06,2021-06-06,TAXI/RIDE SHARE,93.08,2021
,2021 DEMOCRATIC CAUCUS,,GENERAL EXPENDITURES,TRAVEL,DETAIL,2021-12-22,AP,1507117,CITIBANK GOV CARD SERVICE,2021-06-07,2021-06-07,TAXI/RIDE SHARE,56.35,2021
,2021 DEMOCRATIC CAUCUS,,GENERAL EXPENDITURES,TRAVEL,DETAIL,2021-12-22,AP,1507117,CITIBANK GOV CARD SERVICE,2021-06-08,2021-06-08,TAXI/RIDE SHARE,109.53,2021
,2021 DEMOCRATIC CAUCUS,,GENERAL EXPENDITURES,TRAVEL,DETAIL,2021-12-22,AP,1507117,CITIBANK GOV CARD SERVICE,2021-06-09,2021-06-09,TAXI/RIDE SHARE,144.75,2021
,2021 DEMOCRATIC CAUCUS,,GENERAL EXPENDITURES,TRAVEL,DETAIL,2021-12-22,AP,1507117,CITIBANK GOV CARD SERVICE,2021-06-10,2021-06-10,TAXI/RIDE SHARE,114.74,2021
,2021 DEMOCRATIC CAUCUS,,GENERAL EXPENDITURES,TRAVEL,DETAIL,2021-12-22,AP,1507117,CITIBANK GOV CARD SERVICE,2021-06-11,2021-06-11,TAXI/RIDE SHARE,137.33,2021
,2021 DEMOCRATIC CAUCUS,,GENERAL EXPENDITURES,TRAVEL,DETAIL,2021-12-22,AP,1507117,CITIBANK GOV CARD SERVICE,2021-06-12,2021-06-12,TAXI/RIDE SHARE,168.69,2021
,2021 DEMOCRATIC CAUCUS,,GENERAL EXPENDITURES,TRAVEL,DETAIL,2021-12-22,AP,1507117,CITIBANK GOV CARD SERVICE,2021-06-13,2021-06-13,TAXI/RIDE SHARE,57.4,2021
,2021 DEMOCRATIC CAUCUS,,GENERAL EXPENDITURES,TRAVEL,DETAIL,2021-12-22,AP,1507117,CITIBANK GOV CARD SERVICE,2021-06-15,2021-06-15,TAXI/RIDE SHARE,187.15,2021
,2021 DEMOCRATIC CAUCUS,,GENERAL EXPENDITURES,TRAVEL,DETAIL,2021-12-22,AP,1507117,CITIBANK GOV CARD SERVICE,2021-06-16,2021-06-16,TAXI/RIDE SHARE,37.36,2021
,2021 DEMOCRATIC CAUCUS,,GENERAL EXPENDITURES,TRAVEL,DETAIL,2021-12-22,AP,1507117,CITIBANK GOV CARD SERVICE,2021-06-17,2021-06-17,TAXI/RIDE SHARE,124.71,2021
,2021 DEMOCRATIC CAUCUS,,GENERAL EXPENDITURES,TRAVEL,DETAIL,2021-12-22,AP,1507117,CITIBANK GOV CARD SERVICE,2021-06-18,2021-06-18,TAXI/RIDE SHARE,174.75,2021
,2021 DEMOCRATIC CAUCUS,,GENERAL EXPENDITURES,TRAVEL,DETAIL,2021-12-22,AP,1507117,CITIBANK GOV CARD SERVICE,2021-06-20,2021-06-20,TAXI/RIDE SHARE,46.92,2021
,2021 DEMOCRATIC CAUCUS,,GENERAL EXPENDITURES,TRAVEL,DETAIL,2021-12-22,AP,1507117,CITIBANK GOV CARD SERVICE,2021-06-22,2021-06-22,TAXI/RIDE SHARE,44.89,2021
,2021 DEMOCRATIC CAUCUS,,GENERAL EXPENDITURES,TRAVEL,DETAIL,2021-12-22,AP,1507117,CITIBANK GOV CARD SERVICE,2021-06-23,2021-06-23,TAXI/RIDE SHARE,120.48,2021
,2021 DEMOCRATIC CAUCUS,,GENERAL EXPENDITURES,TRAVEL,DETAIL,2021-12-22,AP,1507117,CITIBANK GOV CARD SERVICE,2021-06-24,2021-06-24,TAXI/RIDE SHARE,77.63,2021
,2021 DEMOCRATIC CAUCUS,,GENERAL EXPENDITURES,TRAVEL,DETAIL,2021-12-22,AP,1507117,CITIBANK GOV CARD SERVICE,2021-06-25,2021-06-25,TAXI/RIDE SHARE,151.44,2021
,2021 DEMOCRATIC CAUCUS,,GENERAL EXPENDITURES,TRAVEL,DETAIL,2021-12-22,AP,1507117,CITIBANK GOV CARD SERVICE,2021-06-26,2021-06-26,TAXI/RIDE SHARE,194.35,2021
,2021 DEMOCRATIC CAUCUS,,GENERAL EXPENDITURES,TRAVEL,DETAIL,2021-12-22,AP,1507117,CITIBANK GOV CARD SERVICE,2021-06-27,2021-06-27,TAXI/RIDE SHARE,28.5,2021
,2021 DEMOCRATIC CAUCUS,,GENERAL EXPENDITURES,TRAVEL,DETAIL,2021-12-22,AP,1507117,CITIBANK GOV CARD SERVICE,2021-06-28,2021-06-28,TAXI/RIDE SHARE,18.36,2021
,2021 DEMOCRATIC CAUCUS,,GENERAL EXPENDITURES,TRAVEL,DETAIL,2021-12-22,AP,1507117,CITIBANK GOV CARD SERVICE,2021-06-29,2021-06-29,TAXI/RIDE SHARE,52.04,2021
,2021 DEMOCRATIC CAUCUS,,GENERAL EXPENDITURES,TRAVEL,DETAIL,2021-12-22,AP,1507117,CITIBANK GOV CARD SERVICE,2021-06-30,2021-06-30,TAXI/RIDE SHARE,17.85,2021
,2021 DEMOCRATIC CAUCUS,,GENERAL EXPENDITURES,TRAVEL,SUBTOTAL,   ,   ,   ,   ,   ,   ,TRAVEL TOTALS:,9261.53,2021
,2021 DEMOCRATIC CAUCUS,,GENERAL EXPENDITURES,RENT  COMMUNICATION  UTILITIES,DETAIL,2021-10-25,GL,EMS0110562, ,2021-09-01,2021-09-30,DC TELECOM EQUIP (TRANSFER),72,2021
,2021 DEMOCRATIC CAUCUS,,GENERAL EXPENDITURES,RENT  COMMUNICATION  UTILITIES,DETAIL,2021-10-25,GL,EMS0110562, ,2021-09-01,2021-09-30,DC TELECOM SERV (TRANSFER),289,2021
,2021 DEMOCRATIC CAUCUS,,GENERAL EXPENDITURES,RENT  COMMUNICATION  UTILITIES,DETAIL,2021-10-25,GL,EMS0110562, ,2021-09-01,2021-09-30,DC TELECOM TOLLS (TRANSFER),2269.25,2021
,2021 DEMOCRATIC CAUCUS,,GENERAL EXPENDITURES,RENT  COMMUNICATION  UTILITIES,DETAIL,2021-10-26,GL,MED0110469, ,2021-10-20,2021-10-20,HIR GRAPHICS (TRANSFER),120,2021
,2021 DEMOCRATIC CAUCUS,,GENERAL EXPENDITURES,RENT  COMMUNICATION  UTILITIES,DETAIL,2021-11-24,AP,1485861,OCCASIONS CATERERS,2021-10-21,2021-10-21,EQUIP RENTAL (EFF 1/3/03),4050,2021
,2021 DEMOCRATIC CAUCUS,,GENERAL EXPENDITURES,RENT  COMMUNICATION  UTILITIES,DETAIL,2021-11-24,GL,EMS0111169, ,2021-10-01,2021-10-31,DC TELECOM EQUIP (TRANSFER),72,2021
,2021 DEMOCRATIC CAUCUS,,GENERAL EXPENDITURES,RENT  COMMUNICATION  UTILITIES,DETAIL,2021-11-24,GL,EMS0111169, ,2021-10-01,2021-10-31,DC TELECOM SERV (TRANSFER),289,2021
,2021 DEMOCRATIC CAUCUS,,GENERAL EXPENDITURES,RENT  COMMUNICATION  UTILITIES,DETAIL,2021-11-24,GL,EMS0111169, ,2021-10-01,2021-10-31,DC TELECOM TOLLS (TRANSFER),2108.04,2021
,2021 DEMOCRATIC CAUCUS,,GENERAL EXPENDITURES,RENT  COMMUNICATION  UTILITIES,DETAIL,2021-11-24,GL,MED0111171, ,2021-10-25,2021-11-15,HIR GRAPHICS (TRANSFER),1304.5,2021
,2021 DEMOCRATIC CAUCUS,,GENERAL EXPENDITURES,RENT  COMMUNICATION  UTILITIES,DETAIL,2021-12-17,AP,1506182,OCCASIONS CATERERS,2021-12-08,2021-12-08,EQUIP RENTAL (EFF 1/3/03),4545,2021
,2021 DEMOCRATIC CAUCUS,,GENERAL EXPENDITURES,RENT  COMMUNICATION  UTILITIES,DETAIL,2021-12-21,AP,1506166,CONTROL VIDEO LLC,2021-12-08,2021-12-08,EQUIP RENTAL (EFF 1/3/03),1950,2021
,2021 DEMOCRATIC CAUCUS,,GENERAL EXPENDITURES,RENT  COMMUNICATION  UTILITIES,DETAIL,2021-12-21,AP,1507128,CITIBANK GOV CARD SERVICE,2021-02-02,2021-02-02,POSTAGE / COURIER / BOX RENTAL,49.8,2021
,2021 DEMOCRATIC CAUCUS,,GENERAL EXPENDITURES,RENT  COMMUNICATION  UTILITIES,DETAIL,2021-12-21,AP,1507128,CITIBANK GOV CARD SERVICE,2021-06-03,2021-06-03,POSTAGE / COURIER / BOX RENTAL,286.35,2021
,2021 DEMOCRATIC CAUCUS,,GENERAL EXPENDITURES,RENT  COMMUNICATION  UTILITIES,DETAIL,2021-12-22,AP,1506729,CITI PCARD-USPS PO 1050091422,2021-10-13,2021-10-13,POSTAGE / COURIER / BOX RENTAL,83.3,2021
,2021 DEMOCRATIC CAUCUS,,GENERAL EXPENDITURES,RENT  COMMUNICATION  UTILITIES,DETAIL,2021-12-27,GL,EMS0111861, ,2021-11-01,2021-11-30,DC TELECOM EQUIP (TRANSFER),264,2021
,2021 DEMOCRATIC CAUCUS,,GENERAL EXPENDITURES,RENT  COMMUNICATION  UTILITIES,DETAIL,2021-12-27,GL,EMS0111861, ,2021-11-01,2021-11-30,DC TELECOM SERV (TRANSFER),289,2021
,2021 DEMOCRATIC CAUCUS,,GENERAL EXPENDITURES,RENT  COMMUNICATION  UTILITIES,DETAIL,2021-12-27,GL,EMS0111861, ,2021-11-01,2021-11-30,DC TELECOM TOLLS (TRANSFER),2061.24,2021
,2021 DEMOCRATIC CAUCUS,,GENERAL EXPENDITURES,RENT  COMMUNICATION  UTILITIES,DETAIL,2021-12-27,GL,MED0111855, ,2021-12-02,2021-12-02,HIR GRAPHICS (TRANSFER),125,2021
,2021 DEMOCRATIC CAUCUS,,GENERAL EXPENDITURES,RENT  COMMUNICATION  UTILITIES,DETAIL,2021-12-31,AP,1507965,CITI PCARD-ENVIRO TOTE INC,2021-11-22,2021-11-22,POSTAGE / COURIER / BOX RENTAL,20.11,2021
,2021 DEMOCRATIC CAUCUS,,GENERAL EXPENDITURES,RENT  COMMUNICATION  UTILITIES,SUBTOTAL,   ,   ,   ,   ,   ,   ,RENT  COMMUNICATION  UTILITIES TOTALS:,20247.59,2021
,2021 DEMOCRATIC CAUCUS,,GENERAL EXPENDITURES,PRINTING AND REPRODUCTION,DETAIL,2021-11-05,AP,1485875,CITI PCARD-ACCURATE WORD LLC,2021-08-30,2021-08-30,FRANKABLE PRINTING & REPROD,237,2021
,2021 DEMOCRATIC CAUCUS,,GENERAL EXPENDITURES,PRINTING AND REPRODUCTION,SUBTOTAL,   ,   ,   ,   ,   ,   ,PRINTING AND REPRODUCTION TOTALS:,237,2021
,2021 DEMOCRATIC CAUCUS,,GENERAL EXPENDITURES,OTHER SERVICES,DETAIL,2021-10-14,AP,1476482,DAWSON EARNESTINE E.,2021-09-21,2021-10-21,TECHNOLOGY SERVICE CONTRACTS,3.17,2021
,2021 DEMOCRATIC CAUCUS,,GENERAL EXPENDITURES,OTHER SERVICES,DETAIL,2021-11-05,AP,1485879,HERNANDEZ ITZEL N.,2021-08-24,2021-08-24,LAUNDRY SERVICES,36.98,2021
,2021 DEMOCRATIC CAUCUS,,GENERAL EXPENDITURES,OTHER SERVICES,DETAIL,2021-11-05,AP,1485879,HERNANDEZ ITZEL N.,2021-09-28,2021-10-04,LAUNDRY SERVICES,166.41,2021
,2021 DEMOCRATIC CAUCUS,,GENERAL EXPENDITURES,OTHER SERVICES,DETAIL,2021-11-05,AP,1485883,CREATIVENGINE,2021-06-01,2021-06-30,WEB DEV HST EMAIL & RLTD SERV,300,2021
,2021 DEMOCRATIC CAUCUS,,GENERAL EXPENDITURES,OTHER SERVICES,DETAIL,2021-11-05,AP,1485885,CREATIVENGINE,2021-07-01,2021-07-31,WEB DEV HST EMAIL & RLTD SERV,300,2021
,2021 DEMOCRATIC CAUCUS,,GENERAL EXPENDITURES,OTHER SERVICES,DETAIL,2021-11-08,AP,1485887,CREATIVENGINE,2021-08-01,2021-09-30,WEB DEV HST EMAIL & RLTD SERV,300,2021
,2021 DEMOCRATIC CAUCUS,,GENERAL EXPENDITURES,OTHER SERVICES,DETAIL,2021-11-08,AP,1485889,CREATIVENGINE,2021-10-01,2021-10-31,WEB DEV HST EMAIL & RLTD SERV,300,2021
,2021 DEMOCRATIC CAUCUS,,GENERAL EXPENDITURES,OTHER SERVICES,DETAIL,2021-12-08,AP,1498904,CITI PCARD-CANVA  I03140-13202849,2021-08-07,2021-09-07,WEB DEV HST EMAIL & RLTD SERV,12.99,2021
,2021 DEMOCRATIC CAUCUS,,GENERAL EXPENDITURES,OTHER SERVICES,DETAIL,2021-12-08,AP,1498904,CITI PCARD-GOOGLE  Google Storage,2021-07-08,2021-08-08,TECHNOLOGY SERVICE CONTRACTS,2.11,2021
,2021 DEMOCRATIC CAUCUS,,GENERAL EXPENDITURES,OTHER SERVICES,DETAIL,2021-12-08,AP,1498904,CITI PCARD-GOOGLE  Google Storage,2021-08-08,2021-09-08,TECHNOLOGY SERVICE CONTRACTS,2.11,2021
,2021 DEMOCRATIC CAUCUS,,GENERAL EXPENDITURES,OTHER SERVICES,DETAIL,2021-12-16,AP,1500906,CITI PCARD-DROPBOX 4CCTG477M7ZG,2021-11-24,2021-12-24,TECHNOLOGY SERVICE CONTRACTS,12.71,2021
,2021 DEMOCRATIC CAUCUS,,GENERAL EXPENDITURES,OTHER SERVICES,DETAIL,2021-12-16,AP,1500906,CITI PCARD-DROPBOX CYM1W413LB3G,2021-08-24,2021-09-24,TECHNOLOGY SERVICE CONTRACTS,12.71,2021
,2021 DEMOCRATIC CAUCUS,,GENERAL EXPENDITURES,OTHER SERVICES,DETAIL,2021-12-16,AP,1500906,CITI PCARD-DROPBOX LSYGF3WHXC81,2021-10-24,2021-11-24,TECHNOLOGY SERVICE CONTRACTS,12.71,2021
,2021 DEMOCRATIC CAUCUS,,GENERAL EXPENDITURES,OTHER SERVICES,DETAIL,2021-12-16,AP,1500906,CITI PCARD-DROPBOX MZ77GWJMSGYD,2021-09-24,2021-10-24,TECHNOLOGY SERVICE CONTRACTS,12.71,2021
,2021 DEMOCRATIC CAUCUS,,GENERAL EXPENDITURES,OTHER SERVICES,DETAIL,2021-12-16,AP,1500906,CITI PCARD-GOOGLE  Google Storage,2021-10-08,2021-11-08,TECHNOLOGY SERVICE CONTRACTS,2.11,2021
,2021 DEMOCRATIC CAUCUS,,GENERAL EXPENDITURES,OTHER SERVICES,DETAIL,2021-12-16,AP,1500906,CITI PCARD-GOOGLE  Google Storage,2021-11-08,2021-12-08,TECHNOLOGY SERVICE CONTRACTS,2.11,2021
,2021 DEMOCRATIC CAUCUS,,GENERAL EXPENDITURES,OTHER SERVICES,DETAIL,2021-12-16,AP,1500906,CITI PCARD-GOOGLE GOOGLE STORAGE,2021-09-07,2021-10-07,TECHNOLOGY SERVICE CONTRACTS,2.11,2021
,2021 DEMOCRATIC CAUCUS,,GENERAL EXPENDITURES,OTHER SERVICES,DETAIL,2021-12-20,AP,1506159,SOFTCHOICE CORPORATION,2021-02-11,2022-02-11,TECHNOLOGY SERVICE CONTRACTS,5759.28,2021
,2021 DEMOCRATIC CAUCUS,,GENERAL EXPENDITURES,OTHER SERVICES,DETAIL,2021-12-21,AP,1506879,CITI PCARD-The Press,2021-10-28,2021-10-28,LAUNDRY SERVICES,203.39,2021
,2021 DEMOCRATIC CAUCUS,,GENERAL EXPENDITURES,OTHER SERVICES,DETAIL,2021-12-22,AP,1506729,CITI PCARD-CGI CANVAS ON DEMAND,2021-10-22,2021-10-22,WEB DEV HST EMAIL & RLTD SERV,115.85,2021
,2021 DEMOCRATIC CAUCUS,,GENERAL EXPENDITURES,OTHER SERVICES,DETAIL,2021-12-22,AP,1507219,CREATIVENGINE,2021-11-01,2021-11-30,WEB DEV HST EMAIL & RLTD SERV,300,2021
,2021 DEMOCRATIC CAUCUS,,GENERAL EXPENDITURES,OTHER SERVICES,DETAIL,2021-12-31,AP,1507965,CITI PCARD-MELISSA KIMBLE LLC,2021-10-06,2021-10-06,CONSULTANT CONTRACT SERVICE,100,2021
,2021 DEMOCRATIC CAUCUS,,GENERAL EXPENDITURES,OTHER SERVICES,DETAIL,2021-12-31,AP,1507965,CITI PCARD-PAYPAL  DIVERSITYCO,2021-10-06,2021-10-06,CONSULTANT CONTRACT SERVICE,180,2021
,2021 DEMOCRATIC CAUCUS,,GENERAL EXPENDITURES,OTHER SERVICES,SUBTOTAL,   ,   ,   ,   ,   ,   ,OTHER SERVICES TOTALS:,8139.46,2021
,2021 DEMOCRATIC CAUCUS,,GENERAL EXPENDITURES,SUPPLIES AND MATERIALS,DETAIL,2021-10-13,AP,1476485,CORNELL REBECCA T.,2021-09-28,2021-09-28,OFFICE SUPPLIES (OUTSIDE),220.46,2021
,2021 DEMOCRATIC CAUCUS,,GENERAL EXPENDITURES,SUPPLIES AND MATERIALS,DETAIL,2021-10-14,AP,1476482,DAWSON EARNESTINE E.,2021-09-19,2021-09-19,OFFICE SUPPLIES (OUTSIDE),94.29,2021
,2021 DEMOCRATIC CAUCUS,,GENERAL EXPENDITURES,SUPPLIES AND MATERIALS,DETAIL,2021-10-14,AP,1476484,GIULINO DANIELLE M.,2021-09-23,2021-09-23,OFFICE SUPPLIES (OUTSIDE),123.83,2021
,2021 DEMOCRATIC CAUCUS,,GENERAL EXPENDITURES,SUPPLIES AND MATERIALS,DETAIL,2021-10-31,GL,RMS0110650, ,2021-10-01,2021-10-31,OFFICE SUPPLY (TRANSFER),631.31,2021
,2021 DEMOCRATIC CAUCUS,,GENERAL EXPENDITURES,SUPPLIES AND MATERIALS,DETAIL,2021-11-05,AP,1484100,READYREFRESH BY NESTLE,2021-09-30,2021-09-30,WATER,87.37,2021
,2021 DEMOCRATIC CAUCUS,,GENERAL EXPENDITURES,SUPPLIES AND MATERIALS,DETAIL,2021-11-05,AP,1485870,BSL GEM LASER EXPRESS LLC,2021-06-04,2021-06-04,OFFICE SUPPLIES (OUTSIDE),1656,2021
,2021 DEMOCRATIC CAUCUS,,GENERAL EXPENDITURES,SUPPLIES AND MATERIALS,DETAIL,2021-11-05,AP,1485875,CITI PCARD-AMZN Mktp US 251675YV0,2021-09-02,2021-09-02,OFFICE SUPPLIES (OUTSIDE),34.18,2021
,2021 DEMOCRATIC CAUCUS,,GENERAL EXPENDITURES,SUPPLIES AND MATERIALS,DETAIL,2021-11-05,AP,1485875,CITI PCARD-BOOKING AGENT INFO,2021-07-29,2022-07-29,PUBLICATIONS/REFERENCE MAT'L,180,2021
,2021 DEMOCRATIC CAUCUS,,GENERAL EXPENDITURES,SUPPLIES AND MATERIALS,DETAIL,2021-11-05,AP,1485875,CITI PCARD-CORNER BAKERY 0279,2021-03-03,2021-03-03,FOOD & BEVERAGE,498.74,2021
,2021 DEMOCRATIC CAUCUS,,GENERAL EXPENDITURES,SUPPLIES AND MATERIALS,DETAIL,2021-11-05,AP,1485875,CITI PCARD-SP   INK GENIE,2021-07-28,2021-07-28,OFFICE SUPPLIES (OUTSIDE),440.92,2021
,2021 DEMOCRATIC CAUCUS,,GENERAL EXPENDITURES,SUPPLIES AND MATERIALS,DETAIL,2021-11-05,AP,1485875,CITI PCARD-TEAISM PENN QUARTER,2021-07-30,2021-07-30,FOOD & BEVERAGE,3420,2021
,2021 DEMOCRATIC CAUCUS,,GENERAL EXPENDITURES,SUPPLIES AND MATERIALS,DETAIL,2021-11-05,AP,1485880,CORNELL REBECCA T.,2021-10-04,2021-10-20,OFFICE SUPPLIES (OUTSIDE),318.06,2021
,2021 DEMOCRATIC CAUCUS,,GENERAL EXPENDITURES,SUPPLIES AND MATERIALS,DETAIL,2021-11-05,AP,1485880,CORNELL REBECCA T.,2021-10-18,2021-10-18,OFFICE SUPPLIES (OUTSIDE),529.99,2021
,2021 DEMOCRATIC CAUCUS,,GENERAL EXPENDITURES,SUPPLIES AND MATERIALS,DETAIL,2021-11-05,AP,1486448,CITI PCARD-AMZN Mktp US 2R16H9R10,2021-06-01,2021-06-01,OFFICE SUPPLIES (OUTSIDE),19.98,2021
,2021 DEMOCRATIC CAUCUS,,GENERAL EXPENDITURES,SUPPLIES AND MATERIALS,DETAIL,2021-11-05,AP,1486448,CITI PCARD-CREAMERY DD,2021-07-26,2021-07-26,FOOD & BEVERAGE,35,2021
,2021 DEMOCRATIC CAUCUS,,GENERAL EXPENDITURES,SUPPLIES AND MATERIALS,DETAIL,2021-11-05,AP,1486448,CITI PCARD-HARRISTEETER #383,2021-07-19,2021-07-19,FOOD & BEVERAGE,4.2,2021
,2021 DEMOCRATIC CAUCUS,,GENERAL EXPENDITURES,SUPPLIES AND MATERIALS,DETAIL,2021-11-05,AP,1486448,CITI PCARD-HARRISTEETER #383,2021-09-27,2021-09-27,FOOD & BEVERAGE,149.96,2021
,2021 DEMOCRATIC CAUCUS,,GENERAL EXPENDITURES,SUPPLIES AND MATERIALS,DETAIL,2021-11-05,AP,1486448,CITI PCARD-HILL COUNTRY DC LLC,2021-07-29,2021-07-29,FOOD & BEVERAGE,595.45,2021
,2021 DEMOCRATIC CAUCUS,,GENERAL EXPENDITURES,SUPPLIES AND MATERIALS,DETAIL,2021-11-05,AP,1486448,CITI PCARD-NYTIMES,2021-07-22,2022-01-19,PUBLICATIONS/REFERENCE MAT'L,1001,2021
,2021 DEMOCRATIC CAUCUS,,GENERAL EXPENDITURES,SUPPLIES AND MATERIALS,DETAIL,2021-11-05,AP,1486448,CITI PCARD-SAINT GERMAIN CATERING,2021-08-24,2021-08-24,FOOD & BEVERAGE,2911,2021
,2021 DEMOCRATIC CAUCUS,,GENERAL EXPENDITURES,SUPPLIES AND MATERIALS,DETAIL,2021-11-08,AP,1486311,BSL GEM LASER EXPRESS LLC,2021-08-05,2021-08-05,OFFICE SUPPLIES (OUTSIDE),1426,2021
,2021 DEMOCRATIC CAUCUS,,GENERAL EXPENDITURES,SUPPLIES AND MATERIALS,DETAIL,2021-11-19,AP,1494271,CITI PCARD-AMZ Deals All Year C,2021-07-27,2021-07-27,OFFICE SUPPLIES (OUTSIDE),1956.77,2021
,2021 DEMOCRATIC CAUCUS,,GENERAL EXPENDITURES,SUPPLIES AND MATERIALS,DETAIL,2021-11-19,AP,1494271,CITI PCARD-AMZN MKTP US 256YR6NF0 AM,2021-08-24,2021-08-24,OFFICE SUPPLIES (OUTSIDE),207.53,2021
,2021 DEMOCRATIC CAUCUS,,GENERAL EXPENDITURES,SUPPLIES AND MATERIALS,DETAIL,2021-11-19,AP,1494271,CITI PCARD-AMZN Mktp US 2519I94M1,2021-08-21,2021-08-21,PUBLICATIONS/REFERENCE MAT'L,8.61,2021
,2021 DEMOCRATIC CAUCUS,,GENERAL EXPENDITURES,SUPPLIES AND MATERIALS,DETAIL,2021-11-19,AP,1494271,CITI PCARD-AMZN Mktp US 253O19ZJ1,2021-08-24,2021-08-24,OFFICE SUPPLIES (OUTSIDE),18.98,2021
,2021 DEMOCRATIC CAUCUS,,GENERAL EXPENDITURES,SUPPLIES AND MATERIALS,DETAIL,2021-11-19,AP,1494271,CITI PCARD-AMZN Mktp US 255GR9CR1,2021-08-23,2021-08-23,OFFICE SUPPLIES (OUTSIDE),13.6,2021
,2021 DEMOCRATIC CAUCUS,,GENERAL EXPENDITURES,SUPPLIES AND MATERIALS,DETAIL,2021-11-19,AP,1494271,CITI PCARD-AMZN Mktp US 2592D8ZM1,2021-08-24,2021-08-24,PUBLICATIONS/REFERENCE MAT'L,11.53,2021
,2021 DEMOCRATIC CAUCUS,,GENERAL EXPENDITURES,SUPPLIES AND MATERIALS,DETAIL,2021-11-19,AP,1494271,CITI PCARD-AMZN Mktp US 2D0PT2682,2021-08-21,2021-08-21,OFFICE SUPPLIES (OUTSIDE),12.8,2021
,2021 DEMOCRATIC CAUCUS,,GENERAL EXPENDITURES,SUPPLIES AND MATERIALS,DETAIL,2021-11-19,AP,1494271,CITI PCARD-AMZN Mktp US 2D18M5JC2,2021-08-18,2021-08-18,OFFICE SUPPLIES (OUTSIDE),39.98,2021
,2021 DEMOCRATIC CAUCUS,,GENERAL EXPENDITURES,SUPPLIES AND MATERIALS,DETAIL,2021-11-19,AP,1494271,CITI PCARD-AMZN Mktp US 2D1V27HR2,2021-08-21,2021-08-21,PUBLICATIONS/REFERENCE MAT'L,15.62,2021
,2021 DEMOCRATIC CAUCUS,,GENERAL EXPENDITURES,SUPPLIES AND MATERIALS,DETAIL,2021-11-19,AP,1494271,CITI PCARD-AMZN Mktp US 2D56I0K60,2021-08-21,2021-08-21,PUBLICATIONS/REFERENCE MAT'L,9.89,2021
,2021 DEMOCRATIC CAUCUS,,GENERAL EXPENDITURES,SUPPLIES AND MATERIALS,DETAIL,2021-11-19,AP,1494271,CITI PCARD-AMZN Mktp US 2D5Q00W71,2021-08-21,2021-08-21,PUBLICATIONS/REFERENCE MAT'L,8,2021
,2021 DEMOCRATIC CAUCUS,,GENERAL EXPENDITURES,SUPPLIES AND MATERIALS,DETAIL,2021-11-19,AP,1494271,CITI PCARD-AMZN Mktp US 2D90J51L1,2021-08-12,2021-08-12,OFFICE SUPPLIES (OUTSIDE),121.16,2021
,2021 DEMOCRATIC CAUCUS,,GENERAL EXPENDITURES,SUPPLIES AND MATERIALS,DETAIL,2021-11-19,AP,1494271,CITI PCARD-Amazon.com 2D2D13W41,2021-08-21,2021-08-21,PUBLICATIONS/REFERENCE MAT'L,10.17,2021
,2021 DEMOCRATIC CAUCUS,,GENERAL EXPENDITURES,SUPPLIES AND MATERIALS,DETAIL,2021-11-19,AP,1494271,CITI PCARD-HARRIS TEETER #0282,2021-08-23,2021-08-23,FOOD & BEVERAGE,404.98,2021
,2021 DEMOCRATIC CAUCUS,,GENERAL EXPENDITURES,SUPPLIES AND MATERIALS,DETAIL,2021-11-19,AP,1494271,CITI PCARD-SAINT GERMAIN CATERING,2021-09-30,2021-09-30,FOOD & BEVERAGE,1335,2021
,2021 DEMOCRATIC CAUCUS,,GENERAL EXPENDITURES,SUPPLIES AND MATERIALS,DETAIL,2021-11-19,AP,1494271,CITI PCARD-USHR CATERING,2021-10-01,2021-10-01,FOOD & BEVERAGE,571.25,2021
,2021 DEMOCRATIC CAUCUS,,GENERAL EXPENDITURES,SUPPLIES AND MATERIALS,DETAIL,2021-11-23,AP,1495252,READYREFRESH BY NESTLE,2021-10-31,2021-10-31,WATER,139.29,2021
,2021 DEMOCRATIC CAUCUS,,GENERAL EXPENDITURES,SUPPLIES AND MATERIALS,DETAIL,2021-11-24,AP,1485861,OCCASIONS CATERERS,2021-10-21,2021-10-21,FOOD & BEVERAGE,7888,2021
,2021 DEMOCRATIC CAUCUS,,GENERAL EXPENDITURES,SUPPLIES AND MATERIALS,DETAIL,2021-11-24,AP,1495646,GIULINO DANIELLE M.,2021-11-15,2021-11-15,FOOD & BEVERAGE,65.98,2021
,2021 DEMOCRATIC CAUCUS,,GENERAL EXPENDITURES,SUPPLIES AND MATERIALS,DETAIL,2021-11-26,AP,1495549,CITI PCARD-AMZN Mktp US 2568Y1351,2021-08-24,2021-08-24,OFFICE SUPPLIES (OUTSIDE),45.98,2021
,2021 DEMOCRATIC CAUCUS,,GENERAL EXPENDITURES,SUPPLIES AND MATERIALS,DETAIL,2021-11-26,AP,1495549,CITI PCARD-AMZN Mktp US 272HO83R1,2021-10-05,2021-10-05,OFFICE SUPPLIES (OUTSIDE),126.07,2021
,2021 DEMOCRATIC CAUCUS,,GENERAL EXPENDITURES,SUPPLIES AND MATERIALS,DETAIL,2021-11-26,AP,1495549,CITI PCARD-AMZN Mktp US 2C0QT6CF2,2021-09-23,2021-09-23,OFFICE SUPPLIES (OUTSIDE),54.91,2021
,2021 DEMOCRATIC CAUCUS,,GENERAL EXPENDITURES,SUPPLIES AND MATERIALS,DETAIL,2021-11-26,AP,1495549,CITI PCARD-AMZN Mktp US 2C37T8LG1,2021-09-21,2021-09-21,OFFICE SUPPLIES (OUTSIDE),31.97,2021
,2021 DEMOCRATIC CAUCUS,,GENERAL EXPENDITURES,SUPPLIES AND MATERIALS,DETAIL,2021-11-26,AP,1495549,CITI PCARD-AMZN Mktp US 2C3S57N81,2021-09-22,2021-09-22,OFFICE SUPPLIES (OUTSIDE),15.95,2021
,2021 DEMOCRATIC CAUCUS,,GENERAL EXPENDITURES,SUPPLIES AND MATERIALS,DETAIL,2021-11-26,AP,1495549,CITI PCARD-AMZN Mktp US 2C47M5T91,2021-09-22,2021-09-22,OFFICE SUPPLIES (OUTSIDE),17.49,2021
,2021 DEMOCRATIC CAUCUS,,GENERAL EXPENDITURES,SUPPLIES AND MATERIALS,DETAIL,2021-11-26,AP,1495549,CITI PCARD-AMZN Mktp US 2C8YL3AA1,2021-09-22,2021-09-22,OFFICE SUPPLIES (OUTSIDE),164.71,2021
,2021 DEMOCRATIC CAUCUS,,GENERAL EXPENDITURES,SUPPLIES AND MATERIALS,DETAIL,2021-11-26,AP,1495549,CITI PCARD-AMZN Mktp US 2E19P5932,2021-07-27,2021-07-27,OFFICE SUPPLIES (OUTSIDE),28.5,2021
,2021 DEMOCRATIC CAUCUS,,GENERAL EXPENDITURES,SUPPLIES AND MATERIALS,DETAIL,2021-11-26,AP,1495549,CITI PCARD-Amazon.com 2C6Q85CP2,2021-09-24,2021-09-24,FOOD & BEVERAGE,73.68,2021
,2021 DEMOCRATIC CAUCUS,,GENERAL EXPENDITURES,SUPPLIES AND MATERIALS,DETAIL,2021-11-26,AP,1495549,CITI PCARD-B&H PHOTO 800-606-6969,2021-09-14,2021-09-14,OFFICE SUPPLIES (OUTSIDE),379,2021
,2021 DEMOCRATIC CAUCUS,,GENERAL EXPENDITURES,SUPPLIES AND MATERIALS,DETAIL,2021-11-26,AP,1495549,CITI PCARD-D J WALL-ST-JOURNAL,2021-08-23,2021-09-23,PUBLICATIONS/REFERENCE MAT'L,45.57,2021
